Workbook

Sheet 2022年1月（按美元）
A2: 2022年1月银行结售汇数据（分地区）
A3: 单位：亿美元
A4: 项目 | C4: 北京 | D4: 天津 | E4: 河北 | F4: 山西 | G4: 内蒙古 | H4: 辽宁 | I4: 吉林 | J4: 黑龙江 | K4: 上海 | L4: 江苏 | M4: 浙江 | N4: 安徽 | O4: 福建 | P4: 江西 | Q4: 山东 | R4: 河南 | S4: 湖北 | T4: 湖南 | U4: 广东 | V4: 广西 | W4: 海南 | X4: 重庆 | Y4: 四川 | Z4: 贵州 | AA4: 云南 | AB4: 西藏 | AC4: 陕西 | AD4: 甘肃 | AE4: 青海 | AF4: 宁夏 | AG4: 新疆 | AH4: 大连 | AI4: 宁波 | AJ4: 厦门 | AK4: 青岛 | AL4: 深圳
A5: 一、结汇 | C5: 174.88 | D5: 39.55 | E5: 32.27 | F5: 7.83 | G5: 4.49 | H5: 10.76 | I5: 4.42 | J5: 3.76 | K5: 334.35 | L5: 298.15 | M5: 327.86 | N5: 38.22 | O5: 81.84 | P5: 23.34 | Q5: 103.03 | R5: 41.40 | S5: 27.78 | T5: 23.05 | U5: 284.96 | V5: 12.62 | W5: 6.23 | X5: 33.96 | Y5: 30.26 | Z5: 3.21 | AA5: 3.88 | AB5: 0.01 | AC5: 17.09 | AD5: 2.09 | AE5: 0.21 | AF5: 1.52 | AG5: 2.87 | AH5: 35.06 | AI5: 127.68 | AJ5: 50.44 | AK5: 52.07 | AL5: 180.46
A6: (一）银行自身 | C6: 51.22 | D6: 0.06 | E6: 0.00 | F6: 0.00 | G6: 0.00 | H6: 0.00 | I6: 0.00 | J6: 0.00 | K6: 7.43 | L6: 0.16 | M6: 6.11 | N6: 0.00 | O6: 5.26 | P6: 0.00 | Q6: 0.39 | R6: 0.00 | S6: 0.01 | T6: 0.00 | U6: 0.03 | V6: 0.00 | W6: 0.00 | X6: 0.01 | Y6: 0.00 | Z6: 0.00 | AA6: 0.00 | AB6: 0.00 | AC6: 0.00 | AD6: 0.00 | AE6: 0.00 | AF6: 0.00 | AG6: 0.00 | AH6: 0.00 | AI6: 32.12 | AJ6: 0.01 | AK6: 0.00 | AL6: 0.39
A7: (二）银行代客 | C7: 123.66 | D7: 39.49 | E7: 32.27 | F7: 7.83 | G7: 4.49 | H7: 10.76 | I7: 4.42 | J7: 3.75 | K7: 326.92 | L7: 297.98 | M7: 321.75 | N7: 38.22 | O7: 76.59 | P7: 23.33 | Q7: 102.64 | R7: 41.39 | S7: 27.77 | T7: 23.05 | U7: 284.93 | V7: 12.62 | W7: 6.23 | X7: 33.96 | Y7: 30.26 | Z7: 3.21 | AA7: 3.88 | AB7: 0.01 | AC7: 17.09 | AD7: 2.09 | AE7: 0.21 | AF7: 1.52 | AG7: 2.87 | AH7: 35.05 | AI7: 95.57 | AJ7: 50.43 | AK7: 52.07 | AL7: 180.07
A8: 1.经常项目 | C8: 65.99 | D8: 32.48 | E8: 27.99 | F8: 6.91 | G8: 3.95 | H8: 10.04 | I8: 4.10 | J8: 3.47 | K8: 218.30 | L8: 267.34 | M8: 303.69 | N8: 33.99 | O8: 74.39 | P8: 19.46 | Q8: 91.82 | R8: 29.03 | S8: 23.28 | T8: 21.73 | U8: 268.66 | V8: 7.97 | W8: 4.43 | X8: 31.30 | Y8: 27.63 | Z8: 2.11 | AA8: 3.20 | AB8: 0.01 | AC8: 16.54 | AD8: 2.01 | AE8: 0.21 | AF8: 1.19 | AG8: 2.85 | AH8: 14.90 | AI8: 92.05 | AJ8: 48.10 | AK8: 46.25 | AL8: 159.74
A9: 1.1货物贸易 | C9: 38.01 | D9: 27.17 | E9: 26.51 | F9: 6.52 | G9: 3.73 | H9: 8.65 | I9: 3.37 | J9: 2.79 | K9: 151.21 | L9: 258.53 | M9: 295.58 | N9: 32.72 | O9: 71.21 | P9: 18.92 | Q9: 87.63 | R9: 27.54 | S9: 21.33 | T9: 20.20 | U9: 253.38 | V9: 7.37 | W9: 3.81 | X9: 30.08 | Y9: 24.24 | Z9: 1.93 | AA9: 2.92 | AB9: 0.01 | AC9: 15.16 | AD9: 1.51 | AE9: 0.18 | AF9: 1.14 | AG9: 2.52 | AH9: 12.18 | AI9: 89.28 | AJ9: 45.55 | AK9: 42.10 | AL9: 140.44
A10: 1.2服务贸易 | C10: 22.90 | D10: 3.76 | E10: 0.79 | F10: 0.23 | G10: 0.14 | H10: 0.61 | I10: 0.18 | J10: 0.23 | K10: 58.71 | L10: 5.22 | M10: 4.68 | N10: 0.89 | O10: 1.08 | P10: 0.23 | Q10: 2.57 | R10: 0.63 | S10: 1.22 | T10: 0.96 | U10: 10.77 | V10: 0.31 | W10: 0.53 | X10: 0.94 | Y10: 2.65 | Z10: 0.11 | AA10: 0.16 | AB10: 0.00 | AC10: 1.09 | AD10: 0.36 | AE10: 0.01 | AF10: 0.02 | AG10: 0.24 | AH10: 2.14 | AI10: 1.99 | AJ10: 2.16 | AK10: 2.95 | AL10: 16.15
A11: 1.3收益和经常转移 | C11: 5.08 | D11: 1.55 | E11: 0.69 | F11: 0.17 | G11: 0.09 | H11: 0.78 | I11: 0.56 | J11: 0.45 | K11: 8.38 | L11: 3.60 | M11: 3.43 | N11: 0.38 | O11: 2.10 | P11: 0.31 | Q11: 1.61 | R11: 0.85 | S11: 0.73 | T11: 0.57 | U11: 4.51 | V11: 0.29 | W11: 0.09 | X11: 0.28 | Y11: 0.75 | Z11: 0.07 | AA11: 0.13 | AB11: 0.00 | AC11: 0.29 | AD11: 0.13 | AE11: 0.02 | AF11: 0.03 | AG11: 0.09 | AH11: 0.58 | AI11: 0.79 | AJ11: 0.39 | AK11: 1.19 | AL11: 3.15
A12: 2.资本与金融项目 | C12: 57.67 | D12: 7.01 | E12: 4.28 | F12: 0.92 | G12: 0.53 | H12: 0.72 | I12: 0.32 | J12: 0.29 | K12: 108.62 | L12: 30.64 | M12: 18.06 | N12: 4.23 | O12: 2.20 | P12: 3.87 | Q12: 10.83 | R12: 12.36 | S12: 4.50 | T12: 1.32 | U12: 16.27 | V12: 4.64 | W12: 1.80 | X12: 2.66 | Y12: 2.62 | Z12: 1.10 | AA12: 0.68 | AB12: 0.00 | AC12: 0.54 | AD12: 0.08 | AE12: 0.00 | AF12: 0.33 | AG12: 0.02 | AH12: 20.16 | AI12: 3.51 | AJ12: 2.33 | AK12: 5.82 | AL12: 20.34
A13: 其中: 直接投资 | C13: 14.32 | D13: 6.24 | E13: 1.94 | F13: 0.05 | G13: 0.23 | H13: 0.68 | I13: 0.24 | J13: 0.25 | K13: 24.60 | L13: 16.32 | M13: 8.44 | N13: 2.86 | O13: 1.53 | P13: 0.70 | Q13: 7.47 | R13: 9.73 | S13: 1.81 | T13: 0.34 | U13: 9.01 | V13: 0.56 | W13: 1.44 | X13: 1.14 | Y13: 1.71 | Z13: 0.10 | AA13: 0.51 | AB13: 0.00 | AC13: 0.05 | AD13: 0.03 | AE13: 0.00 | AF13: 0.04 | AG13: 0.00 | AH13: 19.99 | AI13: 2.05 | AJ13: 2.23 | AK13: 3.43 | AL13: 11.95
A14: 证券投资 | C14: 40.51 | D14: 0.01 | E14: 0.12 | F14: 0.00 | G14: 0.26 | H14: 0.00 | I14: 0.00 | J14: 0.00 | K14: 81.00 | L14: 6.68 | M14: 7.08 | N14: 0.18 | O14: 0.00 | P14: 2.01 | Q14: 2.38 | R14: 0.00 | S14: 1.13 | T14: 0.08 | U14: 0.87 | V14: 0.02 | W14: 0.36 | X14: 0.11 | Y14: 0.15 | Z14: 0.00 | AA14: 0.00 | AB14: 0.00 | AC14: 0.00 | AD14: 0.00 | AE14: 0.00 | AF14: 0.00 | AG14: 0.00 | AH14: 0.01 | AI14: 0.56 | AJ14: 0.00 | AK14: 1.50 | AL14: 6.77
A15: 二、售汇 | C15: 512.69 | D15: 28.96 | E15: 26.34 | F15: 5.84 | G15: 13.52 | H15: 20.13 | I15: 9.83 | J15: 6.56 | K15: 513.79 | L15: 136.99 | M15: 82.85 | N15: 24.43 | O15: 52.60 | P15: 14.67 | Q15: 77.70 | R15: 18.65 | S15: 19.08 | T15: 15.11 | U15: 113.94 | V15: 19.82 | W15: 9.75 | X15: 35.25 | Y15: 18.95 | Z15: 5.63 | AA15: 8.14 | AB15: 0.34 | AC15: 15.25 | AD15: 7.63 | AE15: 0.16 | AF15: 0.63 | AG15: 3.19 | AH15: 21.95 | AI15: 88.07 | AJ15: 53.61 | AK15: 29.31 | AL15: 132.48
A16: (一）银行自身 | C16: 59.89 | D16: 0.01 | E16: 0.00 | F16: 0.00 | G16: 0.00 | H16: 0.00 | I16: 0.00 | J16: 0.00 | K16: 61.99 | L16: 0.22 | M16: 0.81 | N16: 0.00 | O16: 8.63 | P16: 0.00 | Q16: 0.01 | R16: 0.00 | S16: 0.00 | T16: 0.00 | U16: 1.24 | V16: 0.00 | W16: 0.00 | X16: 0.00 | Y16: 0.00 | Z16: 0.00 | AA16: 0.00 | AB16: 0.00 | AC16: 0.02 | AD16: 0.01 | AE16: 0.00 | AF16: 0.00 | AG16: 0.00 | AH16: 0.00 | AI16: 37.24 | AJ16: 0.32 | AK16: 0.01 | AL16: 7.38
A17: (二）银行代客 | C17: 452.79 | D17: 28.95 | E17: 26.34 | F17: 5.84 | G17: 13.52 | H17: 20.13 | I17: 9.83 | J17: 6.56 | K17: 451.80 | L17: 136.77 | M17: 82.04 | N17: 24.43 | O17: 43.96 | P17: 14.67 | Q17: 77.69 | R17: 18.65 | S17: 19.08 | T17: 15.11 | U17: 112.69 | V17: 19.82 | W17: 9.75 | X17: 35.25 | Y17: 18.95 | Z17: 5.63 | AA17: 8.14 | AB17: 0.34 | AC17: 15.22 | AD17: 7.63 | AE17: 0.16 | AF17: 0.63 | AG17: 3.19 | AH17: 21.95 | AI17: 50.84 | AJ17: 53.29 | AK17: 29.30 | AL17: 125.10
A18: 1.经常项目 | C18: 405.02 | D18: 26.21 | E18: 21.77 | F18: 5.50 | G18: 8.00 | H18: 19.88 | I18: 9.70 | J18: 6.52 | K18: 328.21 | L18: 118.71 | M18: 72.32 | N18: 22.60 | O18: 37.13 | P18: 10.07 | Q18: 74.30 | R18: 16.19 | S18: 17.29 | T18: 13.80 | U18: 102.96 | V18: 19.04 | W18: 9.30 | X18: 33.50 | Y18: 17.43 | Z18: 1.59 | AA18: 6.12 | AB18: 0.30 | AC18: 13.01 | AD18: 5.94 | AE18: 0.12 | AF18: 0.53 | AG18: 2.72 | AH18: 15.53 | AI18: 40.47 | AJ18: 52.07 | AK18: 28.12 | AL18: 94.59
A19: 1.1货物贸易 | C19: 337.83 | D19: 20.63 | E19: 19.28 | F19: 4.05 | G19: 7.11 | H19: 17.11 | I19: 7.33 | J19: 4.80 | K19: 264.77 | L19: 103.54 | M19: 53.66 | N19: 20.67 | O19: 33.08 | P19: 8.98 | Q19: 67.84 | R19: 13.66 | S19: 13.19 | T19: 11.62 | U19: 86.19 | V19: 17.75 | W19: 7.59 | X19: 31.09 | Y19: 12.94 | Z19: 0.61 | AA19: 5.06 | AB19: 0.25 | AC19: 11.20 | AD19: 5.47 | AE19: 0.04 | AF19: 0.35 | AG19: 1.93 | AH19: 13.28 | AI19: 36.62 | AJ19: 49.07 | AK19: 24.03 | AL19: 78.39
A20: 1.2服务贸易 | C20: 37.89 | D20: 4.68 | E20: 2.38 | F20: 1.40 | G20: 0.86 | H20: 2.62 | I20: 2.09 | J20: 1.66 | K20: 54.28 | L20: 12.12 | M20: 11.46 | N20: 1.80 | O20: 2.47 | P20: 1.03 | Q20: 5.42 | R20: 2.45 | S20: 3.78 | T20: 2.07 | U20: 13.62 | V20: 0.87 | W20: 1.66 | X20: 2.13 | Y20: 4.15 | Z20: 0.78 | AA20: 0.98 | AB20: 0.05 | AC20: 1.76 | AD20: 0.46 | AE20: 0.08 | AF20: 0.17 | AG20: 0.73 | AH20: 2.01 | AI20: 3.42 | AJ20: 2.74 | AK20: 3.88 | AL20: 15.00
A21: 1.3收益和经常转移 | C21: 29.30 | D21: 0.90 | E21: 0.11 | F21: 0.04 | G21: 0.02 | H21: 0.16 | I21: 0.29 | J21: 0.06 | K21: 9.16 | L21: 3.05 | M21: 7.20 | N21: 0.13 | O21: 1.58 | P21: 0.06 | Q21: 1.03 | R21: 0.08 | S21: 0.33 | T21: 0.10 | U21: 3.16 | V21: 0.43 | W21: 0.05 | X21: 0.29 | Y21: 0.34 | Z21: 0.20 | AA21: 0.08 | AB21: 0.00 | AC21: 0.06 | AD21: 0.01 | AE21: 0.00 | AF21: 0.01 | AG21: 0.06 | AH21: 0.24 | AI21: 0.43 | AJ21: 0.26 | AK21: 0.21 | AL21: 1.20
A22: 2.资本与金融项目 | C22: 47.78 | D22: 2.74 | E22: 4.57 | F22: 0.34 | G22: 5.53 | H22: 0.24 | I22: 0.13 | J22: 0.04 | K22: 123.59 | L22: 18.06 | M22: 9.72 | N22: 1.83 | O22: 6.83 | P22: 4.60 | Q22: 3.40 | R22: 2.46 | S22: 1.79 | T22: 1.32 | U22: 9.73 | V22: 0.77 | W22: 0.45 | X22: 1.75 | Y22: 1.53 | Z22: 4.05 | AA22: 2.02 | AB22: 0.04 | AC22: 2.21 | AD22: 1.68 | AE22: 0.04 | AF22: 0.10 | AG22: 0.47 | AH22: 6.42 | AI22: 10.37 | AJ22: 1.22 | AK22: 1.18 | AL22: 30.52
A23: 其中: 直接投资 | C23: 35.61 | D23: 1.24 | E23: 1.34 | F23: 0.32 | G23: 3.92 | H23: 0.08 | I23: 0.03 | J23: 0.02 | K23: 27.05 | L23: 9.67 | M23: 7.53 | N23: 1.31 | O23: 3.86 | P23: 0.14 | Q23: 2.06 | R23: 0.40 | S23: 0.57 | T23: 0.74 | U23: 1.78 | V23: 0.05 | W23: 0.26 | X23: 0.43 | Y23: 0.76 | Z23: 0.02 | AA23: 0.18 | AB23: 0.00 | AC23: 0.03 | AD23: 0.00 | AE23: 0.00 | AF23: 0.01 | AG23: 0.09 | AH23: 6.13 | AI23: 6.23 | AJ23: 0.35 | AK23: 0.59 | AL23: 3.00
A24: 证券投资 | C24: 8.60 | D24: 0.06 | E24: 0.00 | F24: 0.00 | G24: 0.00 | H24: 0.00 | I24: 0.00 | J24: 0.00 | K24: 86.24 | L24: 0.97 | M24: 0.03 | N24: 0.05 | O24: 0.00 | P24: 3.05 | Q24: 0.01 | R24: 0.00 | S24: 0.00 | T24: 0.04 | U24: 0.77 | V24: 0.19 | W24: 0.00 | X24: 0.30 | Y24: 0.04 | Z24: 3.92 | AA24: 0.03 | AB24: 0.00 | AC24: 0.14 | AD24: 0.35 | AE24: 0.00 | AF24: 0.00 | AG24: 0.00 | AH24: 0.11 | AI24: 0.12 | AJ24: 0.49 | AK24: 0.00 | AL24: 26.76
A25: 三、差额 | C25: =C5-C15 -> -337.81 | D25: =D5-D15 -> 10.59 | E25: 5.93 | F25: 1.99 | G25: -9.03 | H25: -9.36 | I25: -5.41 | J25: -2.80 | K25: -179.44 | L25: 161.15 | M25: 245.01 | N25: 13.79 | O25: 29.25 | P25: 8.67 | Q25: 25.33 | R25: 22.74 | S25: 8.70 | T25: 7.94 | U25: 171.03 | V25: -7.20 | W25: -3.52 | X25: -1.29 | Y25: 11.30 | Z25: -2.42 | AA25: -4.26 | AB25: -0.32 | AC25: 1.84 | AD25: -5.55 | AE25: 0.06 | AF25: 0.89 | AG25: -0.32 | AH25: 13.10 | AI25: 39.61 | AJ25: -3.16 | AK25: 22.77 | AL25: 47.99
A26: (一）银行自身 | C26: =C6-C16 -> -8.67 | D26: 0.05 | E26: 0.00 | F26: 0.00 | G26: 0.00 | H26: 0.00 | I26: -0.00 | J26: 0.00 | K26: -54.56 | L26: -0.06 | M26: 5.30 | N26: 0.00 | O26: -3.38 | P26: -0.00 | Q26: 0.38 | R26: 0.00 | S26: 0.01 | T26: 0.00 | U26: -1.21 | V26: 0.00 | W26: -0.00 | X26: 0.01 | Y26: 0.00 | Z26: -0.00 | AA26: 0.00 | AB26: 0.00 | AC26: -0.02 | AD26: -0.01 | AE26: 0.00 | AF26: 0.00 | AG26: 0.00 | AH26: 0.00 | AI26: -5.12 | AJ26: -0.30 | AK26: -0.00 | AL26: -6.98
A27: (二）银行代客 | C27: -329.13 | D27: 10.54 | E27: 5.93 | F27: 1.99 | G27: -9.03 | H27: -9.37 | I27: -5.41 | J27: -2.80 | K27: -124.88 | L27: 161.21 | M27: 239.70 | N27: 13.79 | O27: 32.62 | P27: 8.67 | Q27: 24.95 | R27: 22.74 | S27: 8.70 | T27: 7.94 | U27: 172.24 | V27: -7.20 | W27: -3.51 | X27: -1.29 | Y27: 11.30 | Z27: -2.42 | AA27: -4.26 | AB27: -0.32 | AC27: 1.86 | AD27: -5.54 | AE27: 0.06 | AF27: 0.89 | AG27: -0.32 | AH27: 13.10 | AI27: 44.73 | AJ27: -2.86 | AK27: 22.77 | AL27: 54.97
A28: 1.经常项目 | C28: -339.03 | D28: 6.27 | E28: 6.23 | F28: 1.41 | G28: -4.04 | H28: -9.85 | I28: -5.60 | J28: -3.05 | K28: -109.91 | L28: 148.63 | M28: 231.36 | N28: 11.39 | O28: 37.26 | P28: 9.39 | Q28: 17.52 | R28: 12.84 | S28: 5.99 | T28: 7.93 | U28: 165.70 | V28: -11.07 | W28: -4.87 | X28: -2.20 | Y28: 10.20 | Z28: 0.52 | AA28: -2.92 | AB28: -0.29 | AC28: 3.53 | AD28: -3.94 | AE28: 0.09 | AF28: 0.66 | AG28: 0.13 | AH28: -0.64 | AI28: 51.59 | AJ28: -3.96 | AK28: 18.13 | AL28: 65.15
A29: 1.1货物贸易 | C29: -299.81 | D29: 6.54 | E29: 7.23 | F29: 2.46 | G29: -3.39 | H29: -8.46 | I29: -3.97 | J29: -2.02 | K29: -113.55 | L29: 154.99 | M29: 241.91 | N29: 12.06 | O29: 38.13 | P29: 9.94 | Q29: 19.79 | R29: 13.88 | S29: 8.15 | T29: 8.58 | U29: 167.19 | V29: -10.38 | W29: -3.79 | X29: -1.01 | Y29: 11.30 | Z29: 1.32 | AA29: -2.15 | AB29: -0.24 | AC29: 3.97 | AD29: -3.96 | AE29: 0.14 | AF29: 0.79 | AG29: 0.59 | AH29: -1.11 | AI29: 52.66 | AJ29: -3.51 | AK29: 18.08 | AL29: 62.05
A30: 1.2服务贸易 | C30: -14.99 | D30: -0.92 | E30: -1.60 | F30: -1.17 | G30: -0.72 | H30: -2.00 | I30: -1.91 | J30: -1.43 | K30: 4.42 | L30: -6.90 | M30: -6.78 | N30: -0.91 | O30: -1.39 | P30: -0.81 | Q30: -2.85 | R30: -1.82 | S30: -2.56 | T30: -1.11 | U30: -2.84 | V30: -0.56 | W30: -1.13 | X30: -1.19 | Y30: -1.51 | Z30: -0.67 | AA30: -0.82 | AB30: -0.05 | AC30: -0.67 | AD30: -0.10 | AE30: -0.06 | AF30: -0.15 | AG30: -0.49 | AH30: 0.13 | AI30: -1.44 | AJ30: -0.58 | AK30: -0.93 | AL30: 1.15
A31: 1.3收益和经常转移 | C31: -24.22 | D31: 0.65 | E31: 0.59 | F31: 0.12 | G31: 0.07 | H31: 0.62 | I31: 0.27 | J31: 0.40 | K31: -0.78 | L31: 0.55 | M31: -3.77 | N31: 0.25 | O31: 0.52 | P31: 0.25 | Q31: 0.58 | R31: 0.78 | S31: 0.40 | T31: 0.47 | U31: 1.35 | V31: -0.13 | W31: 0.04 | X31: -0.01 | Y31: 0.41 | Z31: -0.13 | AA31: 0.05 | AB31: 0.00 | AC31: 0.23 | AD31: 0.12 | AE31: 0.02 | AF31: 0.03 | AG31: 0.03 | AH31: 0.34 | AI31: 0.36 | AJ31: 0.13 | AK31: 0.98 | AL31: 1.95
A32: 2.资本与金融项目 | C32: 9.90 | D32: 4.27 | E32: -0.30 | F32: 0.58 | G32: -4.99 | H32: 0.48 | I32: 0.19 | J32: 0.25 | K32: -14.97 | L32: 12.58 | M32: 8.34 | N32: 2.40 | O32: -4.63 | P32: -0.73 | Q32: 7.43 | R32: 9.90 | S32: 2.71 | T32: 0.01 | U32: 6.54 | V32: 3.87 | W32: 1.36 | X32: 0.91 | Y32: 1.10 | Z32: -2.95 | AA32: -1.33 | AB32: -0.03 | AC32: =AC12-AC22 -> -1.67 | AD32: -1.60 | AE32: -0.03 | AF32: 0.23 | AG32: -0.45 | AH32: 13.74 | AI32: -6.86 | AJ32: 1.10 | AK32: 4.64 | AL32: -10.18
A33: 其中: 直接投资 | C33: -21.29 | D33: 4.99 | E33: 0.60 | F33: -0.27 | G33: -3.69 | H33: 0.60 | I33: 0.21 | J33: 0.23 | K33: -2.45 | L33: 6.64 | M33: 0.91 | N33: 1.55 | O33: -2.34 | P33: 0.55 | Q33: 5.40 | R33: 9.32 | S33: 1.24 | T33: -0.40 | U33: 7.24 | V33: 0.51 | W33: 1.18 | X33: 0.71 | Y33: 0.95 | Z33: 0.08 | AA33: 0.33 | AB33: 0.00 | AC33: 0.03 | AD33: 0.03 | AE33: 0.00 | AF33: 0.03 | AG33: -0.09 | AH33: 13.86 | AI33: -4.18 | AJ33: 1.88 | AK33: 2.83 | AL33: 8.95
A34: 证券投资 | C34: 31.91 | D34: -0.05 | E34: 0.12 | F34: -0.00 | G34: 0.26 | H34: 0.00 | I34: 0.00 | J34: -0.00 | K34: -5.25 | L34: 5.71 | M34: 7.05 | N34: 0.13 | O34: 0.00 | P34: -1.04 | Q34: 2.37 | R34: 0.00 | S34: 1.13 | T34: 0.04 | U34: 0.10 | V34: -0.17 | W34: 0.35 | X34: -0.20 | Y34: 0.10 | Z34: -3.92 | AA34: -0.03 | AB34: 0.00 | AC34: -0.14 | AD34: -0.35 | AE34: 0.00 | AF34: 0.00 | AG34: 0.00 | AH34: -0.10 | AI34: 0.44 | AJ34: -0.49 | AK34: 1.50 | AL34: -19.99
A35: 注： 1.分地区是指办理结售汇业务的银行所在地。其中，本表中辽宁不含大连，浙江不含宁波，福建不含厦门，山东不含青岛，广东不含深圳。

Sheet 2022年2月（按美元）
A2: 2022年2月银行结售汇数据（分地区）
A3: 单位：亿美元
A4: 项目 | C4: 北京 | D4: 天津 | E4: 河北 | F4: 山西 | G4: 内蒙古 | H4: 辽宁 | I4: 吉林 | J4: 黑龙江 | K4: 上海 | L4: 江苏 | M4: 浙江 | N4: 安徽 | O4: 福建 | P4: 江西 | Q4: 山东 | R4: 河南 | S4: 湖北 | T4: 湖南 | U4: 广东 | V4: 广西 | W4: 海南 | X4: 重庆 | Y4: 四川 | Z4: 贵州 | AA4: 云南 | AB4: 西藏 | AC4: 陕西 | AD4: 甘肃 | AE4: 青海 | AF4: 宁夏 | AG4: 新疆 | AH4: 大连 | AI4: 宁波 | AJ4: 厦门 | AK4: 青岛 | AL4: 深圳
A5: 一、结汇 | C5: 139.04 | D5: 28.07 | E5: 20.00 | F5: 8.10 | G5: 2.71 | H5: 7.89 | I5: 2.94 | J5: 2.75 | K5: 270.70 | L5: 193.30 | M5: 162.67 | N5: 21.23 | O5: 39.75 | P5: 12.51 | Q5: 68.03 | R5: 23.64 | S5: 21.49 | T5: 13.16 | U5: 187.78 | V5: 7.67 | W5: 2.00 | X5: 21.76 | Y5: 21.65 | Z5: 3.28 | AA5: 3.81 | AB5: 0.14 | AC5: 12.69 | AD5: 0.98 | AE5: 0.11 | AF5: 1.44 | AG5: 2.02 | AH5: 37.08 | AI5: 82.14 | AJ5: 31.01 | AK5: 32.63 | AL5: 114.59
A6: (一）银行自身 | C6: 50.03 | D6: 0.19 | E6: 0.00 | F6: 0.00 | G6: 0.00 | H6: 0.00 | I6: 0.00 | J6: 0.00 | K6: 17.08 | L6: 0.02 | M6: 5.55 | N6: 0.00 | O6: 3.18 | P6: 0.00 | Q6: 0.00 | R6: 0.00 | S6: 0.00 | T6: 0.00 | U6: 0.01 | V6: 0.00 | W6: 0.00 | X6: 0.01 | Y6: 0.00 | Z6: 0.00 | AA6: 0.00 | AB6: 0.00 | AC6: 0.00 | AD6: 0.00 | AE6: 0.00 | AF6: 0.00 | AG6: 0.00 | AH6: 0.00 | AI6: 26.89 | AJ6: 0.01 | AK6: 2.64 | AL6: 0.52
A7: (二）银行代客 | C7: 89.01 | D7: 27.88 | E7: 20.00 | F7: 8.10 | G7: 2.71 | H7: 7.89 | I7: 2.94 | J7: 2.75 | K7: 253.62 | L7: 193.28 | M7: 157.12 | N7: 21.22 | O7: 36.57 | P7: 12.51 | Q7: 68.03 | R7: 23.64 | S7: 21.49 | T7: 13.16 | U7: 187.76 | V7: 7.67 | W7: 2.00 | X7: 21.75 | Y7: 21.65 | Z7: 3.28 | AA7: 3.81 | AB7: 0.14 | AC7: 12.69 | AD7: 0.98 | AE7: 0.11 | AF7: 1.44 | AG7: 2.02 | AH7: 37.08 | AI7: 55.25 | AJ7: 31.00 | AK7: 29.99 | AL7: 114.07
A8: 1.经常项目 | C8: 55.58 | D8: 25.19 | E8: 18.25 | F8: 8.08 | G8: 2.35 | H8: 7.81 | I8: 2.83 | J8: 2.65 | K8: 164.75 | L8: 176.95 | M8: 150.34 | N8: 20.05 | O8: 36.19 | P8: 11.83 | Q8: 64.64 | R8: 23.34 | S8: 19.03 | T8: 11.33 | U8: 179.76 | V8: 5.79 | W8: 1.44 | X8: 20.47 | Y8: 20.43 | Z8: 2.44 | AA8: 2.19 | AB8: 0.01 | AC8: 11.75 | AD8: 0.88 | AE8: 0.10 | AF8: 1.21 | AG8: 1.89 | AH8: 11.57 | AI8: 53.04 | AJ8: 30.43 | AK8: 27.51 | AL8: 107.81
A9: 1.1货物贸易 | C9: 31.25 | D9: 21.76 | E9: 17.39 | F9: 7.77 | G9: 2.22 | H9: 6.79 | I9: 2.31 | J9: 2.27 | K9: 123.69 | L9: 169.39 | M9: 146.25 | N9: 19.43 | O9: 34.35 | P9: 11.54 | Q9: 62.33 | R9: 22.42 | S9: 17.70 | T9: 10.40 | U9: 170.49 | V9: 5.48 | W9: 1.26 | X9: 19.58 | Y9: 18.54 | Z9: 2.36 | AA9: 1.84 | AB9: 0.00 | AC9: 10.46 | AD9: 0.56 | AE9: 0.09 | AF9: 1.18 | AG9: 1.73 | AH9: 9.75 | AI9: 51.78 | AJ9: 29.01 | AK9: 25.27 | AL9: 97.01
A10: 1.2服务贸易 | C10: 19.49 | D10: 2.71 | E10: 0.46 | F10: 0.21 | G10: 0.09 | H10: 0.41 | I10: 0.15 | J10: 0.16 | K10: 36.63 | L10: 6.11 | M10: 2.15 | N10: 0.41 | O10: 0.62 | P10: 0.12 | Q10: 1.40 | R10: 0.32 | S10: 0.70 | T10: 0.63 | U10: 7.29 | V10: 0.16 | W10: 0.13 | X10: 0.70 | Y10: 1.49 | Z10: 0.03 | AA10: 0.10 | AB10: 0.00 | AC10: 1.04 | AD10: 0.04 | AE10: 0.01 | AF10: 0.02 | AG10: 0.11 | AH10: 1.50 | AI10: 1.10 | AJ10: 1.24 | AK10: 1.74 | AL10: 9.36
A11: 1.3收益和经常转移 | C11: 4.83 | D11: 0.72 | E11: 0.40 | F11: 0.10 | G11: 0.05 | H11: 0.61 | I11: 0.36 | J11: 0.23 | K11: 4.42 | L11: 1.46 | M11: 1.95 | N11: 0.22 | O11: 1.22 | P11: 0.18 | Q11: 0.90 | R11: 0.60 | S11: 0.63 | T11: 0.30 | U11: 1.98 | V11: 0.15 | W11: 0.05 | X11: 0.19 | Y11: 0.39 | Z11: 0.05 | AA11: 0.25 | AB11: 0.00 | AC11: 0.25 | AD11: 0.28 | AE11: 0.00 | AF11: 0.02 | AG11: 0.05 | AH11: 0.32 | AI11: 0.16 | AJ11: 0.18 | AK11: 0.49 | AL11: 1.44
A12: 2.资本与金融项目 | C12: 33.43 | D12: 2.69 | E12: 1.75 | F12: 0.02 | G12: 0.36 | H12: 0.08 | I12: 0.12 | J12: 0.09 | K12: 88.87 | L12: 16.33 | M12: 6.77 | N12: 1.17 | O12: 0.38 | P12: 0.68 | Q12: 3.39 | R12: 0.29 | S12: 2.46 | T12: 1.83 | U12: 8.01 | V12: 1.88 | W12: 0.56 | X12: 1.28 | Y12: 1.22 | Z12: 0.84 | AA12: 1.62 | AB12: 0.13 | AC12: 0.93 | AD12: 0.11 | AE12: 0.01 | AF12: 0.22 | AG12: 0.13 | AH12: 25.51 | AI12: 2.22 | AJ12: 0.58 | AK12: 2.48 | AL12: 6.27
A13: 其中: 直接投资 | C13: 13.13 | D13: 2.66 | E13: 0.63 | F13: 0.02 | G13: 0.07 | H13: 0.07 | I13: 0.11 | J13: 0.09 | K13: 18.79 | L13: 9.23 | M13: 3.90 | N13: 0.24 | O13: 0.18 | P13: 0.33 | Q13: 2.69 | R13: 0.21 | S13: 0.96 | T13: 1.70 | U13: 5.28 | V13: 0.16 | W13: 0.52 | X13: 0.22 | Y13: 0.58 | Z13: 0.02 | AA13: 1.01 | AB13: 0.10 | AC13: 0.52 | AD13: 0.01 | AE13: 0.00 | AF13: 0.08 | AG13: 0.00 | AH13: 25.45 | AI13: 1.66 | AJ13: 0.54 | AK13: 1.36 | AL13: 3.43
A14: 证券投资 | C14: 18.65 | D14: 0.00 | E14: 1.03 | F14: 0.00 | G14: 0.01 | H14: 0.00 | I14: 0.00 | J14: 0.00 | K14: 68.57 | L14: 2.40 | M14: 1.42 | N14: 0.01 | O14: 0.01 | P14: 0.00 | Q14: 0.00 | R14: 0.00 | S14: 0.00 | T14: 0.13 | U14: 0.50 | V14: 0.00 | W14: 0.04 | X14: 0.47 | Y14: 0.20 | Z14: 0.00 | AA14: 0.00 | AB14: 0.00 | AC14: 0.00 | AD14: 0.00 | AE14: 0.00 | AF14: 0.00 | AG14: 0.00 | AH14: 0.02 | AI14: 0.16 | AJ14: 0.00 | AK14: 0.50 | AL14: 2.21
A15: 二、售汇 | C15: 354.07 | D15: 29.04 | E15: 18.77 | F15: 5.18 | G15: 5.57 | H15: 19.28 | I15: 9.34 | J15: 7.37 | K15: 366.85 | L15: 95.58 | M15: 62.56 | N15: 24.26 | O15: 27.19 | P15: 9.38 | Q15: 59.61 | R15: 14.83 | S15: 15.75 | T15: 10.87 | U15: 87.56 | V15: 13.87 | W15: 15.23 | X15: 16.99 | Y15: 21.59 | Z15: 1.40 | AA15: 6.66 | AB15: 0.03 | AC15: 15.73 | AD15: 4.56 | AE15: 0.17 | AF15: 1.29 | AG15: 2.71 | AH15: 9.45 | AI15: 61.60 | AJ15: 44.73 | AK15: 25.17 | AL15: 94.58
A16: (一）银行自身 | C16: 22.68 | D16: 0.00 | E16: 0.00 | F16: 0.00 | G16: 0.00 | H16: 0.02 | I16: 0.00 | J16: 0.00 | K16: 35.22 | L16: 0.04 | M16: 0.64 | N16: 0.00 | O16: 1.42 | P16: 0.00 | Q16: 0.00 | R16: 0.00 | S16: 0.00 | T16: 0.00 | U16: 0.00 | V16: 0.00 | W16: 0.00 | X16: 0.00 | Y16: 0.00 | Z16: 0.00 | AA16: 0.00 | AB16: 0.00 | AC16: 0.00 | AD16: 0.00 | AE16: 0.00 | AF16: 0.00 | AG16: 0.00 | AH16: 0.00 | AI16: 27.08 | AJ16: 0.43 | AK16: 0.00 | AL16: 2.35
A17: (二）银行代客 | C17: 331.40 | D17: 29.04 | E17: 18.77 | F17: 5.18 | G17: 5.57 | H17: 19.26 | I17: 9.34 | J17: 7.37 | K17: 331.64 | L17: 95.54 | M17: 61.92 | N17: 24.26 | O17: 25.76 | P17: 9.38 | Q17: 59.60 | R17: 14.83 | S17: 15.75 | T17: 10.87 | U17: 87.56 | V17: 13.87 | W17: 15.23 | X17: 16.99 | Y17: 21.59 | Z17: 1.40 | AA17: 6.66 | AB17: 0.03 | AC17: 15.73 | AD17: 4.56 | AE17: 0.17 | AF17: 1.29 | AG17: 2.71 | AH17: 9.45 | AI17: 34.52 | AJ17: 44.30 | AK17: 25.17 | AL17: 92.23
A18: 1.经常项目 | C18: 305.33 | D18: 27.33 | E18: 15.43 | F18: 5.13 | G18: 5.36 | H18: 18.27 | I18: 9.21 | J18: 7.13 | K18: 228.43 | L18: 89.01 | M18: 56.71 | N18: 23.74 | O18: 21.92 | P18: 7.79 | Q18: 54.68 | R18: 14.06 | S18: 15.38 | T18: 9.48 | U18: 84.34 | V18: 11.14 | W18: 12.99 | X18: 16.01 | Y18: 17.77 | Z18: 1.25 | AA18: 4.87 | AB18: 0.03 | AC18: 10.10 | AD18: 3.74 | AE18: 0.10 | AF18: 0.85 | AG18: 2.37 | AH18: 8.42 | AI18: 32.13 | AJ18: 43.67 | AK18: 23.89 | AL18: 72.20
A19: 1.1货物贸易 | C19: 272.51 | D19: 21.62 | E19: 13.28 | F19: 3.93 | G19: 4.68 | H19: 15.99 | I19: 7.99 | J19: 5.74 | K19: 177.95 | L19: 78.06 | M19: 41.37 | N19: 22.28 | O19: 17.85 | P19: 6.83 | Q19: 49.90 | R19: 11.67 | S19: 12.02 | T19: 7.80 | U19: 71.09 | V19: 9.89 | W19: 12.25 | X19: 14.23 | Y19: 13.88 | Z19: 0.76 | AA19: 4.06 | AB19: 0.00 | AC19: 8.26 | AD19: 3.39 | AE19: 0.04 | AF19: 0.58 | AG19: 1.86 | AH19: 6.83 | AI19: 29.19 | AJ19: 41.31 | AK19: 20.79 | AL19: 60.60
A20: 1.2服务贸易 | C20: 30.72 | D20: 3.42 | E20: 1.80 | F20: 1.15 | G20: 0.67 | H20: 2.19 | I20: 0.98 | J20: 1.32 | K20: 42.43 | L20: 9.61 | M20: 9.93 | N20: 1.40 | O20: 2.56 | P20: 0.94 | Q20: 4.45 | R20: 2.06 | S20: 3.23 | T20: 1.60 | U20: 10.75 | V20: 0.59 | W20: 0.70 | X20: 1.45 | Y20: 3.45 | Z20: 0.37 | AA20: 0.68 | AB20: 0.03 | AC20: 1.73 | AD20: 0.34 | AE20: 0.06 | AF20: 0.26 | AG20: 0.48 | AH20: 1.50 | AI20: 2.50 | AJ20: 2.21 | AK20: 2.95 | AL20: 9.86
A21: 1.3收益和经常转移 | C21: 2.10 | D21: 2.30 | E21: 0.35 | F21: 0.05 | G21: 0.01 | H21: 0.08 | I21: 0.24 | J21: 0.07 | K21: 8.05 | L21: 1.34 | M21: 5.42 | N21: 0.07 | O21: 1.51 | P21: 0.03 | Q21: 0.32 | R21: 0.33 | S21: 0.14 | T21: 0.08 | U21: 2.50 | V21: 0.66 | W21: 0.04 | X21: 0.33 | Y21: 0.44 | Z21: 0.12 | AA21: 0.13 | AB21: 0.00 | AC21: 0.11 | AD21: 0.01 | AE21: 0.01 | AF21: 0.01 | AG21: 0.03 | AH21: 0.09 | AI21: 0.43 | AJ21: 0.15 | AK21: 0.15 | AL21: 1.74
A22: 2.资本与金融项目 | C22: 26.07 | D22: 1.71 | E22: 3.34 | F22: 0.05 | G22: 0.21 | H22: 0.99 | I22: 0.12 | J22: 0.24 | K22: 103.20 | L22: 6.53 | M22: 5.21 | N22: 0.52 | O22: 3.85 | P22: 1.59 | Q22: 4.93 | R22: 0.77 | S22: 0.36 | T22: 1.39 | U22: 3.23 | V22: 2.73 | W22: 2.24 | X22: 0.98 | Y22: 3.82 | Z22: 0.15 | AA22: 1.79 | AB22: 0.00 | AC22: 5.63 | AD22: 0.82 | AE22: 0.07 | AF22: 0.44 | AG22: 0.35 | AH22: 1.03 | AI22: 2.39 | AJ22: 0.63 | AK22: 1.28 | AL22: 20.04
A23: 其中: 直接投资 | C23: 5.54 | D23: 0.92 | E23: 0.86 | F23: 0.01 | G23: 0.20 | H23: 0.24 | I23: 0.06 | J23: 0.20 | K23: 9.09 | L23: 2.41 | M23: 3.44 | N23: 0.09 | O23: 2.71 | P23: 0.94 | Q23: 2.72 | R23: 0.22 | S23: 0.04 | T23: 0.08 | U23: 0.97 | V23: 1.34 | W23: 2.07 | X23: 0.59 | Y23: 2.42 | Z23: 0.00 | AA23: 1.00 | AB23: 0.00 | AC23: 0.04 | AD23: 0.01 | AE23: 0.00 | AF23: 0.00 | AG23: 0.07 | AH23: 0.82 | AI23: 0.14 | AJ23: 0.44 | AK23: 0.45 | AL23: 2.49
A24: 证券投资 | C24: 15.98 | D24: 0.00 | E24: 0.00 | F24: 0.00 | G24: 0.00 | H24: 0.00 | I24: 0.00 | J24: 0.00 | K24: 87.99 | L24: 1.19 | M24: 0.12 | N24: 0.00 | O24: 0.02 | P24: 0.00 | Q24: 0.35 | R24: 0.00 | S24: 0.00 | T24: 0.00 | U24: 1.12 | V24: 0.00 | W24: 0.11 | X24: 0.00 | Y24: 0.00 | Z24: 0.00 | AA24: 0.00 | AB24: 0.00 | AC24: 0.00 | AD24: 0.00 | AE24: 0.00 | AF24: 0.00 | AG24: 0.00 | AH24: 0.04 | AI24: 0.00 | AJ24: 0.14 | AK24: 0.00 | AL24: 16.38
A25: 三、差额 | C25: =C5-C15 -> -215.03 | D25: =D5-D15 -> -0.97 | E25: 1.23 | F25: 2.92 | G25: -2.86 | H25: -11.39 | I25: -6.40 | J25: -4.62 | K25: -96.16 | L25: 97.72 | M25: 100.11 | N25: -3.04 | O25: 12.56 | P25: 3.13 | Q25: 8.43 | R25: 8.80 | S25: 5.75 | T25: 2.29 | U25: 100.21 | V25: -6.20 | W25: -13.23 | X25: 4.77 | Y25: 0.06 | Z25: 1.88 | AA25: -2.85 | AB25: 0.11 | AC25: -3.04 | AD25: -3.58 | AE25: -0.06 | AF25: 0.15 | AG25: -0.69 | AH25: 27.63 | AI25: 20.54 | AJ25: -13.71 | AK25: 7.46 | AL25: 20.01
A26: (一）银行自身 | C26: =C6-C16 -> 27.36 | D26: 0.19 | E26: 0.00 | F26: -0.00 | G26: 0.00 | H26: -0.02 | I26: -0.00 | J26: 0.00 | K26: -18.14 | L26: -0.03 | M26: 4.92 | N26: -0.00 | O26: 1.76 | P26: 0.00 | Q26: 0.00 | R26: 0.00 | S26: 0.00 | T26: 0.00 | U26: 0.01 | V26: 0.00 | W26: -0.00 | X26: 0.01 | Y26: 0.00 | Z26: -0.00 | AA26: -0.00 | AB26: 0.00 | AC26: 0.00 | AD26: 0.00 | AE26: 0.00 | AF26: 0.00 | AG26: 0.00 | AH26: 0.00 | AI26: -0.19 | AJ26: -0.41 | AK26: 2.64 | AL26: -1.83
A27: (二）银行代客 | C27: -242.39 | D27: -1.15 | E27: 1.23 | F27: 2.92 | G27: -2.86 | H27: -11.37 | I27: -6.40 | J27: -4.62 | K27: -78.02 | L27: 97.74 | M27: 95.19 | N27: -3.04 | O27: 10.80 | P27: 3.13 | Q27: 8.43 | R27: 8.80 | S27: 5.74 | T27: 2.28 | U27: 100.20 | V27: -6.20 | W27: -13.23 | X27: 4.76 | Y27: 0.06 | Z27: 1.88 | AA27: -2.84 | AB27: 0.11 | AC27: -3.04 | AD27: -3.58 | AE27: -0.06 | AF27: 0.15 | AG27: -0.69 | AH27: 27.63 | AI27: 20.74 | AJ27: -13.30 | AK27: 4.82 | AL27: 21.84
A28: 1.经常项目 | C28: -249.75 | D28: -2.14 | E28: 2.82 | F28: 2.95 | G28: -3.00 | H28: -10.46 | I28: -6.39 | J28: -4.48 | K28: -63.69 | L28: 87.94 | M28: 93.63 | N28: -3.69 | O28: 14.27 | P28: 4.04 | Q28: 9.96 | R28: 9.28 | S28: 3.65 | T28: 1.84 | U28: 95.42 | V28: -5.35 | W28: -11.55 | X28: 4.46 | Y28: 2.66 | Z28: 1.19 | AA28: -2.68 | AB28: -0.02 | AC28: 1.66 | AD28: -2.86 | AE28: -0.00 | AF28: 0.37 | AG28: -0.48 | AH28: 3.15 | AI28: 20.91 | AJ28: -13.25 | AK28: 3.62 | AL28: 35.61
A29: 1.1货物贸易 | C29: -241.25 | D29: 0.14 | E29: 4.11 | F29: 3.84 | G29: -2.46 | H29: -9.20 | I29: -5.68 | J29: -3.47 | K29: -54.26 | L29: 91.33 | M29: 104.88 | N29: -2.85 | O29: 16.50 | P29: 4.71 | Q29: 12.43 | R29: 10.75 | S29: 5.68 | T29: 2.59 | U29: 99.40 | V29: -4.41 | W29: -11.00 | X29: 5.35 | Y29: 4.66 | Z29: 1.60 | AA29: -2.22 | AB29: 0.00 | AC29: 2.20 | AD29: -2.84 | AE29: 0.06 | AF29: 0.60 | AG29: -0.13 | AH29: 2.92 | AI29: 22.58 | AJ29: -12.29 | AK29: 4.48 | AL29: 36.41
A30: 1.2服务贸易 | C30: -11.23 | D30: -0.70 | E30: -1.33 | F30: -0.94 | G30: -0.58 | H30: -1.78 | I30: -0.82 | J30: -1.16 | K30: -5.79 | L30: -3.50 | M30: -7.78 | N30: -0.99 | O30: -1.94 | P30: -0.82 | Q30: -3.05 | R30: -1.74 | S30: -2.53 | T30: -0.98 | U30: -3.45 | V30: -0.44 | W30: -0.56 | X30: -0.75 | Y30: -1.96 | Z30: -0.34 | AA30: -0.58 | AB30: -0.02 | AC30: -0.69 | AD30: -0.30 | AE30: -0.05 | AF30: -0.24 | AG30: -0.37 | AH30: -0.00 | AI30: -1.40 | AJ30: -0.97 | AK30: -1.21 | AL30: -0.50
A31: 1.3收益和经常转移 | C31: 2.73 | D31: -1.58 | E31: 0.05 | F31: 0.05 | G31: 0.04 | H31: 0.53 | I31: 0.12 | J31: 0.16 | K31: -3.63 | L31: 0.12 | M31: -3.47 | N31: 0.15 | O31: -0.29 | P31: 0.15 | Q31: 0.58 | R31: 0.27 | S31: 0.49 | T31: 0.22 | U31: -0.52 | V31: -0.51 | W31: 0.01 | X31: -0.14 | Y31: -0.05 | Z31: -0.08 | AA31: 0.12 | AB31: 0.00 | AC31: 0.14 | AD31: 0.28 | AE31: -0.00 | AF31: 0.01 | AG31: 0.02 | AH31: 0.23 | AI31: -0.28 | AJ31: 0.02 | AK31: 0.34 | AL31: -0.30
A32: 2.资本与金融项目 | C32: 7.37 | D32: 0.98 | E32: -1.59 | F32: -0.03 | G32: 0.14 | H32: -0.91 | I32: -0.01 | J32: -0.15 | K32: -14.33 | L32: 9.80 | M32: 1.56 | N32: 0.65 | O32: -3.47 | P32: -0.91 | Q32: -1.53 | R32: -0.48 | S32: 2.10 | T32: 0.44 | U32: 4.78 | V32: -0.85 | W32: -1.68 | X32: 0.30 | Y32: -2.60 | Z32: 0.70 | AA32: -0.17 | AB32: 0.13 | AC32: =AC12-AC22 -> -4.70 | AD32: -0.72 | AE32: -0.05 | AF32: -0.22 | AG32: -0.22 | AH32: 24.48 | AI32: -0.17 | AJ32: -0.05 | AK32: 1.20 | AL32: -13.77
A33: 其中: 直接投资 | C33: 7.59 | D33: 1.75 | E33: -0.23 | F33: 0.00 | G33: -0.13 | H33: -0.17 | I33: 0.06 | J33: -0.11 | K33: 9.71 | L33: 6.82 | M33: 0.46 | N33: 0.15 | O33: -2.52 | P33: -0.61 | Q33: -0.03 | R33: -0.01 | S33: 0.92 | T33: 1.62 | U33: 4.30 | V33: -1.17 | W33: -1.56 | X33: -0.37 | Y33: -1.84 | Z33: 0.02 | AA33: 0.01 | AB33: 0.10 | AC33: 0.48 | AD33: -0.01 | AE33: -0.00 | AF33: 0.08 | AG33: -0.07 | AH33: 24.64 | AI33: 1.53 | AJ33: 0.10 | AK33: 0.90 | AL33: 0.94
A34: 证券投资 | C34: 2.67 | D34: 0.00 | E34: 1.03 | F34: 0.00 | G34: 0.01 | H34: 0.00 | I34: 0.00 | J34: -0.00 | K34: -19.42 | L34: 1.21 | M34: 1.29 | N34: 0.01 | O34: -0.01 | P34: 0.00 | Q34: -0.35 | R34: -0.00 | S34: 0.00 | T34: 0.13 | U34: -0.62 | V34: -0.00 | W34: -0.07 | X34: 0.47 | Y34: 0.20 | Z34: -0.00 | AA34: 0.00 | AB34: 0.00 | AC34: 0.00 | AD34: 0.00 | AE34: 0.00 | AF34: 0.00 | AG34: 0.00 | AH34: -0.02 | AI34: 0.15 | AJ34: -0.14 | AK34: 0.50 | AL34: -14.17
A35: 注： 1.分地区是指办理结售汇业务的银行所在地。其中，本表中辽宁不含大连，浙江不含宁波，福建不含厦门，山东不含青岛，广东不含深圳。

Sheet 2022年3月（按美元）
A2: 2022年3月银行结售汇数据（分地区）
A3: 单位：亿美元
A4: 项目 | C4: 北京 | D4: 天津 | E4: 河北 | F4: 山西 | G4: 内蒙古 | H4: 辽宁 | I4: 吉林 | J4: 黑龙江 | K4: 上海 | L4: 江苏 | M4: 浙江 | N4: 安徽 | O4: 福建 | P4: 江西 | Q4: 山东 | R4: 河南 | S4: 湖北 | T4: 湖南 | U4: 广东 | V4: 广西 | W4: 海南 | X4: 重庆 | Y4: 四川 | Z4: 贵州 | AA4: 云南 | AB4: 西藏 | AC4: 陕西 | AD4: 甘肃 | AE4: 青海 | AF4: 宁夏 | AG4: 新疆 | AH4: 大连 | AI4: 宁波 | AJ4: 厦门 | AK4: 青岛 | AL4: 深圳
A5: 一、结汇 | C5: 224.22 | D5: 42.04 | E5: 31.66 | F5: 6.87 | G5: 4.96 | H5: 10.39 | I5: 1.71 | J5: 4.01 | K5: 386.88 | L5: 318.68 | M5: 306.65 | N5: 40.28 | O5: 78.07 | P5: 22.42 | Q5: 114.58 | R5: 40.80 | S5: 36.82 | T5: 39.11 | U5: 272.58 | V5: 10.67 | W5: 3.63 | X5: 39.10 | Y5: 36.91 | Z5: 3.27 | AA5: 9.98 | AB5: 0.01 | AC5: 22.49 | AD5: 2.26 | AE5: 0.19 | AF5: 2.08 | AG5: 4.12 | AH5: 26.57 | AI5: 134.20 | AJ5: 45.21 | AK5: 50.87 | AL5: 206.11
A6: (一）银行自身 | C6: 101.95 | D6: 0.01 | E6: 0.00 | F6: 0.00 | G6: 0.00 | H6: 0.02 | I6: 0.00 | J6: 0.00 | K6: 26.35 | L6: 0.04 | M6: 2.95 | N6: 0.00 | O6: 9.20 | P6: 0.00 | Q6: 0.03 | R6: 0.00 | S6: 0.00 | T6: 0.00 | U6: 1.26 | V6: 0.00 | W6: 0.00 | X6: 0.00 | Y6: 0.14 | Z6: 0.00 | AA6: 0.00 | AB6: 0.00 | AC6: 0.00 | AD6: 0.00 | AE6: 0.00 | AF6: 0.00 | AG6: 0.00 | AH6: 0.00 | AI6: 35.51 | AJ6: 0.00 | AK6: 0.09 | AL6: 3.07
A7: (二）银行代客 | C7: 122.27 | D7: 42.03 | E7: 31.65 | F7: 6.87 | G7: 4.96 | H7: 10.37 | I7: 1.71 | J7: 4.01 | K7: 360.54 | L7: 318.63 | M7: 303.70 | N7: 40.28 | O7: 68.86 | P7: 22.41 | Q7: 114.55 | R7: 40.80 | S7: 36.81 | T7: 39.11 | U7: 271.33 | V7: 10.67 | W7: 3.63 | X7: 39.10 | Y7: 36.77 | Z7: 3.27 | AA7: 9.98 | AB7: 0.01 | AC7: 22.49 | AD7: 2.26 | AE7: 0.19 | AF7: 2.08 | AG7: 4.12 | AH7: 26.57 | AI7: 98.69 | AJ7: 45.21 | AK7: 50.77 | AL7: 203.04
A8: 1.经常项目 | C8: 84.24 | D8: 35.48 | E8: 28.29 | F8: 6.83 | G8: 4.78 | H8: 9.76 | I8: 1.67 | J8: 3.95 | K8: 236.65 | L8: 289.63 | M8: 275.06 | N8: 37.44 | O8: 65.17 | P8: 20.24 | Q8: 102.28 | R8: 36.94 | S8: 26.17 | T8: 21.64 | U8: 258.30 | V8: 7.76 | W8: 2.82 | X8: 38.38 | Y8: 28.77 | Z8: 2.55 | AA8: 3.54 | AB8: 0.01 | AC8: 18.92 | AD8: 1.92 | AE8: 0.19 | AF8: 1.92 | AG8: 3.40 | AH8: 16.65 | AI8: 96.27 | AJ8: 44.48 | AK8: 46.30 | AL8: 175.29
A9: 1.1货物贸易 | C9: 52.72 | D9: 31.86 | E9: 26.61 | F9: 6.47 | G9: 4.49 | H9: 8.67 | I9: 1.45 | J9: 3.28 | K9: 146.39 | L9: 280.36 | M9: 269.16 | N9: 36.50 | O9: 62.48 | P9: 19.67 | Q9: 98.75 | R9: 35.51 | S9: 24.44 | T9: 20.21 | U9: 243.58 | V9: 7.24 | W9: 2.39 | X9: 37.08 | Y9: 25.52 | Z9: 2.39 | AA9: 3.12 | AB9: 0.00 | AC9: 17.55 | AD9: 1.76 | AE9: 0.17 | AF9: 1.85 | AG9: 3.09 | AH9: 13.87 | AI9: 93.47 | AJ9: 42.35 | AK9: 42.50 | AL9: 149.26
A10: 1.2服务贸易 | C10: 24.81 | D10: 2.78 | E10: 1.08 | F10: 0.20 | G10: 0.17 | H10: 0.46 | I10: 0.03 | J10: 0.25 | K10: 83.21 | L10: 7.08 | M10: 3.47 | N10: 0.64 | O10: 1.07 | P10: 0.29 | Q10: 2.14 | R10: 0.57 | S10: 1.05 | T10: 1.01 | U10: 10.80 | V10: 0.29 | W10: 0.35 | X10: 1.06 | Y10: 2.64 | Z10: 0.11 | AA10: 0.18 | AB10: 0.00 | AC10: 1.06 | AD10: 0.06 | AE10: 0.01 | AF10: 0.04 | AG10: 0.22 | AH10: 2.32 | AI10: 2.51 | AJ10: 1.84 | AK10: 3.10 | AL10: 24.14
A11: 1.3收益和经常转移 | C11: 6.71 | D11: 0.84 | E11: 0.60 | F11: 0.16 | G11: 0.12 | H11: 0.64 | I11: 0.19 | J11: 0.43 | K11: 7.05 | L11: 2.19 | M11: 2.43 | N11: 0.30 | O11: 1.62 | P11: 0.28 | Q11: 1.40 | R11: 0.86 | S11: 0.68 | T11: 0.42 | U11: 3.92 | V11: 0.22 | W11: 0.08 | X11: 0.24 | Y11: 0.61 | Z11: 0.05 | AA11: 0.25 | AB11: 0.00 | AC11: 0.31 | AD11: 0.11 | AE11: 0.01 | AF11: 0.03 | AG11: 0.09 | AH11: 0.45 | AI11: 0.28 | AJ11: 0.29 | AK11: 0.70 | AL11: 1.89
A12: 2.资本与金融项目 | C12: 38.03 | D12: 6.55 | E12: 3.36 | F12: 0.04 | G12: 0.19 | H12: 0.61 | I12: 0.04 | J12: 0.05 | K12: 123.89 | L12: 29.00 | M12: 28.63 | N12: 2.84 | O12: 3.70 | P12: 2.17 | Q12: 12.26 | R12: 3.86 | S12: 10.64 | T12: 17.47 | U12: 13.02 | V12: 2.91 | W12: 0.82 | X12: 0.72 | Y12: 8.00 | Z12: 0.72 | AA12: 6.43 | AB12: 0.00 | AC12: 3.58 | AD12: 0.34 | AE12: 0.00 | AF12: 0.15 | AG12: 0.72 | AH12: 9.91 | AI12: 2.43 | AJ12: 0.72 | AK12: 4.48 | AL12: 27.75
A13: 其中: 直接投资 | C13: 24.69 | D13: 2.97 | E13: 0.31 | F13: 0.04 | G13: 0.10 | H13: 0.04 | I13: 0.04 | J13: 0.04 | K13: 20.21 | L13: 15.91 | M13: 12.53 | N13: 0.86 | O13: 1.67 | P13: 0.91 | Q13: 9.36 | R13: 1.58 | S13: 5.35 | T13: 16.93 | U13: 5.51 | V13: 0.42 | W13: 0.77 | X13: 0.53 | Y13: 3.81 | Z13: 0.08 | AA13: 0.37 | AB13: 0.00 | AC13: 1.60 | AD13: 0.22 | AE13: 0.00 | AF13: 0.14 | AG13: 0.30 | AH13: 9.84 | AI13: 0.99 | AJ13: 0.49 | AK13: 1.50 | AL13: 15.13
A14: 证券投资 | C14: 10.65 | D14: 2.20 | E14: 0.07 | F14: 0.00 | G14: 0.02 | H14: 0.50 | I14: 0.00 | J14: 0.00 | K14: 95.71 | L14: 3.96 | M14: 14.12 | N14: 0.92 | O14: 1.75 | P14: 0.95 | Q14: 0.00 | R14: 1.58 | S14: 2.71 | T14: 0.00 | U14: 1.33 | V14: 0.52 | W14: 0.03 | X14: 0.04 | Y14: 1.20 | Z14: 0.00 | AA14: 0.00 | AB14: 0.00 | AC14: 0.75 | AD14: 0.00 | AE14: 0.00 | AF14: 0.00 | AG14: 0.01 | AH14: 0.02 | AI14: 0.79 | AJ14: 0.03 | AK14: 2.24 | AL14: 11.14
A15: 二、售汇 | C15: 477.05 | D15: 39.64 | E15: 20.28 | F15: 5.98 | G15: 8.38 | H15: 18.12 | I15: 0.77 | J15: 8.62 | K15: 537.67 | L15: 146.81 | M15: 109.11 | N15: 33.26 | O15: 43.86 | P15: 13.52 | Q15: 81.62 | R15: 22.13 | S15: 26.86 | T15: 16.58 | U15: 144.95 | V15: 21.51 | W15: 14.84 | X15: 72.30 | Y15: 51.00 | Z15: 2.37 | AA15: 12.33 | AB15: 0.02 | AC15: 18.62 | AD15: 13.45 | AE15: 0.17 | AF15: 0.79 | AG15: 4.36 | AH15: 15.97 | AI15: 83.40 | AJ15: 70.03 | AK15: 41.60 | AL15: 134.74
A16: (一）银行自身 | C16: 46.70 | D16: 0.00 | E16: 0.00 | F16: 0.00 | G16: 0.00 | H16: -0.02 | I16: 0.00 | J16: 0.01 | K16: 11.12 | L16: 0.03 | M16: 7.69 | N16: 0.01 | O16: 7.39 | P16: 0.00 | Q16: 0.03 | R16: 0.03 | S16: 0.00 | T16: 0.00 | U16: 0.63 | V16: 0.00 | W16: 0.00 | X16: 0.00 | Y16: 0.00 | Z16: 0.00 | AA16: 0.00 | AB16: 0.00 | AC16: 0.00 | AD16: 0.00 | AE16: 0.00 | AF16: 0.00 | AG16: 0.00 | AH16: 0.00 | AI16: 35.44 | AJ16: 0.15 | AK16: 0.00 | AL16: 3.21
A17: (二）银行代客 | C17: 430.35 | D17: 39.64 | E17: 20.28 | F17: 5.98 | G17: 8.38 | H17: 18.14 | I17: 0.77 | J17: 8.60 | K17: 526.55 | L17: 146.78 | M17: 101.41 | N17: 33.25 | O17: 36.47 | P17: 13.52 | Q17: 81.59 | R17: 22.09 | S17: 26.86 | T17: 16.58 | U17: 144.32 | V17: 21.51 | W17: 14.83 | X17: 72.30 | Y17: 51.00 | Z17: 2.37 | AA17: 12.33 | AB17: 0.02 | AC17: 18.62 | AD17: 13.45 | AE17: 0.17 | AF17: 0.79 | AG17: 4.36 | AH17: 15.96 | AI17: 47.96 | AJ17: 69.88 | AK17: 41.60 | AL17: 131.53
A18: 1.经常项目 | C18: 378.55 | D18: 35.34 | E18: 18.26 | F18: 5.64 | G18: 7.84 | H18: 17.73 | I18: 0.68 | J18: 8.55 | K18: 289.34 | L18: 127.74 | M18: 86.69 | N18: 26.35 | O18: 34.10 | P18: 10.47 | Q18: 76.49 | R18: 18.15 | S18: 25.62 | T18: 15.84 | U18: 123.09 | V18: 17.60 | W18: 13.17 | X18: 71.67 | Y18: 45.31 | Z18: 1.06 | AA18: 7.58 | AB18: 0.01 | AC18: 13.66 | AD18: 8.20 | AE18: 0.15 | AF18: 0.55 | AG18: 3.20 | AH18: 12.54 | AI18: 44.45 | AJ18: 69.23 | AK18: 39.43 | AL18: 108.03
A19: 1.1货物贸易 | C19: 338.06 | D19: 24.47 | E19: 15.98 | F19: 4.13 | G19: 6.99 | H19: 15.25 | I19: 0.35 | J19: 6.96 | K19: 230.64 | L19: 111.44 | M19: 65.82 | N19: 23.77 | O19: 30.52 | P19: 9.01 | Q19: 70.11 | R19: 15.05 | S19: 16.74 | T19: 13.69 | U19: 100.16 | V19: 16.38 | W19: 11.66 | X19: 67.96 | Y19: 40.11 | Z19: 0.53 | AA19: 6.48 | AB19: 0.00 | AC19: 11.33 | AD19: 7.69 | AE19: 0.05 | AF19: 0.36 | AG19: 2.38 | AH19: 10.37 | AI19: 41.73 | AJ19: 66.15 | AK19: 34.55 | AL19: 93.01
A20: 1.2服务贸易 | C20: 36.30 | D20: 5.32 | E20: 2.11 | F20: 1.31 | G20: 0.79 | H20: 2.24 | I20: 0.17 | J20: 1.47 | K20: 51.65 | L20: 12.99 | M20: 9.93 | N20: 2.14 | O20: 2.40 | P20: 1.26 | Q20: 5.06 | R20: 2.44 | S20: 3.59 | T20: 1.98 | U20: 17.91 | V20: 0.86 | W20: 1.44 | X20: 3.24 | Y20: 4.47 | Z20: 0.48 | AA20: 0.84 | AB20: 0.01 | AC20: 1.94 | AD20: 0.43 | AE20: 0.08 | AF20: 0.16 | AG20: 0.65 | AH20: 1.95 | AI20: 2.51 | AJ20: 2.81 | AK20: 3.61 | AL20: 12.38
A21: 1.3收益和经常转移 | C21: 4.20 | D21: 5.55 | E21: 0.17 | F21: 0.19 | G21: 0.06 | H21: 0.25 | I21: 0.16 | J21: 0.13 | K21: 7.05 | L21: 3.30 | M21: 10.94 | N21: 0.44 | O21: 1.18 | P21: 0.20 | Q21: 1.33 | R21: 0.67 | S21: 5.29 | T21: 0.18 | U21: 5.01 | V21: 0.37 | W21: 0.07 | X21: 0.48 | Y21: 0.73 | Z21: 0.05 | AA21: 0.26 | AB21: 0.00 | AC21: 0.39 | AD21: 0.08 | AE21: 0.02 | AF21: 0.03 | AG21: 0.18 | AH21: 0.22 | AI21: 0.20 | AJ21: 0.27 | AK21: 1.28 | AL21: 2.64
A22: 2.资本与金融项目 | C22: 51.80 | D22: 4.29 | E22: 2.02 | F22: 0.34 | G22: 0.54 | H22: 0.41 | I22: 0.08 | J22: 0.05 | K22: 237.21 | L22: 19.04 | M22: 14.72 | N22: 6.90 | O22: 2.37 | P22: 3.05 | Q22: 5.10 | R22: 3.94 | S22: 1.24 | T22: 0.74 | U22: 21.23 | V22: 3.91 | W22: 1.66 | X22: 0.62 | Y22: 5.69 | Z22: 1.31 | AA22: 4.75 | AB22: 0.00 | AC22: 4.96 | AD22: 5.25 | AE22: 0.02 | AF22: 0.25 | AG22: 1.16 | AH22: 3.42 | AI22: 3.51 | AJ22: 0.65 | AK22: 2.17 | AL22: 23.50
A23: 其中: 直接投资 | C23: 17.29 | D23: 3.81 | E23: 0.62 | F23: 0.03 | G23: 0.18 | H23: 0.04 | I23: 0.00 | J23: 0.02 | K23: 26.17 | L23: 6.51 | M23: 7.04 | N23: 2.59 | O23: 1.25 | P23: 1.24 | Q23: 1.56 | R23: 0.63 | S23: 0.42 | T23: 0.09 | U23: 9.82 | V23: 0.04 | W23: 0.93 | X23: 0.23 | Y23: 2.84 | Z23: 0.14 | AA23: 2.95 | AB23: 0.00 | AC23: 0.12 | AD23: 3.00 | AE23: 0.00 | AF23: 0.01 | AG23: 0.24 | AH23: 2.02 | AI23: 1.24 | AJ23: 0.33 | AK23: 0.63 | AL23: 6.21
A24: 证券投资 | C24: 24.51 | D24: 0.08 | E24: 0.07 | F24: 0.00 | G24: 0.00 | H24: 0.00 | I24: 0.00 | J24: 0.00 | K24: 201.03 | L24: 2.70 | M24: 3.14 | N24: 0.58 | O24: 0.00 | P24: 0.00 | Q24: 0.14 | R24: 0.07 | S24: 0.00 | T24: 0.00 | U24: 2.65 | V24: 0.05 | W24: 0.06 | X24: 0.00 | Y24: 0.00 | Z24: 0.00 | AA24: 0.52 | AB24: 0.00 | AC24: 0.08 | AD24: 1.46 | AE24: 0.00 | AF24: 0.00 | AG24: 0.00 | AH24: 0.05 | AI24: 0.07 | AJ24: 0.00 | AK24: 0.98 | AL24: 15.82
A25: 三、差额 | C25: =C5-C15 -> -252.83 | D25: =D5-D15 -> 2.40 | E25: 11.38 | F25: 0.89 | G25: -3.42 | H25: -7.73 | I25: 0.94 | J25: -4.61 | K25: -150.79 | L25: 171.87 | M25: 197.54 | N25: 7.02 | O25: 34.21 | P25: 8.90 | Q25: 32.96 | R25: 18.67 | S25: 9.95 | T25: 22.53 | U25: 127.64 | V25: -10.84 | W25: -11.20 | X25: -33.19 | Y25: -14.09 | Z25: 0.90 | AA25: -2.36 | AB25: -0.01 | AC25: 3.87 | AD25: -11.18 | AE25: 0.02 | AF25: 1.28 | AG25: -0.24 | AH25: 10.60 | AI25: 50.80 | AJ25: -24.82 | AK25: 9.27 | AL25: 71.37
A26: (一）银行自身 | C26: =C6-C16 -> 55.25 | D26: 0.01 | E26: 0.00 | F26: -0.00 | G26: 0.00 | H26: 0.04 | I26: 0.00 | J26: -0.01 | K26: 15.23 | L26: 0.01 | M26: -4.74 | N26: -0.01 | O26: 1.81 | P26: 0.00 | Q26: 0.00 | R26: -0.03 | S26: 0.00 | T26: 0.00 | U26: 0.63 | V26: 0.00 | W26: -0.00 | X26: -0.00 | Y26: 0.14 | Z26: 0.00 | AA26: 0.00 | AB26: 0.00 | AC26: 0.00 | AD26: 0.00 | AE26: 0.00 | AF26: -0.00 | AG26: 0.00 | AH26: -0.00 | AI26: 0.07 | AJ26: -0.15 | AK26: 0.09 | AL26: -0.14
A27: (二）银行代客 | C27: -308.08 | D27: 2.39 | E27: 11.37 | F27: 0.89 | G27: -3.42 | H27: -7.77 | I27: 0.94 | J27: -4.60 | K27: -166.02 | L27: 171.85 | M27: 202.28 | N27: 7.03 | O27: 32.39 | P27: 8.89 | Q27: 32.96 | R27: 18.70 | S27: 9.95 | T27: 22.53 | U27: 127.01 | V27: -10.85 | W27: -11.20 | X27: -33.19 | Y27: -14.23 | Z27: 0.90 | AA27: -2.36 | AB27: -0.01 | AC27: 3.87 | AD27: -11.18 | AE27: 0.02 | AF27: 1.28 | AG27: -0.24 | AH27: 10.60 | AI27: 50.73 | AJ27: -24.67 | AK27: 9.17 | AL27: 71.51
A28: 1.经常项目 | C28: -294.31 | D28: 0.14 | E28: 10.03 | F28: 1.19 | G28: -3.07 | H28: -7.97 | I28: 0.98 | J28: -4.60 | K28: -52.70 | L28: 161.89 | M28: 188.37 | N28: 11.09 | O28: 31.06 | P28: 9.77 | Q28: 25.79 | R28: 18.79 | S28: 0.55 | T28: 5.80 | U28: 135.22 | V28: -9.84 | W28: -10.36 | X28: -33.29 | Y28: -16.54 | Z28: 1.49 | AA28: -4.04 | AB28: -0.01 | AC28: 5.26 | AD28: -6.28 | AE28: 0.04 | AF28: 1.38 | AG28: 0.20 | AH28: 4.11 | AI28: 51.82 | AJ28: -24.75 | AK28: 6.87 | AL28: 67.26
A29: 1.1货物贸易 | C29: -285.33 | D29: 7.38 | E29: 10.63 | F29: 2.34 | G29: -2.50 | H29: -6.58 | I29: 1.10 | J29: -3.68 | K29: -84.25 | L29: 168.92 | M29: 203.35 | N29: 12.73 | O29: 31.96 | P29: 10.66 | Q29: 28.64 | R29: 20.47 | S29: 7.71 | T29: 6.52 | U29: 143.42 | V29: -9.13 | W29: -9.27 | X29: -30.87 | Y29: -14.60 | Z29: 1.86 | AA29: -3.36 | AB29: -0.00 | AC29: 6.22 | AD29: -5.93 | AE29: 0.11 | AF29: 1.49 | AG29: 0.71 | AH29: 3.51 | AI29: 51.74 | AJ29: -23.80 | AK29: 7.95 | AL29: 56.25
A30: 1.2服务贸易 | C30: -11.49 | D30: -2.53 | E30: -1.03 | F30: -1.12 | G30: -0.62 | H30: -1.78 | I30: -0.14 | J30: -1.22 | K30: 31.56 | L30: -5.92 | M30: -6.46 | N30: -1.50 | O30: -1.33 | P30: -0.97 | Q30: -2.92 | R30: -1.87 | S30: -2.55 | T30: -0.96 | U30: -7.11 | V30: -0.56 | W30: -1.09 | X30: -2.18 | Y30: -1.84 | Z30: -0.37 | AA30: -0.67 | AB30: -0.01 | AC30: -0.88 | AD30: -0.37 | AE30: -0.07 | AF30: -0.11 | AG30: -0.43 | AH30: 0.37 | AI30: 0.00 | AJ30: -0.97 | AK30: -0.51 | AL30: 11.77
A31: 1.3收益和经常转移 | C31: 2.51 | D31: -4.71 | E31: 0.42 | F31: -0.04 | G31: 0.05 | H31: 0.39 | I31: 0.02 | J31: 0.30 | K31: 0.00 | L31: -1.11 | M31: -8.51 | N31: -0.14 | O31: 0.44 | P31: 0.08 | Q31: 0.08 | R31: 0.19 | S31: -4.61 | T31: 0.24 | U31: -1.09 | V31: -0.15 | W31: 0.00 | X31: -0.24 | Y31: -0.11 | Z31: 0.00 | AA31: -0.01 | AB31: 0.00 | AC31: -0.09 | AD31: 0.02 | AE31: -0.01 | AF31: 0.00 | AG31: -0.09 | AH31: 0.23 | AI31: 0.08 | AJ31: 0.02 | AK31: -0.57 | AL31: -0.76
A32: 2.资本与金融项目 | C32: -13.77 | D32: 2.25 | E32: 1.35 | F32: -0.30 | G32: -0.35 | H32: 0.20 | I32: -0.04 | J32: -0.00 | K32: -113.32 | L32: 9.96 | M32: 13.91 | N32: -4.06 | O32: 1.33 | P32: -0.88 | Q32: 7.17 | R32: -0.08 | S32: 9.40 | T32: 16.73 | U32: -8.21 | V32: -1.00 | W32: -0.84 | X32: 0.10 | Y32: 2.32 | Z32: -0.59 | AA32: 1.68 | AB32: -0.00 | AC32: =AC12-AC22 -> -1.38 | AD32: -4.91 | AE32: -0.02 | AF32: -0.09 | AG32: -0.44 | AH32: 6.49 | AI32: -1.08 | AJ32: 0.07 | AK32: 2.31 | AL32: 4.25
A33: 其中: 直接投资 | C33: 7.40 | D33: -0.85 | E33: -0.31 | F33: 0.01 | G33: -0.08 | H33: 0.00 | I33: 0.04 | J33: 0.02 | K33: -5.96 | L33: 9.40 | M33: 5.49 | N33: -1.74 | O33: 0.43 | P33: -0.33 | Q33: 7.79 | R33: 0.95 | S33: 4.92 | T33: 16.84 | U33: -4.32 | V33: 0.38 | W33: -0.16 | X33: 0.30 | Y33: 0.97 | Z33: -0.06 | AA33: -2.58 | AB33: -0.00 | AC33: 1.48 | AD33: -2.78 | AE33: 0.00 | AF33: 0.12 | AG33: 0.05 | AH33: 7.83 | AI33: -0.25 | AJ33: 0.17 | AK33: 0.87 | AL33: 8.93
A34: 证券投资 | C34: -13.86 | D34: 2.12 | E34: -0.01 | F34: -0.00 | G34: 0.02 | H34: 0.50 | I34: 0.00 | J34: 0.00 | K34: -105.33 | L34: 1.26 | M34: 10.98 | N34: 0.35 | O34: 1.75 | P34: 0.95 | Q34: -0.14 | R34: 1.51 | S34: 2.71 | T34: 0.00 | U34: -1.32 | V34: 0.47 | W34: -0.03 | X34: 0.03 | Y34: 1.20 | Z34: 0.00 | AA34: -0.52 | AB34: 0.00 | AC34: 0.67 | AD34: -1.46 | AE34: 0.00 | AF34: 0.00 | AG34: 0.01 | AH34: -0.03 | AI34: 0.72 | AJ34: 0.03 | AK34: 1.26 | AL34: -4.68
A35: 注： 1.分地区是指办理结售汇业务的银行所在地。其中，本表中辽宁不含大连，浙江不含宁波，福建不含厦门，山东不含青岛，广东不含深圳。

Sheet 2022年4月（按美元）
A2: 2022年4月银行结售汇数据（分地区）
A3: 单位：亿美元
A4: 项目 | C4: 北京 | D4: 天津 | E4: 河北 | F4: 山西 | G4: 内蒙古 | H4: 辽宁 | I4: 吉林 | J4: 黑龙江 | K4: 上海 | L4: 江苏 | M4: 浙江 | N4: 安徽 | O4: 福建 | P4: 江西 | Q4: 山东 | R4: 河南 | S4: 湖北 | T4: 湖南 | U4: 广东 | V4: 广西 | W4: 海南 | X4: 重庆 | Y4: 四川 | Z4: 贵州 | AA4: 云南 | AB4: 西藏 | AC4: 陕西 | AD4: 甘肃 | AE4: 青海 | AF4: 宁夏 | AG4: 新疆 | AH4: 大连 | AI4: 宁波 | AJ4: 厦门 | AK4: 青岛 | AL4: 深圳
A5: 一、结汇 | C5: 289.87 | D5: 35.84 | E5: 30.19 | F5: 6.51 | G5: 5.15 | H5: 10.37 | I5: 4.44 | J5: 4.42 | K5: 265.86 | L5: 257.70 | M5: 291.72 | N5: 36.21 | O5: 71.60 | P5: 23.98 | Q5: 113.71 | R5: 32.17 | S5: 24.30 | T5: 23.18 | U5: 249.25 | V5: 11.14 | W5: 5.66 | X5: 25.79 | Y5: 25.14 | Z5: 2.96 | AA5: 5.00 | AB5: 0.01 | AC5: 29.22 | AD5: 6.82 | AE5: 0.17 | AF5: 1.92 | AG5: 4.88 | AH5: 18.69 | AI5: 124.99 | AJ5: 42.42 | AK5: 50.00 | AL5: 166.27
A6: (一）银行自身 | C6: 92.40 | D6: 0.04 | E6: 0.00 | F6: 0.00 | G6: 0.00 | H6: 0.00 | I6: 0.00 | J6: 0.00 | K6: 4.16 | L6: 0.02 | M6: 0.83 | N6: 0.00 | O6: 3.41 | P6: 0.00 | Q6: 0.62 | R6: 0.00 | S6: 0.00 | T6: 0.00 | U6: 0.05 | V6: 0.00 | W6: 0.00 | X6: 0.01 | Y6: 0.00 | Z6: 0.00 | AA6: 0.00 | AB6: 0.00 | AC6: 0.14 | AD6: 5.41 | AE6: 0.00 | AF6: 0.00 | AG6: 0.09 | AH6: 0.01 | AI6: 31.85 | AJ6: 0.02 | AK6: 0.09 | AL6: 2.25
A7: (二）银行代客 | C7: 197.47 | D7: 35.80 | E7: 30.19 | F7: 6.51 | G7: 5.15 | H7: 10.37 | I7: 4.44 | J7: 4.42 | K7: 261.70 | L7: 257.68 | M7: 290.89 | N7: 36.21 | O7: 68.18 | P7: 23.98 | Q7: 113.09 | R7: 32.17 | S7: 24.30 | T7: 23.18 | U7: 249.20 | V7: 11.14 | W7: 5.65 | X7: 25.78 | Y7: 25.14 | Z7: 2.96 | AA7: 5.00 | AB7: 0.01 | AC7: 29.08 | AD7: 1.41 | AE7: 0.17 | AF7: 1.92 | AG7: 4.80 | AH7: 18.68 | AI7: 93.14 | AJ7: 42.41 | AK7: 49.91 | AL7: 164.02
A8: 1.经常项目 | C8: 127.49 | D8: 33.04 | E8: 28.72 | F8: 6.38 | G8: 4.09 | H8: 10.26 | I8: 4.19 | J8: 3.91 | K8: 157.54 | L8: 230.35 | M8: 269.52 | N8: 32.23 | O8: 64.87 | P8: 21.00 | Q8: 103.00 | R8: 27.44 | S8: 22.17 | T8: 21.24 | U8: 230.55 | V8: 8.37 | W8: 2.75 | X8: 23.66 | Y8: 23.29 | Z8: 2.53 | AA8: 3.95 | AB8: 0.01 | AC8: 23.13 | AD8: 1.17 | AE8: 0.17 | AF8: 1.86 | AG8: 4.41 | AH8: 18.43 | AI8: 90.38 | AJ8: 41.08 | AK8: 46.13 | AL8: 152.79
A9: 1.1货物贸易 | C9: 91.09 | D9: 27.38 | E9: 27.29 | F9: 6.05 | G9: 3.78 | H9: 9.20 | I9: 3.72 | J9: 3.38 | K9: 109.26 | L9: 222.69 | M9: 263.19 | N9: 31.17 | O9: 60.57 | P9: 20.58 | Q9: 99.50 | R9: 26.07 | S9: 20.42 | T9: 20.16 | U9: 215.83 | V9: 7.86 | W9: 2.42 | X9: 22.22 | Y9: 19.99 | Z9: 2.40 | AA9: 3.70 | AB9: 0.00 | AC9: 21.69 | AD9: 0.96 | AE9: 0.14 | AF9: 1.80 | AG9: 4.16 | AH9: 15.77 | AI9: 87.46 | AJ9: 38.91 | AK9: 42.54 | AL9: 131.27
A10: 1.2服务贸易 | C10: 27.06 | D10: 4.03 | E10: 0.76 | F10: 0.19 | G10: 0.23 | H10: 0.43 | I10: 0.10 | J10: 0.23 | K10: 44.67 | L10: 5.74 | M10: 3.08 | N10: 0.77 | O10: 2.63 | P10: 0.18 | Q10: 2.06 | R10: 0.48 | S10: 1.08 | T10: 0.65 | U10: 11.14 | V10: 0.28 | W10: 0.26 | X10: 1.14 | Y10: 2.76 | Z10: 0.09 | AA10: 0.15 | AB10: 0.00 | AC10: 1.12 | AD10: 0.08 | AE10: 0.01 | AF10: 0.03 | AG10: 0.17 | AH10: 2.20 | AI10: 2.16 | AJ10: 1.87 | AK10: 2.85 | AL10: 19.39
A11: 1.3收益和经常转移 | C11: 9.34 | D11: 1.63 | E11: 0.67 | F11: 0.13 | G11: 0.08 | H11: 0.63 | I11: 0.37 | J11: 0.30 | K11: 3.61 | L11: 1.93 | M11: 3.25 | N11: 0.29 | O11: 1.67 | P11: 0.24 | Q11: 1.44 | R11: 0.89 | S11: 0.66 | T11: 0.43 | U11: 3.58 | V11: 0.23 | W11: 0.07 | X11: 0.30 | Y11: 0.54 | Z11: 0.05 | AA11: 0.10 | AB11: 0.00 | AC11: 0.33 | AD11: 0.13 | AE11: 0.02 | AF11: 0.03 | AG11: 0.07 | AH11: 0.46 | AI11: 0.76 | AJ11: 0.30 | AK11: 0.74 | AL11: 2.13
A12: 2.资本与金融项目 | C12: 69.98 | D12: 2.76 | E12: 1.47 | F12: 0.13 | G12: 1.06 | H12: 0.10 | I12: 0.25 | J12: 0.51 | K12: 104.16 | L12: 27.33 | M12: 21.37 | N12: 3.98 | O12: 3.32 | P12: 2.97 | Q12: 10.09 | R12: 4.73 | S12: 2.13 | T12: 1.94 | U12: 18.65 | V12: 2.77 | W12: 2.91 | X12: 2.12 | Y12: 1.86 | Z12: 0.43 | AA12: 1.05 | AB12: 0.00 | AC12: 5.95 | AD12: 0.25 | AE12: 0.00 | AF12: 0.06 | AG12: 0.39 | AH12: 0.25 | AI12: 2.76 | AJ12: 1.33 | AK12: 3.78 | AL12: 11.23
A13: 其中: 直接投资 | C13: 19.07 | D13: 1.67 | E13: 1.13 | F13: 0.04 | G13: 0.04 | H13: 0.08 | I13: 0.25 | J13: 0.51 | K13: 20.29 | L13: 18.77 | M13: 11.12 | N13: 0.28 | O13: 0.77 | P13: 1.21 | Q13: 8.70 | R13: 0.49 | S13: 1.15 | T13: 0.41 | U13: 5.64 | V13: 0.18 | W13: 1.33 | X13: 1.23 | Y13: 1.15 | Z13: 0.06 | AA13: 0.05 | AB13: 0.00 | AC13: 0.13 | AD13: 0.06 | AE13: 0.00 | AF13: 0.06 | AG13: 0.10 | AH13: 0.19 | AI13: 0.53 | AJ13: 1.20 | AK13: 2.48 | AL13: 6.82
A14: 证券投资 | C14: 49.17 | D14: 0.62 | E14: 0.00 | F14: 0.00 | G14: 1.00 | H14: 0.00 | I14: 0.00 | J14: 0.00 | K14: 79.80 | L14: 2.99 | M14: 8.43 | N14: 2.09 | O14: 2.20 | P14: 1.41 | Q14: 0.88 | R14: 1.63 | S14: 0.00 | T14: 0.40 | U14: 8.81 | V14: 0.75 | W14: 0.84 | X14: 0.55 | Y14: 0.20 | Z14: 0.00 | AA14: 0.00 | AB14: 0.00 | AC14: 0.00 | AD14: 0.00 | AE14: 0.00 | AF14: 0.00 | AG14: 0.02 | AH14: 0.02 | AI14: 2.01 | AJ14: 0.02 | AK14: 0.86 | AL14: 3.75
A15: 二、售汇 | C15: 491.14 | D15: 39.68 | E15: 18.53 | F15: 7.22 | G15: 7.62 | H15: 19.97 | I15: 4.77 | J15: 6.03 | K15: 379.38 | L15: 134.43 | M15: 88.71 | N15: 28.56 | O15: 37.49 | P15: 13.94 | Q15: 91.71 | R15: 17.01 | S15: 24.31 | T15: 18.52 | U15: 128.38 | V15: 25.82 | W15: 10.99 | X15: 67.08 | Y15: 41.70 | Z15: 1.91 | AA15: 9.48 | AB15: 0.23 | AC15: 12.23 | AD15: 8.30 | AE15: 0.16 | AF15: 0.55 | AG15: 5.29 | AH15: 12.50 | AI15: 82.23 | AJ15: 67.05 | AK15: 36.22 | AL15: 167.29
A16: (一）银行自身 | C16: 34.93 | D16: 7.40 | E16: 0.01 | F16: 0.00 | G16: 0.00 | H16: 0.00 | I16: 0.00 | J16: 0.00 | K16: 23.08 | L16: 0.01 | M16: 2.57 | N16: 0.00 | O16: 3.24 | P16: 0.00 | Q16: 0.00 | R16: 0.00 | S16: 0.00 | T16: 0.00 | U16: 0.02 | V16: 0.01 | W16: 0.11 | X16: 0.00 | Y16: 0.00 | Z16: 0.00 | AA16: 0.00 | AB16: 0.00 | AC16: 0.00 | AD16: 0.00 | AE16: 0.00 | AF16: 0.00 | AG16: 0.02 | AH16: 0.00 | AI16: 30.89 | AJ16: 0.00 | AK16: 0.02 | AL16: 0.01
A17: (二）银行代客 | C17: 456.21 | D17: 32.29 | E17: 18.52 | F17: 7.22 | G17: 7.62 | H17: 19.97 | I17: 4.77 | J17: 6.03 | K17: 356.30 | L17: 134.42 | M17: 86.14 | N17: 28.56 | O17: 34.25 | P17: 13.94 | Q17: 91.70 | R17: 17.01 | S17: 24.31 | T17: 18.52 | U17: 128.36 | V17: 25.81 | W17: 10.88 | X17: 67.08 | Y17: 41.70 | Z17: 1.91 | AA17: 9.48 | AB17: 0.23 | AC17: 12.23 | AD17: 8.30 | AE17: 0.16 | AF17: 0.55 | AG17: 5.28 | AH17: 12.50 | AI17: 51.33 | AJ17: 67.05 | AK17: 36.20 | AL17: 167.28
A18: 1.经常项目 | C18: 388.24 | D18: 28.71 | E18: 16.82 | F18: 7.03 | G18: 7.12 | H18: 17.28 | I18: 4.59 | J18: 5.98 | K18: 226.99 | L18: 121.90 | M18: 74.13 | N18: 25.56 | O18: 33.02 | P18: 11.80 | Q18: 80.01 | R18: 15.21 | S18: 23.39 | T18: 16.57 | U18: 118.09 | V18: 23.29 | W18: 10.13 | X18: 66.12 | Y18: 37.82 | Z18: 1.30 | AA18: 8.98 | AB18: 0.23 | AC18: 10.63 | AD18: 7.83 | AE18: 0.09 | AF18: 0.53 | AG18: 2.68 | AH18: 11.18 | AI18: 47.01 | AJ18: 66.41 | AK18: 33.95 | AL18: 135.94
A19: 1.1货物贸易 | C19: 343.29 | D19: 21.47 | E19: 14.95 | F19: 6.03 | G19: 5.57 | H19: 15.09 | I19: 2.06 | J19: 4.73 | K19: 181.80 | L19: 107.89 | M19: 58.71 | N19: 23.02 | O19: 29.88 | P19: 10.54 | Q19: 73.31 | R19: 11.29 | S19: 20.27 | T19: 14.56 | U19: 101.17 | V19: 21.66 | W19: 8.91 | X19: 61.32 | Y19: 33.03 | Z19: 0.76 | AA19: 7.77 | AB19: 0.19 | AC19: 8.95 | AD19: 7.41 | AE19: 0.03 | AF19: 0.36 | AG19: 1.95 | AH19: 9.09 | AI19: 43.53 | AJ19: 63.64 | AK19: 30.37 | AL19: 104.62
A20: 1.2服务贸易 | C20: 38.71 | D20: 4.08 | E20: 1.74 | F20: 0.97 | G20: 0.91 | H20: 2.06 | I20: 2.31 | J20: 1.20 | K20: 39.15 | L20: 11.30 | M20: 7.61 | N20: 2.35 | O20: 2.51 | P20: 0.91 | Q20: 5.31 | R20: 2.16 | S20: 2.90 | T20: 1.80 | U20: 12.31 | V20: 0.75 | W20: 0.99 | X20: 2.03 | Y20: 4.12 | Z20: 0.44 | AA20: 0.92 | AB20: 0.03 | AC20: 1.52 | AD20: 0.36 | AE20: 0.05 | AF20: 0.16 | AG20: 0.58 | AH20: 1.86 | AI20: 2.25 | AJ20: 2.43 | AK20: 3.32 | AL20: 13.16
A21: 1.3收益和经常转移 | C21: 6.24 | D21: 3.16 | E21: 0.13 | F21: 0.03 | G21: 0.63 | H21: 0.14 | I21: 0.22 | J21: 0.05 | K21: 6.04 | L21: 2.72 | M21: 7.81 | N21: 0.19 | O21: 0.63 | P21: 0.36 | Q21: 1.38 | R21: 1.77 | S21: 0.22 | T21: 0.20 | U21: 4.61 | V21: 0.88 | W21: 0.23 | X21: 2.77 | Y21: 0.68 | Z21: 0.10 | AA21: 0.30 | AB21: 0.00 | AC21: 0.17 | AD21: 0.05 | AE21: 0.01 | AF21: 0.01 | AG21: 0.15 | AH21: 0.22 | AI21: 1.23 | AJ21: 0.34 | AK21: 0.26 | AL21: 18.16
A22: 2.资本与金融项目 | C22: 67.96 | D22: 3.58 | E22: 1.70 | F22: 0.20 | G22: 0.50 | H22: 2.69 | I22: 0.18 | J22: 0.05 | K22: 129.31 | L22: 12.51 | M22: 12.01 | N22: 3.00 | O22: 1.23 | P22: 2.13 | Q22: 11.70 | R22: 1.80 | S22: 0.92 | T22: 1.95 | U22: 10.27 | V22: 2.52 | W22: 0.75 | X22: 0.95 | Y22: 3.88 | Z22: 0.61 | AA22: 0.50 | AB22: 0.00 | AC22: 1.60 | AD22: 0.47 | AE22: 0.08 | AF22: 0.03 | AG22: 2.60 | AH22: 1.32 | AI22: 4.33 | AJ22: 0.64 | AK22: 2.25 | AL22: 31.34
A23: 其中: 直接投资 | C23: 35.04 | D23: 3.14 | E23: 1.11 | F23: 0.05 | G23: 0.35 | H23: 0.84 | I23: 0.11 | J23: 0.01 | K23: 17.13 | L23: 3.80 | M23: 8.33 | N23: 1.20 | O23: 0.38 | P23: 0.39 | Q23: 8.72 | R23: 0.51 | S23: 0.35 | T23: 0.83 | U23: 4.82 | V23: 0.06 | W23: 0.35 | X23: 0.10 | Y23: 0.47 | Z23: 0.05 | AA23: 0.06 | AB23: 0.00 | AC23: 0.05 | AD23: 0.00 | AE23: 0.00 | AF23: 0.02 | AG23: 0.15 | AH23: 0.07 | AI23: 1.54 | AJ23: 0.54 | AK23: 0.33 | AL23: 3.76
A24: 证券投资 | C24: 28.10 | D24: 0.07 | E24: 0.00 | F24: 0.00 | G24: 0.11 | H24: 0.00 | I24: 0.00 | J24: 0.00 | K24: 101.13 | L24: 0.50 | M24: 0.03 | N24: 1.51 | O24: 0.00 | P24: 0.58 | Q24: 0.44 | R24: 0.07 | S24: 0.03 | T24: 0.00 | U24: 1.37 | V24: 1.74 | W24: 0.17 | X24: 0.32 | Y24: 0.00 | Z24: 0.50 | AA24: 0.09 | AB24: 0.00 | AC24: 0.00 | AD24: 0.35 | AE24: 0.00 | AF24: 0.00 | AG24: 1.60 | AH24: 0.04 | AI24: 0.43 | AJ24: 0.02 | AK24: 0.75 | AL24: 25.17
A25: 三、差额 | C25: =C5-C15 -> -201.28 | D25: =D5-D15 -> -3.84 | E25: 11.66 | F25: -0.71 | G25: -2.47 | H25: -9.60 | I25: -0.32 | J25: -1.61 | K25: -113.52 | L25: 123.27 | M25: 203.01 | N25: 7.66 | O25: 34.11 | P25: 10.04 | Q25: 22.00 | R25: 15.16 | S25: -0.01 | T25: 4.66 | U25: 120.87 | V25: -14.68 | W25: -5.34 | X25: -41.29 | Y25: -16.56 | Z25: 1.05 | AA25: -4.48 | AB25: -0.22 | AC25: 16.99 | AD25: -1.48 | AE25: 0.00 | AF25: 1.37 | AG25: -0.41 | AH25: 6.18 | AI25: 42.76 | AJ25: -24.63 | AK25: 13.77 | AL25: -1.02
A26: (一）银行自身 | C26: =C6-C16 -> 57.47 | D26: -7.36 | E26: -0.01 | F26: 0.00 | G26: -0.00 | H26: -0.00 | I26: 0.00 | J26: -0.00 | K26: -18.92 | L26: 0.01 | M26: -1.74 | N26: 0.00 | O26: 0.17 | P26: 0.00 | Q26: 0.62 | R26: 0.00 | S26: 0.00 | T26: 0.00 | U26: 0.03 | V26: -0.00 | W26: -0.10 | X26: 0.01 | Y26: 0.00 | Z26: -0.00 | AA26: 0.00 | AB26: 0.00 | AC26: 0.14 | AD26: 5.41 | AE26: 0.00 | AF26: 0.00 | AG26: 0.07 | AH26: 0.01 | AI26: 0.95 | AJ26: 0.02 | AK26: 0.06 | AL26: 2.24
A27: (二）银行代客 | C27: -258.74 | D27: 3.52 | E27: 11.66 | F27: -0.71 | G27: -2.47 | H27: -9.60 | I27: -0.32 | J27: -1.61 | K27: -94.60 | L27: 123.27 | M27: 204.76 | N27: 7.65 | O27: 33.94 | P27: 10.04 | Q27: 21.38 | R27: 15.16 | S27: -0.01 | T27: 4.66 | U27: 120.84 | V27: -14.67 | W27: -5.23 | X27: -41.29 | Y27: -16.56 | Z27: 1.05 | AA27: -4.48 | AB27: -0.22 | AC27: 16.85 | AD27: -6.89 | AE27: 0.00 | AF27: 1.37 | AG27: -0.48 | AH27: 6.18 | AI27: 41.81 | AJ27: -24.64 | AK27: 13.71 | AL27: -3.26
A28: 1.经常项目 | C28: -260.76 | D28: 4.33 | E28: 11.90 | F28: -0.65 | G28: -3.03 | H28: -7.02 | I28: -0.40 | J28: -2.07 | K28: -69.45 | L28: 108.45 | M28: 195.39 | N28: 6.68 | O28: 31.85 | P28: 9.20 | Q28: 22.99 | R28: 12.23 | S28: -1.23 | T28: 4.68 | U28: 112.47 | V28: -14.92 | W28: -7.38 | X28: -42.46 | Y28: -14.53 | Z28: 1.23 | AA28: -5.03 | AB28: -0.22 | AC28: 12.50 | AD28: -6.66 | AE28: 0.08 | AF28: 1.34 | AG28: 1.73 | AH28: 7.25 | AI28: 43.38 | AJ28: -25.33 | AK28: 12.18 | AL28: 16.85
A29: 1.1货物贸易 | C29: -252.20 | D29: 5.91 | E29: 12.34 | F29: 0.02 | G29: -1.79 | H29: -5.89 | I29: 1.66 | J29: -1.35 | K29: -72.54 | L29: 114.80 | M29: 204.49 | N29: 8.16 | O29: 30.69 | P29: 10.04 | Q29: 26.19 | R29: 14.78 | S29: 0.15 | T29: 5.60 | U29: 114.66 | V29: -13.80 | W29: -6.49 | X29: -39.09 | Y29: -13.04 | Z29: 1.63 | AA29: -4.06 | AB29: -0.19 | AC29: 12.74 | AD29: -6.45 | AE29: 0.11 | AF29: 1.45 | AG29: 2.21 | AH29: 6.68 | AI29: 43.93 | AJ29: -24.72 | AK29: 12.18 | AL29: 26.65
A30: 1.2服务贸易 | C30: -11.65 | D30: -0.04 | E30: -0.98 | F30: -0.77 | G30: -0.69 | H30: -1.62 | I30: -2.21 | J30: -0.97 | K30: 5.53 | L30: -5.56 | M30: -4.54 | N30: -1.57 | O30: 0.12 | P30: -0.72 | Q30: -3.26 | R30: -1.68 | S30: -1.82 | T30: -1.16 | U30: -1.17 | V30: -0.47 | W30: -0.72 | X30: -0.89 | Y30: -1.36 | Z30: -0.35 | AA30: -0.76 | AB30: -0.03 | AC30: -0.40 | AD30: -0.29 | AE30: -0.04 | AF30: -0.13 | AG30: -0.40 | AH30: 0.34 | AI30: -0.09 | AJ30: -0.56 | AK30: -0.47 | AL30: 6.23
A31: 1.3收益和经常转移 | C31: 3.09 | D31: -1.54 | E31: 0.53 | F31: 0.10 | G31: -0.55 | H31: 0.49 | I31: 0.15 | J31: 0.25 | K31: -2.44 | L31: -0.79 | M31: -4.56 | N31: 0.09 | O31: 1.04 | P31: -0.11 | Q31: 0.06 | R31: -0.88 | S31: 0.44 | T31: 0.23 | U31: -1.03 | V31: -0.66 | W31: -0.17 | X31: -2.47 | Y31: -0.13 | Z31: -0.05 | AA31: -0.20 | AB31: 0.00 | AC31: 0.16 | AD31: 0.07 | AE31: 0.01 | AF31: 0.02 | AG31: -0.08 | AH31: 0.23 | AI31: -0.46 | AJ31: -0.04 | AK31: 0.47 | AL31: -16.03
A32: 2.资本与金融项目 | C32: 2.02 | D32: -0.82 | E32: -0.23 | F32: -0.06 | G32: 0.56 | H32: -2.58 | I32: 0.07 | J32: 0.46 | K32: -25.15 | L32: 14.82 | M32: 9.36 | N32: 0.98 | O32: 2.09 | P32: 0.84 | Q32: -1.61 | R32: 2.93 | S32: 1.22 | T32: -0.02 | U32: 8.37 | V32: 0.25 | W32: 2.15 | X32: 1.16 | Y32: -2.03 | Z32: -0.18 | AA32: 0.55 | AB32: -0.00 | AC32: =AC12-AC22 -> 4.35 | AD32: -0.23 | AE32: -0.08 | AF32: 0.03 | AG32: -2.21 | AH32: -1.07 | AI32: -1.57 | AJ32: 0.68 | AK32: 1.53 | AL32: -20.11
A33: 其中: 直接投资 | C33: -15.98 | D33: -1.47 | E33: 0.03 | F33: -0.01 | G33: -0.31 | H33: -0.76 | I33: 0.14 | J33: 0.50 | K33: 3.16 | L33: 14.97 | M33: 2.79 | N33: -0.92 | O33: 0.39 | P33: 0.81 | Q33: -0.02 | R33: -0.02 | S33: 0.80 | T33: -0.42 | U33: 0.82 | V33: 0.12 | W33: 0.98 | X33: 1.13 | Y33: 0.68 | Z33: 0.01 | AA33: -0.01 | AB33: -0.00 | AC33: 0.08 | AD33: 0.06 | AE33: 0.00 | AF33: 0.04 | AG33: -0.05 | AH33: 0.12 | AI33: -1.01 | AJ33: 0.66 | AK33: 2.15 | AL33: 3.06
A34: 证券投资 | C34: 21.07 | D34: 0.55 | E34: 0.00 | F34: 0.00 | G34: 0.89 | H34: 0.00 | I34: 0.00 | J34: 0.00 | K34: -21.33 | L34: 2.48 | M34: 8.40 | N34: 0.58 | O34: 2.20 | P34: 0.83 | Q34: 0.44 | R34: 1.56 | S34: -0.02 | T34: 0.40 | U34: 7.44 | V34: -0.99 | W34: 0.67 | X34: 0.23 | Y34: 0.19 | Z34: -0.50 | AA34: -0.09 | AB34: 0.00 | AC34: 0.00 | AD34: -0.35 | AE34: 0.00 | AF34: 0.00 | AG34: -1.58 | AH34: -0.03 | AI34: 1.59 | AJ34: -0.00 | AK34: 0.11 | AL34: -21.42
A35: 注： 1.分地区是指办理结售汇业务的银行所在地。其中，本表中辽宁不含大连，浙江不含宁波，福建不含厦门，山东不含青岛，广东不含深圳。

Sheet 2022年5月（按美元）
A2: 2022年5月银行结售汇数据（分地区）
A3: 单位：亿美元
A4: 项目 | C4: 北京 | D4: 天津 | E4: 河北 | F4: 山西 | G4: 内蒙古 | H4: 辽宁 | I4: 吉林 | J4: 黑龙江 | K4: 上海 | L4: 江苏 | M4: 浙江 | N4: 安徽 | O4: 福建 | P4: 江西 | Q4: 山东 | R4: 河南 | S4: 湖北 | T4: 湖南 | U4: 广东 | V4: 广西 | W4: 海南 | X4: 重庆 | Y4: 四川 | Z4: 贵州 | AA4: 云南 | AB4: 西藏 | AC4: 陕西 | AD4: 甘肃 | AE4: 青海 | AF4: 宁夏 | AG4: 新疆 | AH4: 大连 | AI4: 宁波 | AJ4: 厦门 | AK4: 青岛 | AL4: 深圳
A5: 一、结汇 | C5: 224.52 | D5: 33.85 | E5: 29.60 | F5: 5.67 | G5: 4.63 | H5: 10.73 | I5: 5.46 | J5: 3.89 | K5: 244.42 | L5: 238.69 | M5: 266.87 | N5: 31.03 | O5: 63.47 | P5: 18.24 | Q5: 106.28 | R5: 25.41 | S5: 22.61 | T5: 23.99 | U5: 224.67 | V5: 9.12 | W5: 3.24 | X5: 21.05 | Y5: 23.18 | Z5: 3.37 | AA5: 6.20 | AB5: 0.02 | AC5: 18.51 | AD5: 1.24 | AE5: 0.23 | AF5: 1.52 | AG5: 4.42 | AH5: 14.63 | AI5: 124.96 | AJ5: 38.50 | AK5: 45.09 | AL5: 150.54
A6: (一）银行自身 | C6: 80.38 | D6: 0.00 | E6: 0.00 | F6: 0.00 | G6: 0.00 | H6: 0.02 | I6: 0.00 | J6: 0.00 | K6: 2.69 | L6: 0.03 | M6: 3.36 | N6: 0.00 | O6: 2.92 | P6: 0.00 | Q6: 4.19 | R6: 0.00 | S6: 0.02 | T6: 0.00 | U6: 3.08 | V6: 0.00 | W6: 0.00 | X6: 0.01 | Y6: 0.00 | Z6: 0.00 | AA6: 0.00 | AB6: 0.00 | AC6: 0.00 | AD6: 0.00 | AE6: 0.00 | AF6: 0.00 | AG6: 0.00 | AH6: 0.00 | AI6: 37.06 | AJ6: 0.00 | AK6: 0.01 | AL6: 1.10
A7: (二）银行代客 | C7: 144.14 | D7: 33.84 | E7: 29.60 | F7: 5.67 | G7: 4.63 | H7: 10.71 | I7: 5.46 | J7: 3.89 | K7: 241.72 | L7: 238.66 | M7: 263.51 | N7: 31.03 | O7: 60.55 | P7: 18.24 | Q7: 102.10 | R7: 25.41 | S7: 22.59 | T7: 23.99 | U7: 221.59 | V7: 9.12 | W7: 3.24 | X7: 21.04 | Y7: 23.18 | Z7: 3.37 | AA7: 6.20 | AB7: 0.02 | AC7: 18.51 | AD7: 1.24 | AE7: 0.23 | AF7: 1.52 | AG7: 4.42 | AH7: 14.63 | AI7: 87.90 | AJ7: 38.50 | AK7: 45.08 | AL7: 149.43
A8: 1.经常项目 | C8: 74.37 | D8: 30.14 | E8: 28.69 | F8: 4.28 | G8: 4.34 | H8: 10.29 | I8: 5.00 | J8: 3.24 | K8: 165.61 | L8: 220.45 | M8: 247.50 | N8: 29.89 | O8: 58.78 | P8: 17.41 | Q8: 93.24 | R8: 22.84 | S8: 21.25 | T8: 21.07 | U8: 210.74 | V8: 7.03 | W8: 2.05 | X8: 20.20 | Y8: 20.13 | Z8: 2.42 | AA8: 4.39 | AB8: 0.02 | AC8: 16.70 | AD8: 1.06 | AE8: 0.22 | AF8: 1.48 | AG8: 4.09 | AH8: 14.23 | AI8: 85.14 | AJ8: 36.05 | AK8: 42.80 | AL8: 136.59
A9: 1.1货物贸易 | C9: 47.25 | D9: 26.22 | E9: 26.60 | F9: 3.86 | G9: 3.98 | H9: 9.03 | I9: 4.12 | J9: 2.56 | K9: 119.97 | L9: 212.48 | M9: 241.25 | N9: 28.50 | O9: 55.55 | P9: 16.59 | Q9: 86.50 | R9: 21.28 | S9: 19.36 | T9: 19.59 | U9: 197.55 | V9: 6.37 | W9: 1.64 | X9: 18.87 | Y9: 16.53 | Z9: 2.13 | AA9: 4.04 | AB9: 0.01 | AC9: 15.43 | AD9: 0.81 | AE9: 0.20 | AF9: 1.40 | AG9: 3.84 | AH9: 11.74 | AI9: 82.54 | AJ9: 34.30 | AK9: 38.86 | AL9: 120.29
A10: 1.2服务贸易 | C10: 22.35 | D10: 2.70 | E10: 0.77 | F10: 0.25 | G10: 0.21 | H10: 0.51 | I10: 0.30 | J10: 0.28 | K10: 40.84 | L10: 5.77 | M10: 3.41 | N10: 1.04 | O10: 1.28 | P10: 0.20 | Q10: 1.76 | R10: 0.64 | S10: 1.12 | T10: 0.92 | U10: 9.50 | V10: 0.32 | W10: 0.33 | X10: 1.05 | Y10: 2.97 | Z10: 0.25 | AA10: 0.16 | AB10: 0.00 | AC10: 0.92 | AD10: 0.12 | AE10: 0.01 | AF10: 0.04 | AG10: 0.16 | AH10: 1.96 | AI10: 2.14 | AJ10: 1.49 | AK10: 2.76 | AL10: 12.67
A11: 1.3收益和经常转移 | C11: 4.77 | D11: 1.22 | E11: 1.32 | F11: 0.17 | G11: 0.15 | H11: 0.75 | I11: 0.58 | J11: 0.40 | K11: 4.80 | L11: 2.21 | M11: 2.83 | N11: 0.35 | O11: 1.95 | P11: 0.62 | Q11: 4.99 | R11: 0.92 | S11: 0.76 | T11: 0.56 | U11: 3.69 | V11: 0.34 | W11: 0.08 | X11: 0.27 | Y11: 0.64 | Z11: 0.05 | AA11: 0.18 | AB11: 0.00 | AC11: 0.36 | AD11: 0.13 | AE11: 0.01 | AF11: 0.04 | AG11: 0.09 | AH11: 0.52 | AI11: 0.47 | AJ11: 0.26 | AK11: 1.19 | AL11: 3.63
A12: 2.资本与金融项目 | C12: 69.77 | D12: 3.70 | E12: 0.91 | F12: 1.39 | G12: 0.29 | H12: 0.41 | I12: 0.47 | J12: 0.65 | K12: 76.11 | L12: 18.21 | M12: 16.01 | N12: 1.14 | O12: 1.77 | P12: 0.83 | Q12: 8.85 | R12: 2.57 | S12: 1.34 | T12: 2.92 | U12: 10.85 | V12: 2.09 | W12: 1.20 | X12: 0.84 | Y12: 3.05 | Z12: 0.95 | AA12: 1.81 | AB12: 0.00 | AC12: 1.81 | AD12: 0.17 | AE12: 0.01 | AF12: 0.04 | AG12: 0.33 | AH12: 0.40 | AI12: 2.76 | AJ12: 2.45 | AK12: 2.28 | AL12: 12.84
A13: 其中: 直接投资 | C13: 15.79 | D13: 2.99 | E13: 0.58 | F13: 0.14 | G13: 0.27 | H13: 0.35 | I13: 0.24 | J13: 0.08 | K13: 16.67 | L13: 10.07 | M13: 7.10 | N13: 0.86 | O13: 0.66 | P13: 0.36 | Q13: 6.91 | R13: 0.22 | S13: 0.27 | T13: 0.59 | U13: 6.60 | V13: 0.46 | W13: 0.46 | X13: 0.25 | Y13: 1.02 | Z13: 0.10 | AA13: 0.08 | AB13: 0.00 | AC13: 0.41 | AD13: 0.01 | AE13: 0.01 | AF13: 0.01 | AG13: 0.03 | AH13: 0.25 | AI13: 1.83 | AJ13: 2.35 | AK13: 1.55 | AL13: 5.86
A14: 证券投资 | C14: 27.32 | D14: 0.55 | E14: 0.00 | F14: 1.25 | G14: 0.00 | H14: 0.00 | I14: 0.20 | J14: 0.00 | K14: 57.59 | L14: 2.59 | M14: 6.02 | N14: 0.00 | O14: 0.50 | P14: 0.15 | Q14: 0.25 | R14: 0.46 | S14: 0.00 | T14: 2.10 | U14: 2.73 | V14: 0.10 | W14: 0.72 | X14: 0.51 | Y14: 0.31 | Z14: 0.00 | AA14: 0.00 | AB14: 0.00 | AC14: 0.00 | AD14: 0.13 | AE14: 0.00 | AF14: 0.00 | AG14: 0.00 | AH14: 0.13 | AI14: 0.65 | AJ14: 0.01 | AK14: 0.64 | AL14: 6.59
A15: 二、售汇 | C15: 437.72 | D15: 30.42 | E15: 19.78 | F15: 4.83 | G15: 7.53 | H15: 20.19 | I15: 19.34 | J15: 10.82 | K15: 381.96 | L15: 148.77 | M15: 89.57 | N15: 28.96 | O15: 42.38 | P15: 13.48 | Q15: 83.15 | R15: 17.55 | S15: 25.83 | T15: 17.34 | U15: 137.86 | V15: 21.79 | W15: 11.21 | X15: 41.05 | Y15: 27.97 | Z15: 3.84 | AA15: 9.72 | AB15: 0.06 | AC15: 12.98 | AD15: 12.25 | AE15: 0.15 | AF15: 0.82 | AG15: 4.85 | AH15: 15.95 | AI15: 92.03 | AJ15: 62.52 | AK15: 33.60 | AL15: 147.05
A16: (一）银行自身 | C16: 47.23 | D16: 0.00 | E16: 0.00 | F16: 0.00 | G16: 0.00 | H16: 0.00 | I16: 0.00 | J16: 0.00 | K16: 22.16 | L16: 0.08 | M16: 2.38 | N16: 0.01 | O16: 9.35 | P16: 0.00 | Q16: 0.03 | R16: 0.00 | S16: 0.00 | T16: 0.00 | U16: 0.00 | V16: 0.00 | W16: 0.00 | X16: 0.00 | Y16: 0.00 | Z16: 0.00 | AA16: 0.00 | AB16: 0.00 | AC16: 0.00 | AD16: 0.00 | AE16: 0.00 | AF16: 0.00 | AG16: 0.00 | AH16: 0.00 | AI16: 41.09 | AJ16: 0.00 | AK16: 0.50 | AL16: 0.03
A17: (二）银行代客 | C17: 390.48 | D17: 30.42 | E17: 19.78 | F17: 4.83 | G17: 7.53 | H17: 20.19 | I17: 19.34 | J17: 10.82 | K17: 359.80 | L17: 148.69 | M17: 87.19 | N17: 28.95 | O17: 33.02 | P17: 13.48 | Q17: 83.12 | R17: 17.55 | S17: 25.83 | T17: 17.34 | U17: 137.85 | V17: 21.79 | W17: 11.21 | X17: 41.05 | Y17: 27.97 | Z17: 3.84 | AA17: 9.72 | AB17: 0.06 | AC17: 12.98 | AD17: 12.25 | AE17: 0.15 | AF17: 0.82 | AG17: 4.85 | AH17: 15.95 | AI17: 50.94 | AJ17: 62.52 | AK17: 33.10 | AL17: 147.02
A18: 1.经常项目 | C18: 369.37 | D18: 27.65 | E18: 18.64 | F18: 4.70 | G18: 7.13 | H18: 19.53 | I18: 18.88 | J18: 10.48 | K18: 251.47 | L18: 133.30 | M18: 70.97 | N18: 28.37 | O18: 31.04 | P18: 13.07 | Q18: 76.73 | R18: 15.54 | S18: 24.86 | T18: 16.54 | U18: 129.28 | V18: 19.65 | W18: 10.51 | X18: 38.14 | Y18: 23.64 | Z18: 1.32 | AA18: 8.82 | AB18: 0.05 | AC18: 11.84 | AD18: 10.53 | AE18: 0.11 | AF18: 0.68 | AG18: 2.22 | AH18: 13.42 | AI18: 47.48 | AJ18: 61.18 | AK18: 30.79 | AL18: 120.69
A19: 1.1货物贸易 | C19: 311.80 | D19: 19.74 | E19: 17.07 | F19: 3.63 | G19: 5.83 | H19: 17.73 | I19: 15.69 | J19: 9.39 | K19: 207.07 | L19: 117.20 | M19: 55.19 | N19: 26.56 | O19: 28.48 | P19: 11.97 | Q19: 71.70 | R19: 13.69 | S19: 21.77 | T19: 14.69 | U19: 93.92 | V19: 18.82 | W19: 9.52 | X19: 35.45 | Y19: 20.17 | Z19: 0.88 | AA19: 8.00 | AB19: 0.00 | AC19: 9.53 | AD19: 10.10 | AE19: 0.06 | AF19: 0.39 | AG19: 1.76 | AH19: 10.98 | AI19: 43.79 | AJ19: 58.49 | AK19: 27.89 | AL19: 100.39
A20: 1.2服务贸易 | C20: 26.82 | D20: 2.86 | E20: 1.46 | F20: 0.83 | G20: 0.57 | H20: 1.51 | I20: 2.85 | J20: 1.01 | K20: 37.43 | L20: 10.53 | M20: 8.17 | N20: 1.62 | O20: 1.77 | P20: 0.82 | Q20: 3.86 | R20: 1.57 | S20: 2.30 | T20: 1.40 | U20: 12.05 | V20: 0.61 | W20: 0.92 | X20: 2.08 | Y20: 3.20 | Z20: 0.41 | AA20: 0.62 | AB20: 0.01 | AC20: 1.35 | AD20: 0.29 | AE20: 0.03 | AF20: 0.28 | AG20: 0.41 | AH20: 1.34 | AI20: 2.56 | AJ20: 2.30 | AK20: 2.61 | AL20: 13.97
A21: 1.3收益和经常转移 | C21: 30.75 | D21: 5.06 | E21: 0.11 | F21: 0.24 | G21: 0.73 | H21: 0.29 | I21: 0.34 | J21: 0.08 | K21: 6.97 | L21: 5.58 | M21: 7.60 | N21: 0.19 | O21: 0.79 | P21: 0.29 | Q21: 1.18 | R21: 0.28 | S21: 0.79 | T21: 0.44 | U21: 23.31 | V21: 0.22 | W21: 0.07 | X21: 0.61 | Y21: 0.27 | Z21: 0.03 | AA21: 0.20 | AB21: 0.04 | AC21: 0.96 | AD21: 0.15 | AE21: 0.01 | AF21: 0.01 | AG21: 0.05 | AH21: 1.10 | AI21: 1.14 | AJ21: 0.39 | AK21: 0.29 | AL21: 6.33
A22: 2.资本与金融项目 | C22: 21.11 | D22: 2.77 | E22: 1.14 | F22: 0.13 | G22: 0.41 | H22: 0.66 | I22: 0.46 | J22: 0.34 | K22: 108.34 | L22: 15.39 | M22: 16.22 | N22: 0.58 | O22: 1.98 | P22: 0.41 | Q22: 6.39 | R22: 2.01 | S22: 0.97 | T22: 0.81 | U22: 8.57 | V22: 2.14 | W22: 0.70 | X22: 2.91 | Y22: 4.32 | Z22: 2.52 | AA22: 0.90 | AB22: 0.01 | AC22: 1.14 | AD22: 1.72 | AE22: 0.04 | AF22: 0.14 | AG22: 2.63 | AH22: 2.53 | AI22: 3.46 | AJ22: 1.34 | AK22: 2.31 | AL22: 26.33
A23: 其中: 直接投资 | C23: 10.12 | D23: 0.79 | E23: 0.81 | F23: 0.01 | G23: 0.02 | H23: 0.20 | I23: 0.03 | J23: 0.01 | K23: 16.59 | L23: 7.04 | M23: 8.47 | N23: 0.21 | O23: 0.64 | P23: 0.06 | Q23: 0.87 | R23: 0.38 | S23: 0.40 | T23: 0.33 | U23: 4.13 | V23: 0.10 | W23: 0.69 | X23: 2.31 | Y23: 2.15 | Z23: 0.03 | AA23: 0.03 | AB23: 0.01 | AC23: 0.01 | AD23: 0.00 | AE23: 0.00 | AF23: 0.01 | AG23: 0.08 | AH23: 0.27 | AI23: 0.72 | AJ23: 1.01 | AK23: 0.35 | AL23: 7.24
A24: 证券投资 | C24: 5.03 | D24: 0.00 | E24: 0.00 | F24: 0.00 | G24: 0.31 | H24: 0.00 | I24: 0.00 | J24: 0.00 | K24: 86.09 | L24: 2.40 | M24: 0.01 | N24: 0.00 | O24: 0.00 | P24: 0.00 | Q24: 2.15 | R24: 0.00 | S24: 0.00 | T24: 0.03 | U24: 1.65 | V24: 0.00 | W24: 0.00 | X24: 0.00 | Y24: 0.00 | Z24: 0.24 | AA24: 0.00 | AB24: 0.00 | AC24: 0.00 | AD24: 0.00 | AE24: 0.00 | AF24: 0.00 | AG24: 2.15 | AH24: 0.03 | AI24: 0.01 | AJ24: 0.21 | AK24: 0.95 | AL24: 14.61
A25: 三、差额 | C25: =C5-C15 -> -213.20 | D25: =D5-D15 -> 3.42 | E25: 9.82 | F25: 0.84 | G25: -2.90 | H25: -9.47 | I25: -13.88 | J25: -6.93 | K25: -137.54 | L25: 89.92 | M25: 177.30 | N25: 2.07 | O25: 21.09 | P25: 4.76 | Q25: 23.13 | R25: 7.85 | S25: -3.22 | T25: 6.65 | U25: 86.81 | V25: -12.67 | W25: -7.96 | X25: -20.00 | Y25: -4.79 | Z25: -0.47 | AA25: -3.52 | AB25: -0.04 | AC25: 5.54 | AD25: -11.01 | AE25: 0.08 | AF25: 0.70 | AG25: -0.43 | AH25: -1.32 | AI25: 32.93 | AJ25: -24.02 | AK25: 11.49 | AL25: 3.48
A26: (一）银行自身 | C26: =C6-C16 -> 33.14 | D26: 0.00 | E26: 0.00 | F26: 0.00 | G26: 0.00 | H26: 0.02 | I26: -0.00 | J26: 0.00 | K26: -19.46 | L26: -0.05 | M26: 0.98 | N26: -0.01 | O26: -6.44 | P26: 0.00 | Q26: 4.15 | R26: 0.00 | S26: 0.02 | T26: 0.00 | U26: 3.08 | V26: 0.00 | W26: 0.00 | X26: 0.01 | Y26: 0.00 | Z26: -0.00 | AA26: 0.00 | AB26: 0.00 | AC26: -0.00 | AD26: 0.00 | AE26: 0.00 | AF26: 0.00 | AG26: 0.00 | AH26: 0.00 | AI26: -4.02 | AJ26: 0.00 | AK26: -0.49 | AL26: 1.07
A27: (二）银行代客 | C27: -246.35 | D27: 3.42 | E27: 9.82 | F27: 0.84 | G27: -2.90 | H27: -9.48 | I27: -13.88 | J27: -6.93 | K27: -118.08 | L27: 89.97 | M27: 176.32 | N27: 2.08 | O27: 27.53 | P27: 4.76 | Q27: 18.98 | R27: 7.85 | S27: -3.24 | T27: 6.64 | U27: 83.74 | V27: -12.67 | W27: -7.96 | X27: -20.01 | Y27: -4.79 | Z27: -0.47 | AA27: -3.52 | AB27: -0.04 | AC27: 5.54 | AD27: -11.01 | AE27: 0.08 | AF27: 0.70 | AG27: -0.43 | AH27: -1.33 | AI27: 36.96 | AJ27: -24.02 | AK27: 11.98 | AL27: 2.41
A28: 1.经常项目 | C28: -295.00 | D28: 2.49 | E28: 10.05 | F28: -0.42 | G28: -2.78 | H28: -9.24 | I28: -13.89 | J28: -7.24 | K28: -85.85 | L28: 87.14 | M28: 176.53 | N28: 1.52 | O28: 27.74 | P28: 4.34 | Q28: 16.52 | R28: 7.30 | S28: -3.62 | T28: 4.53 | U28: 81.46 | V28: -12.62 | W28: -8.46 | X28: -17.94 | Y28: -3.51 | Z28: 1.10 | AA28: -4.43 | AB28: -0.03 | AC28: 4.86 | AD28: -9.46 | AE28: 0.11 | AF28: 0.80 | AG28: 1.87 | AH28: 0.81 | AI28: 37.66 | AJ28: -25.13 | AK28: 12.01 | AL28: 15.90
A29: 1.1货物贸易 | C29: -264.56 | D29: 6.48 | E29: 9.53 | F29: 0.22 | G29: -1.85 | H29: -8.70 | I29: -11.57 | J29: -6.83 | K29: -87.10 | L29: 95.28 | M29: 186.06 | N29: 1.93 | O29: 27.06 | P29: 4.62 | Q29: 14.80 | R29: 7.60 | S29: -2.41 | T29: 4.89 | U29: 103.62 | V29: -12.44 | W29: -7.88 | X29: -16.58 | Y29: -3.64 | Z29: 1.25 | AA29: -3.95 | AB29: 0.01 | AC29: 5.91 | AD29: -9.28 | AE29: 0.14 | AF29: 1.01 | AG29: 2.08 | AH29: 0.76 | AI29: 38.75 | AJ29: -24.19 | AK29: 10.96 | AL29: 19.90
A30: 1.2服务贸易 | C30: -4.48 | D30: -0.15 | E30: -0.70 | F30: -0.58 | G30: -0.36 | H30: -1.00 | I30: -2.56 | J30: -0.72 | K30: 3.41 | L30: -4.76 | M30: -4.76 | N30: -0.58 | O30: -0.49 | P30: -0.62 | Q30: -2.10 | R30: -0.93 | S30: -1.18 | T30: -0.48 | U30: -2.55 | V30: -0.30 | W30: -0.59 | X30: -1.03 | Y30: -0.24 | Z30: -0.16 | AA30: -0.46 | AB30: -0.01 | AC30: -0.44 | AD30: -0.17 | AE30: -0.03 | AF30: -0.24 | AG30: -0.25 | AH30: 0.62 | AI30: -0.42 | AJ30: -0.81 | AK30: 0.15 | AL30: -1.30
A31: 1.3收益和经常转移 | C31: -25.97 | D31: -3.84 | E31: 1.21 | F31: -0.07 | G31: -0.58 | H31: 0.46 | I31: 0.24 | J31: 0.32 | K31: -2.17 | L31: -3.37 | M31: -4.77 | N31: 0.16 | O31: 1.16 | P31: 0.33 | Q31: 3.82 | R31: 0.63 | S31: -0.03 | T31: 0.12 | U31: -19.62 | V31: 0.12 | W31: 0.01 | X31: -0.34 | Y31: 0.37 | Z31: 0.01 | AA31: -0.02 | AB31: -0.03 | AC31: -0.61 | AD31: -0.02 | AE31: -0.00 | AF31: 0.03 | AG31: 0.04 | AH31: -0.57 | AI31: -0.67 | AJ31: -0.13 | AK31: 0.90 | AL31: -2.70
A32: 2.资本与金融项目 | C32: 48.66 | D32: 0.93 | E32: -0.23 | F32: 1.26 | G32: -0.12 | H32: -0.24 | I32: 0.01 | J32: 0.30 | K32: -32.23 | L32: 2.82 | M32: -0.21 | N32: 0.56 | O32: -0.21 | P32: 0.42 | Q32: 2.46 | R32: 0.56 | S32: 0.37 | T32: 2.11 | U32: 2.28 | V32: -0.05 | W32: 0.50 | X32: -2.06 | Y32: -1.27 | Z32: -1.57 | AA32: 0.91 | AB32: -0.01 | AC32: =AC12-AC22 -> 0.67 | AD32: -1.54 | AE32: -0.03 | AF32: -0.10 | AG32: -2.30 | AH32: -2.14 | AI32: -0.70 | AJ32: 1.11 | AK32: -0.03 | AL32: -13.49
A33: 其中: 直接投资 | C33: 5.67 | D33: 2.19 | E33: -0.23 | F33: 0.13 | G33: 0.26 | H33: 0.15 | I33: 0.21 | J33: 0.06 | K33: 0.08 | L33: 3.04 | M33: -1.37 | N33: 0.65 | O33: 0.01 | P33: 0.29 | Q33: 6.04 | R33: -0.16 | S33: -0.13 | T33: 0.26 | U33: 2.47 | V33: 0.36 | W33: -0.23 | X33: -2.06 | Y33: -1.13 | Z33: 0.07 | AA33: 0.05 | AB33: -0.01 | AC33: 0.40 | AD33: 0.01 | AE33: 0.01 | AF33: 0.00 | AG33: -0.05 | AH33: -0.03 | AI33: 1.11 | AJ33: 1.35 | AK33: 1.20 | AL33: -1.38
A34: 证券投资 | C34: 22.29 | D34: 0.55 | E34: -0.00 | F34: 1.25 | G34: -0.30 | H34: -0.00 | I34: 0.20 | J34: 0.00 | K34: -28.51 | L34: 0.19 | M34: 6.01 | N34: 0.00 | O34: 0.50 | P34: 0.15 | Q34: -1.91 | R34: 0.46 | S34: 0.00 | T34: 2.06 | U34: 1.09 | V34: 0.10 | W34: 0.72 | X34: 0.51 | Y34: 0.31 | Z34: -0.24 | AA34: 0.00 | AB34: 0.00 | AC34: 0.00 | AD34: 0.13 | AE34: 0.00 | AF34: 0.00 | AG34: -2.15 | AH34: 0.10 | AI34: 0.64 | AJ34: -0.20 | AK34: -0.31 | AL34: -8.02
A35: 注： 1.分地区是指办理结售汇业务的银行所在地。其中，本表中辽宁不含大连，浙江不含宁波，福建不含厦门，山东不含青岛，广东不含深圳。

Sheet 2022年6月（按美元）
A2: 2022年6月银行结售汇数据（分地区）
A3: 单位：亿美元
A4: 项目 | C4: 北京 | D4: 天津 | E4: 河北 | F4: 山西 | G4: 内蒙古 | H4: 辽宁 | I4: 吉林 | J4: 黑龙江 | K4: 上海 | L4: 江苏 | M4: 浙江 | N4: 安徽 | O4: 福建 | P4: 江西 | Q4: 山东 | R4: 河南 | S4: 湖北 | T4: 湖南 | U4: 广东 | V4: 广西 | W4: 海南 | X4: 重庆 | Y4: 四川 | Z4: 贵州 | AA4: 云南 | AB4: 西藏 | AC4: 陕西 | AD4: 甘肃 | AE4: 青海 | AF4: 宁夏 | AG4: 新疆 | AH4: 大连 | AI4: 宁波 | AJ4: 厦门 | AK4: 青岛 | AL4: 深圳
A5: 一、结汇 | C5: 207.85 | D5: 35.54 | E5: 30.94 | F5: 5.73 | G5: 4.55 | H5: 10.92 | I5: 6.35 | J5: 3.93 | K5: 386.05 | L5: 285.63 | M5: 285.89 | N5: 35.69 | O5: 79.52 | P5: 19.57 | Q5: 111.91 | R5: 28.68 | S5: 26.52 | T5: 25.94 | U5: 237.91 | V5: 8.43 | W5: 4.59 | X5: 29.28 | Y5: 24.96 | Z5: 4.19 | AA5: 6.41 | AB5: 0.02 | AC5: 19.00 | AD5: 1.35 | AE5: 0.34 | AF5: 1.80 | AG5: 5.14 | AH5: 17.15 | AI5: 127.55 | AJ5: 45.70 | AK5: 46.78 | AL5: 166.74
A6: (一）银行自身 | C6: 87.27 | D6: 0.01 | E6: 0.00 | F6: 0.00 | G6: 0.00 | H6: 0.00 | I6: 0.00 | J6: 0.00 | K6: 15.56 | L6: 0.30 | M6: 3.37 | N6: 0.00 | O6: 15.21 | P6: 0.00 | Q6: 0.02 | R6: 0.00 | S6: 0.01 | T6: 0.00 | U6: 0.03 | V6: 0.00 | W6: 0.03 | X6: 0.01 | Y6: 0.01 | Z6: 0.00 | AA6: 0.00 | AB6: 0.00 | AC6: 0.00 | AD6: 0.00 | AE6: 0.00 | AF6: 0.00 | AG6: 0.00 | AH6: 0.00 | AI6: 35.85 | AJ6: 0.00 | AK6: 0.01 | AL6: 0.20
A7: (二）银行代客 | C7: 120.58 | D7: 35.52 | E7: 30.94 | F7: 5.73 | G7: 4.55 | H7: 10.91 | I7: 6.35 | J7: 3.93 | K7: 370.49 | L7: 285.33 | M7: 282.52 | N7: 35.69 | O7: 64.31 | P7: 19.57 | Q7: 111.88 | R7: 28.68 | S7: 26.51 | T7: 25.94 | U7: 237.88 | V7: 8.43 | W7: 4.56 | X7: 29.27 | Y7: 24.95 | Z7: 4.19 | AA7: 6.41 | AB7: 0.02 | AC7: 19.00 | AD7: 1.35 | AE7: 0.34 | AF7: 1.80 | AG7: 5.14 | AH7: 17.15 | AI7: 91.69 | AJ7: 45.69 | AK7: 46.77 | AL7: 166.54
A8: 1.经常项目 | C8: 83.43 | D8: 31.92 | E8: 29.92 | F8: 5.66 | G8: 4.17 | H8: 10.39 | I8: 5.03 | J8: 3.88 | K8: 206.37 | L8: 265.55 | M8: 263.92 | N8: 29.81 | O8: 63.09 | P8: 17.30 | Q8: 93.81 | R8: 25.90 | S8: 22.61 | T8: 21.26 | U8: 223.51 | V8: 7.80 | W8: 2.89 | X8: 25.58 | Y8: 19.92 | Z8: 2.20 | AA8: 4.27 | AB8: 0.02 | AC8: 16.54 | AD8: 1.15 | AE8: 0.27 | AF8: 1.73 | AG8: 4.52 | AH8: 16.74 | AI8: 89.71 | AJ8: 42.94 | AK8: 43.38 | AL8: 146.75
A9: 1.1货物贸易 | C9: 48.05 | D9: 28.59 | E9: 28.77 | F9: 5.32 | G9: 3.82 | H9: 9.30 | I9: 4.39 | J9: 3.02 | K9: 149.39 | L9: 257.28 | M9: 257.03 | N9: 28.97 | O9: 59.58 | P9: 16.87 | Q9: 90.45 | R9: 24.59 | S9: 20.31 | T9: 20.28 | U9: 210.39 | V9: 7.32 | W9: 2.37 | X9: 24.44 | Y9: 17.12 | Z9: 2.04 | AA9: 3.80 | AB9: 0.01 | AC9: 15.35 | AD9: 0.97 | AE9: 0.24 | AF9: 1.69 | AG9: 4.30 | AH9: 14.43 | AI9: 87.03 | AJ9: 41.00 | AK9: 40.52 | AL9: 124.71
A10: 1.2服务贸易 | C10: 23.09 | D10: 2.78 | E10: 0.61 | F10: 0.22 | G10: 0.28 | H10: 0.47 | I10: 0.19 | J10: 0.26 | K10: 50.45 | L10: 5.70 | M10: 4.36 | N10: 0.54 | O10: 1.20 | P10: 0.20 | Q10: 2.22 | R10: 0.63 | S10: 1.68 | T10: 0.63 | U10: 9.75 | V10: 0.27 | W10: 0.44 | X10: 0.90 | Y10: 2.28 | Z10: 0.12 | AA10: 0.14 | AB10: 0.00 | AC10: 0.94 | AD10: 0.09 | AE10: 0.01 | AF10: 0.02 | AG10: 0.15 | AH10: 1.89 | AI10: 1.74 | AJ10: 1.32 | AK10: 2.26 | AL10: 18.60
A11: 1.3收益和经常转移 | C11: 12.29 | D11: 0.54 | E11: 0.55 | F11: 0.12 | G11: 0.08 | H11: 0.61 | I11: 0.45 | J11: 0.61 | K11: 6.53 | L11: 2.57 | M11: 2.52 | N11: 0.30 | O11: 2.31 | P11: 0.23 | Q11: 1.14 | R11: 0.68 | S11: 0.62 | T11: 0.36 | U11: 3.37 | V11: 0.20 | W11: 0.09 | X11: 0.24 | Y11: 0.52 | Z11: 0.05 | AA11: 0.33 | AB11: 0.00 | AC11: 0.25 | AD11: 0.09 | AE11: 0.01 | AF11: 0.02 | AG11: 0.07 | AH11: 0.42 | AI11: 0.94 | AJ11: 0.62 | AK11: 0.60 | AL11: 3.44
A12: 2.资本与金融项目 | C12: 37.15 | D12: 3.61 | E12: 1.02 | F12: 0.07 | G12: 0.38 | H12: 0.53 | I12: 1.32 | J12: 0.05 | K12: 164.12 | L12: 19.78 | M12: 18.60 | N12: 5.88 | O12: 1.22 | P12: 2.27 | Q12: 18.07 | R12: 2.77 | S12: 3.90 | T12: 4.68 | U12: 14.37 | V12: 0.63 | W12: 1.67 | X12: 3.69 | Y12: 5.03 | Z12: 1.99 | AA12: 2.14 | AB12: 0.00 | AC12: 2.46 | AD12: 0.20 | AE12: 0.07 | AF12: 0.07 | AG12: 0.62 | AH12: 0.41 | AI12: 1.98 | AJ12: 2.75 | AK12: 3.39 | AL12: 19.79
A13: 其中: 直接投资 | C13: 17.12 | D13: 3.04 | E13: 0.76 | F13: 0.04 | G13: 0.34 | H13: 0.50 | I13: 0.11 | J13: 0.04 | K13: 18.16 | L13: 11.76 | M13: 10.52 | N13: 5.17 | O13: 0.94 | P13: 1.59 | Q13: 13.39 | R13: 0.57 | S13: 1.31 | T13: 2.68 | U13: 6.53 | V13: 0.28 | W13: 0.67 | X13: 2.50 | Y13: 1.77 | Z13: 0.13 | AA13: 1.29 | AB13: 0.00 | AC13: 0.13 | AD13: 0.01 | AE13: 0.00 | AF13: 0.05 | AG13: 0.38 | AH13: 0.33 | AI13: 1.00 | AJ13: 2.38 | AK13: 2.55 | AL13: 7.61
A14: 证券投资 | C14: 15.64 | D14: 0.10 | E14: 0.00 | F14: 0.00 | G14: 0.01 | H14: 0.00 | I14: 0.00 | J14: 0.00 | K14: 144.22 | L14: 1.98 | M14: 5.46 | N14: 0.44 | O14: 0.07 | P14: 0.01 | Q14: 1.50 | R14: 1.65 | S14: 0.72 | T14: 1.82 | U14: 3.67 | V14: 0.00 | W14: 0.07 | X14: 1.03 | Y14: 1.28 | Z14: 1.39 | AA14: 0.00 | AB14: 0.00 | AC14: 0.33 | AD14: 0.11 | AE14: 0.00 | AF14: 0.00 | AG14: 0.00 | AH14: 0.03 | AI14: 0.31 | AJ14: 0.03 | AK14: 0.75 | AL14: 11.00
A15: 二、售汇 | C15: 557.43 | D15: 38.71 | E15: 21.48 | F15: 17.73 | G15: 7.17 | H15: 20.06 | I15: 10.48 | J15: 9.54 | K15: 509.73 | L15: 147.48 | M15: 98.38 | N15: 30.32 | O15: 53.63 | P15: 15.56 | Q15: 81.13 | R15: 18.33 | S15: 25.56 | T15: 21.06 | U15: 121.19 | V15: 21.06 | W15: 10.54 | X15: 28.24 | Y15: 27.53 | Z15: 3.70 | AA15: 13.26 | AB15: 0.64 | AC15: 22.31 | AD15: 8.65 | AE15: 0.14 | AF15: 0.52 | AG15: 4.99 | AH15: 13.94 | AI15: 90.86 | AJ15: 64.59 | AK15: 45.16 | AL15: 118.25
A16: (一）银行自身 | C16: 87.57 | D16: 0.72 | E16: 0.00 | F16: 0.00 | G16: 0.00 | H16: 0.00 | I16: 0.00 | J16: 0.03 | K16: 21.81 | L16: 0.11 | M16: 3.60 | N16: 0.00 | O16: 18.16 | P16: 0.00 | Q16: 0.26 | R16: 0.06 | S16: 0.00 | T16: 0.00 | U16: 0.87 | V16: 0.00 | W16: 0.17 | X16: 0.56 | Y16: 0.00 | Z16: 0.00 | AA16: 0.00 | AB16: 0.00 | AC16: 0.00 | AD16: 0.00 | AE16: 0.00 | AF16: 0.00 | AG16: 0.01 | AH16: 0.03 | AI16: 38.69 | AJ16: 0.00 | AK16: 0.01 | AL16: 1.32
A17: (二）银行代客 | C17: 469.86 | D17: 37.98 | E17: 21.48 | F17: 17.73 | G17: 7.17 | H17: 20.06 | I17: 10.48 | J17: 9.51 | K17: 487.92 | L17: 147.37 | M17: 94.78 | N17: 30.32 | O17: 35.47 | P17: 15.56 | Q17: 80.87 | R17: 18.27 | S17: 25.56 | T17: 21.06 | U17: 120.32 | V17: 21.06 | W17: 10.37 | X17: 27.67 | Y17: 27.53 | Z17: 3.70 | AA17: 13.26 | AB17: 0.64 | AC17: 22.31 | AD17: 8.65 | AE17: 0.14 | AF17: 0.52 | AG17: 4.98 | AH17: 13.91 | AI17: 52.17 | AJ17: 64.59 | AK17: 45.16 | AL17: 116.93
A18: 1.经常项目 | C18: 435.66 | D18: 32.02 | E18: 18.01 | F18: 17.57 | G18: 6.85 | H18: 18.83 | I18: 9.99 | J18: 9.41 | K18: 356.13 | L18: 130.54 | M18: 83.98 | N18: 29.14 | O18: 32.58 | P18: 13.34 | Q18: 68.62 | R18: 15.77 | S18: 21.51 | T18: 19.53 | U18: 101.22 | V18: 19.74 | W18: 9.17 | X18: 26.20 | Y18: 17.19 | Z18: 1.51 | AA18: 7.55 | AB18: 0.64 | AC18: 14.45 | AD18: 7.03 | AE18: 0.11 | AF18: 0.51 | AG18: 3.21 | AH18: 11.82 | AI18: 46.91 | AJ18: 62.76 | AK18: 42.45 | AL18: 108.76
A19: 1.1货物贸易 | C19: 291.91 | D19: 25.56 | E19: 15.59 | F19: 13.20 | G19: 5.45 | H19: 15.57 | I19: 7.08 | J19: 7.89 | K19: 253.92 | L19: 107.19 | M19: 71.52 | N19: 26.47 | O19: 28.54 | P19: 12.09 | Q19: 62.98 | R19: 12.63 | S19: 15.94 | T19: 17.60 | U19: 80.81 | V19: 18.12 | W19: 7.13 | X19: 21.90 | Y19: 12.54 | Z19: 0.99 | AA19: 6.55 | AB19: 0.57 | AC19: 12.19 | AD19: 6.71 | AE19: 0.05 | AF19: 0.27 | AG19: 2.09 | AH19: 9.06 | AI19: 41.58 | AJ19: 60.00 | AK19: 39.42 | AL19: 88.86
A20: 1.2服务贸易 | C20: 43.12 | D20: 3.63 | E20: 1.74 | F20: 0.99 | G20: 0.67 | H20: 1.97 | I20: 2.37 | J20: 1.37 | K20: 53.82 | L20: 11.29 | M20: 7.76 | N20: 1.92 | O20: 2.26 | P20: 0.94 | Q20: 4.44 | R20: 2.21 | S20: 4.24 | T20: 1.58 | U20: 13.88 | V20: 0.66 | W20: 1.77 | X20: 2.10 | Y20: 3.47 | Z20: 0.41 | AA20: 0.79 | AB20: 0.05 | AC20: 1.47 | AD20: 0.30 | AE20: 0.05 | AF20: 0.16 | AG20: 0.50 | AH20: 1.87 | AI20: 2.91 | AJ20: 2.41 | AK20: 2.64 | AL20: 14.24
A21: 1.3收益和经常转移 | C21: 100.63 | D21: 2.83 | E21: 0.68 | F21: 3.39 | G21: 0.72 | H21: 1.29 | I21: 0.54 | J21: 0.15 | K21: 48.39 | L21: 12.06 | M21: 4.70 | N21: 0.74 | O21: 1.78 | P21: 0.30 | Q21: 1.20 | R21: 0.93 | S21: 1.33 | T21: 0.35 | U21: 6.53 | V21: 0.96 | W21: 0.28 | X21: 2.20 | Y21: 1.18 | Z21: 0.11 | AA21: 0.21 | AB21: 0.03 | AC21: 0.79 | AD21: 0.02 | AE21: 0.01 | AF21: 0.08 | AG21: 0.62 | AH21: 0.90 | AI21: 2.42 | AJ21: 0.35 | AK21: 0.39 | AL21: 5.65
A22: 2.资本与金融项目 | C22: 34.21 | D22: 5.96 | E22: 3.47 | F22: 0.15 | G22: 0.32 | H22: 1.23 | I22: 0.49 | J22: 0.10 | K22: 131.79 | L22: 16.84 | M22: 10.80 | N22: 1.18 | O22: 2.89 | P22: 2.22 | Q22: 12.25 | R22: 2.50 | S22: 4.05 | T22: 1.54 | U22: 19.11 | V22: 1.32 | W22: 1.19 | X22: 1.48 | Y22: 10.34 | Z22: 2.19 | AA22: 5.71 | AB22: 0.00 | AC22: 7.86 | AD22: 1.63 | AE22: 0.03 | AF22: 0.01 | AG22: 1.77 | AH22: 2.08 | AI22: 5.26 | AJ22: 1.83 | AK22: 2.71 | AL22: 8.17
A23: 其中: 直接投资 | C23: 8.99 | D23: 3.83 | E23: 1.88 | F23: 0.05 | G23: 0.00 | H23: 0.97 | I23: 0.17 | J23: 0.02 | K23: 19.80 | L23: 6.55 | M23: 4.83 | N23: 0.35 | O23: 0.83 | P23: 1.09 | Q23: 3.44 | R23: 0.99 | S23: 2.01 | T23: 0.10 | U23: 4.83 | V23: 0.00 | W23: 0.37 | X23: 0.08 | Y23: 3.12 | Z23: 0.04 | AA23: 0.09 | AB23: 0.00 | AC23: 2.81 | AD23: 1.00 | AE23: 0.00 | AF23: 0.00 | AG23: 0.04 | AH23: 1.29 | AI23: 0.81 | AJ23: 1.52 | AK23: 1.31 | AL23: 2.87
A24: 证券投资 | C24: 14.14 | D24: 0.03 | E24: 0.12 | F24: 0.00 | G24: 0.00 | H24: 0.00 | I24: 0.02 | J24: 0.01 | K24: 103.67 | L24: 0.84 | M24: 1.38 | N24: 0.00 | O24: 0.00 | P24: 0.00 | Q24: 4.86 | R24: 0.00 | S24: 0.00 | T24: 0.00 | U24: 3.30 | V24: 1.80 | W24: 0.00 | X24: 0.01 | Y24: 3.21 | Z24: 0.00 | AA24: 4.90 | AB24: 0.00 | AC24: 0.92 | AD24: 0.09 | AE24: 0.00 | AF24: 0.00 | AG24: 0.74 | AH24: 0.09 | AI24: 0.15 | AJ24: 0.00 | AK24: 0.00 | AL24: 3.84
A25: 三、差额 | C25: =C5-C15 -> -349.58 | D25: =D5-D15 -> -3.17 | E25: 9.47 | F25: -12.00 | G25: -2.62 | H25: -9.15 | I25: -4.12 | J25: -5.61 | K25: -123.68 | L25: 138.14 | M25: 187.51 | N25: 5.37 | O25: 25.89 | P25: 4.01 | Q25: 30.77 | R25: 10.35 | S25: 0.96 | T25: 4.88 | U25: 116.72 | V25: -12.63 | W25: -5.95 | X25: 1.04 | Y25: -2.57 | Z25: 0.50 | AA25: -6.84 | AB25: -0.63 | AC25: -3.31 | AD25: -7.30 | AE25: 0.21 | AF25: 1.29 | AG25: 0.15 | AH25: 3.21 | AI25: 36.69 | AJ25: -18.90 | AK25: 1.62 | AL25: 48.49
A26: (一）银行自身 | C26: =C6-C16 -> -0.30 | D26: -0.71 | E26: 0.00 | F26: -0.00 | G26: 0.00 | H26: 0.00 | I26: -0.00 | J26: -0.03 | K26: -6.25 | L26: 0.19 | M26: -0.23 | N26: -0.00 | O26: -2.95 | P26: 0.00 | Q26: -0.24 | R26: -0.06 | S26: 0.01 | T26: 0.00 | U26: -0.84 | V26: 0.00 | W26: -0.14 | X26: -0.56 | Y26: 0.01 | Z26: 0.00 | AA26: 0.00 | AB26: 0.00 | AC26: 0.00 | AD26: 0.00 | AE26: 0.00 | AF26: 0.00 | AG26: -0.01 | AH26: -0.03 | AI26: -2.84 | AJ26: 0.00 | AK26: 0.00 | AL26: -1.12
A27: (二）银行代客 | C27: -349.28 | D27: -2.46 | E27: 9.46 | F27: -12.00 | G27: -2.62 | H27: -9.15 | I27: -4.12 | J27: -5.58 | K27: -117.43 | L27: 137.95 | M27: 187.74 | N27: 5.37 | O27: 28.84 | P27: 4.01 | Q27: 31.02 | R27: 10.41 | S27: 0.95 | T27: 4.88 | U27: 117.55 | V27: -12.63 | W27: -5.80 | X27: 1.60 | Y27: -2.58 | Z27: 0.50 | AA27: -6.85 | AB27: -0.63 | AC27: -3.31 | AD27: -7.30 | AE27: 0.21 | AF27: 1.29 | AG27: 0.16 | AH27: 3.24 | AI27: 39.52 | AJ27: -18.90 | AK27: 1.62 | AL27: 49.61
A28: 1.经常项目 | C28: -352.23 | D28: -0.11 | E28: 11.91 | F28: -11.91 | G28: -2.67 | H28: -8.45 | I28: -4.96 | J28: -5.52 | K28: -149.76 | L28: 135.01 | M28: 179.93 | N28: 0.67 | O28: 30.51 | P28: 3.96 | Q28: 25.20 | R28: 10.13 | S28: 1.10 | T28: 1.74 | U28: 122.30 | V28: -11.94 | W28: -6.28 | X28: -0.61 | Y28: 2.73 | Z28: 0.70 | AA28: -3.28 | AB28: -0.63 | AC28: 2.09 | AD28: -5.87 | AE28: 0.16 | AF28: 1.22 | AG28: 1.31 | AH28: 4.91 | AI28: 42.80 | AJ28: -19.82 | AK28: 0.94 | AL28: 37.99
A29: 1.1货物贸易 | C29: -243.86 | D29: 3.03 | E29: 13.18 | F29: -7.87 | G29: -1.64 | H29: -6.26 | I29: -2.70 | J29: -4.87 | K29: -104.52 | L29: 150.09 | M29: 185.51 | N29: 2.50 | O29: 31.04 | P29: 4.78 | Q29: 27.47 | R29: 11.96 | S29: 4.38 | T29: 2.68 | U29: 129.57 | V29: -10.80 | W29: -4.76 | X29: 2.54 | Y29: 4.58 | Z29: 1.05 | AA29: -2.75 | AB29: -0.56 | AC29: 3.16 | AD29: -5.74 | AE29: 0.19 | AF29: 1.42 | AG29: 2.22 | AH29: 5.38 | AI29: 45.45 | AJ29: -19.00 | AK29: 1.10 | AL29: 35.85
A30: 1.2服务贸易 | C30: -20.03 | D30: -0.85 | E30: -1.13 | F30: -0.77 | G30: -0.40 | H30: -1.50 | I30: -2.17 | J30: -1.11 | K30: -3.38 | L30: -5.59 | M30: -3.39 | N30: -1.38 | O30: -1.06 | P30: -0.74 | Q30: -2.22 | R30: -1.57 | S30: -2.57 | T30: -0.96 | U30: -4.13 | V30: -0.39 | W30: -1.33 | X30: -1.20 | Y30: -1.19 | Z30: -0.29 | AA30: -0.65 | AB30: -0.04 | AC30: -0.53 | AD30: -0.21 | AE30: -0.04 | AF30: -0.14 | AG30: -0.36 | AH30: 0.02 | AI30: -1.16 | AJ30: -1.09 | AK30: -0.38 | AL30: 4.36
A31: 1.3收益和经常转移 | C31: -88.33 | D31: -2.29 | E31: -0.14 | F31: -3.26 | G31: -0.64 | H31: -0.68 | I31: -0.09 | J31: 0.46 | K31: -41.87 | L31: -9.49 | M31: -2.18 | N31: -0.45 | O31: 0.53 | P31: -0.07 | Q31: -0.06 | R31: -0.25 | S31: -0.71 | T31: 0.01 | U31: -3.15 | V31: -0.75 | W31: -0.19 | X31: -1.95 | Y31: -0.66 | Z31: -0.06 | AA31: 0.12 | AB31: -0.03 | AC31: -0.54 | AD31: 0.07 | AE31: 0.01 | AF31: -0.05 | AG31: -0.55 | AH31: -0.48 | AI31: -1.48 | AJ31: 0.28 | AK31: 0.22 | AL31: -2.21
A32: 2.资本与金融项目 | C32: 2.94 | D32: -2.35 | E32: -2.45 | F32: -0.09 | G32: 0.06 | H32: -0.71 | I32: 0.84 | J32: -0.06 | K32: 32.33 | L32: 2.94 | M32: 7.80 | N32: 4.70 | O32: -1.67 | P32: 0.05 | Q32: 5.82 | R32: 0.27 | S32: -0.15 | T32: 3.15 | U32: -4.74 | V32: -0.69 | W32: 0.48 | X32: 2.21 | Y32: -5.31 | Z32: -0.20 | AA32: -3.57 | AB32: 0.00 | AC32: =AC12-AC22 -> -5.40 | AD32: -1.43 | AE32: 0.05 | AF32: 0.06 | AG32: -1.16 | AH32: -1.67 | AI32: -3.28 | AJ32: 0.92 | AK32: 0.68 | AL32: 11.62
A33: 其中: 直接投资 | C33: 8.12 | D33: -0.79 | E33: -1.13 | F33: -0.01 | G33: 0.34 | H33: -0.47 | I33: -0.06 | J33: 0.03 | K33: -1.64 | L33: 5.21 | M33: 5.69 | N33: 4.82 | O33: 0.12 | P33: 0.51 | Q33: 9.95 | R33: -0.42 | S33: -0.70 | T33: 2.58 | U33: 1.70 | V33: 0.28 | W33: 0.29 | X33: 2.43 | Y33: -1.34 | Z33: 0.10 | AA33: 1.19 | AB33: 0.00 | AC33: -2.68 | AD33: -0.99 | AE33: 0.00 | AF33: 0.05 | AG33: 0.34 | AH33: -0.96 | AI33: 0.19 | AJ33: 0.86 | AK33: 1.24 | AL33: 4.74
A34: 证券投资 | C34: 1.49 | D34: 0.07 | E34: -0.12 | F34: 0.00 | G34: 0.01 | H34: 0.00 | I34: -0.02 | J34: -0.01 | K34: 40.55 | L34: 1.14 | M34: 4.08 | N34: 0.44 | O34: 0.07 | P34: 0.01 | Q34: -3.37 | R34: 1.65 | S34: 0.72 | T34: 1.82 | U34: 0.37 | V34: -1.80 | W34: 0.07 | X34: 1.02 | Y34: -1.94 | Z34: 1.39 | AA34: -4.90 | AB34: 0.00 | AC34: -0.60 | AD34: 0.02 | AE34: 0.00 | AF34: 0.00 | AG34: -0.74 | AH34: -0.06 | AI34: 0.16 | AJ34: 0.03 | AK34: 0.75 | AL34: 7.17
A35: 注： 1.分地区是指办理结售汇业务的银行所在地。其中，本表中辽宁不含大连，浙江不含宁波，福建不含厦门，山东不含青岛，广东不含深圳。

Sheet 2022年7月（按美元）
A2: 2022年7月银行结售汇数据（分地区）
A3: 单位：亿美元
A4: 项目 | C4: 北京 | D4: 天津 | E4: 河北 | F4: 山西 | G4: 内蒙古 | H4: 辽宁 | I4: 吉林 | J4: 黑龙江 | K4: 上海 | L4: 江苏 | M4: 浙江 | N4: 安徽 | O4: 福建 | P4: 江西 | Q4: 山东 | R4: 河南 | S4: 湖北 | T4: 湖南 | U4: 广东 | V4: 广西 | W4: 海南 | X4: 重庆 | Y4: 四川 | Z4: 贵州 | AA4: 云南 | AB4: 西藏 | AC4: 陕西 | AD4: 甘肃 | AE4: 青海 | AF4: 宁夏 | AG4: 新疆 | AH4: 大连 | AI4: 宁波 | AJ4: 厦门 | AK4: 青岛 | AL4: 深圳
A5: 一、结汇 | C5: 148.82 | D5: 32.58 | E5: 31.20 | F5: 5.88 | G5: 4.07 | H5: 10.64 | I5: 5.31 | J5: 3.87 | K5: 306.20 | L5: 280.97 | M5: 291.60 | N5: 34.09 | O5: 76.90 | P5: 23.02 | Q5: 114.80 | R5: 28.82 | S5: 28.04 | T5: 24.27 | U5: 239.04 | V5: 8.48 | W5: 5.03 | X5: 21.94 | Y5: 41.23 | Z5: 2.66 | AA5: 5.09 | AB5: 0.02 | AC5: 20.71 | AD5: 1.01 | AE5: 0.25 | AF5: 1.63 | AG5: 5.17 | AH5: 18.53 | AI5: 129.61 | AJ5: 46.81 | AK5: 48.34 | AL5: 156.67
A6: (一）银行自身 | C6: 30.40 | D6: 0.04 | E6: 0.06 | F6: 0.00 | G6: 0.00 | H6: 0.00 | I6: 0.00 | J6: 0.00 | K6: 14.09 | L6: 0.43 | M6: 1.98 | N6: 0.00 | O6: 11.91 | P6: 0.00 | Q6: 0.05 | R6: 0.00 | S6: 0.00 | T6: 0.00 | U6: 0.71 | V6: 0.00 | W6: 0.00 | X6: 0.01 | Y6: 0.00 | Z6: 0.00 | AA6: 0.00 | AB6: 0.00 | AC6: 0.00 | AD6: 0.00 | AE6: 0.00 | AF6: 0.00 | AG6: -0.06 | AH6: 0.00 | AI6: 34.41 | AJ6: 0.00 | AK6: 0.01 | AL6: 0.20
A7: (二）银行代客 | C7: 118.42 | D7: 32.54 | E7: 31.14 | F7: 5.88 | G7: 4.07 | H7: 10.64 | I7: 5.31 | J7: 3.87 | K7: 292.10 | L7: 280.55 | M7: 289.61 | N7: 34.09 | O7: 64.99 | P7: 23.02 | Q7: 114.75 | R7: 28.82 | S7: 28.04 | T7: 24.27 | U7: 238.32 | V7: 8.48 | W7: 5.03 | X7: 21.93 | Y7: 41.22 | Z7: 2.66 | AA7: 5.08 | AB7: 0.02 | AC7: 20.71 | AD7: 1.01 | AE7: 0.25 | AF7: 1.63 | AG7: 5.23 | AH7: 18.53 | AI7: 95.19 | AJ7: 46.81 | AK7: 48.33 | AL7: 156.47
A8: 1.经常项目 | C8: 81.76 | D8: 30.89 | E8: 29.95 | F8: 5.87 | G8: 3.84 | H8: 10.56 | I8: 4.63 | J8: 3.78 | K8: 195.52 | L8: 263.39 | M8: 274.97 | N8: 33.10 | O8: 62.29 | P8: 20.21 | Q8: 98.10 | R8: 28.35 | S8: 24.58 | T8: 23.77 | U8: 228.94 | V8: 7.24 | W8: 3.10 | X8: 19.03 | Y8: 22.09 | Z8: 2.00 | AA8: 4.31 | AB8: 0.02 | AC8: 18.20 | AD8: 0.89 | AE8: 0.25 | AF8: 1.47 | AG8: 4.05 | AH8: 18.39 | AI8: 93.32 | AJ8: 45.34 | AK8: 45.38 | AL8: 143.22
A9: 1.1货物贸易 | C9: 48.22 | D9: 26.94 | E9: 28.23 | F9: 5.51 | G9: 3.48 | H9: 9.32 | I9: 3.92 | J9: 3.18 | K9: 138.42 | L9: 255.62 | M9: 269.57 | N9: 32.05 | O9: 59.46 | P9: 19.62 | Q9: 94.68 | R9: 26.87 | S9: 21.96 | T9: 21.66 | U9: 216.84 | V9: 6.81 | W9: 2.67 | X9: 17.76 | Y9: 18.14 | Z9: 1.83 | AA9: 3.90 | AB9: 0.01 | AC9: 16.77 | AD9: 0.72 | AE9: 0.22 | AF9: 1.42 | AG9: 3.70 | AH9: 16.16 | AI9: 90.66 | AJ9: 43.25 | AK9: 41.97 | AL9: 123.41
A10: 1.2服务贸易 | C10: 24.15 | D10: 2.85 | E10: 1.06 | F10: 0.21 | G10: 0.25 | H10: 0.41 | I10: 0.20 | J10: 0.26 | K10: 51.31 | L10: 5.31 | M10: 3.38 | N10: 0.67 | O10: 0.99 | P10: 0.32 | Q10: 1.84 | R10: 0.58 | S10: 1.27 | T10: 1.04 | U10: 9.13 | V10: 0.21 | W10: 0.36 | X10: 0.80 | Y10: 2.26 | Z10: 0.13 | AA10: 0.19 | AB10: 0.01 | AC10: 1.11 | AD10: 0.06 | AE10: 0.01 | AF10: 0.03 | AG10: 0.24 | AH10: 1.64 | AI10: 2.18 | AJ10: 1.82 | AK10: 2.64 | AL10: 15.83
A11: 1.3收益和经常转移 | C11: 9.39 | D11: 1.11 | E11: 0.66 | F11: 0.15 | G11: 0.11 | H11: 0.83 | I11: 0.51 | J11: 0.34 | K11: 5.79 | L11: 2.46 | M11: 2.02 | N11: 0.39 | O11: 1.85 | P11: 0.26 | Q11: 1.58 | R11: 0.90 | S11: 1.35 | T11: 1.07 | U11: 2.98 | V11: 0.22 | W11: 0.07 | X11: 0.46 | Y11: 1.70 | Z11: 0.05 | AA11: 0.21 | AB11: 0.00 | AC11: 0.32 | AD11: 0.11 | AE11: 0.01 | AF11: 0.03 | AG11: 0.11 | AH11: 0.59 | AI11: 0.48 | AJ11: 0.28 | AK11: 0.78 | AL11: 3.98
A12: 2.资本与金融项目 | C12: 36.66 | D12: 1.65 | E12: 1.18 | F12: 0.01 | G12: 0.22 | H12: 0.08 | I12: 0.68 | J12: 0.09 | K12: 96.58 | L12: 17.15 | M12: 14.64 | N12: 0.99 | O12: 2.69 | P12: 2.82 | Q12: 16.65 | R12: 0.47 | S12: 3.46 | T12: 0.49 | U12: 9.38 | V12: 1.24 | W12: 1.94 | X12: 2.91 | Y12: 19.13 | Z12: 0.65 | AA12: 0.78 | AB12: 0.00 | AC12: 2.50 | AD12: 0.12 | AE12: 0.00 | AF12: 0.16 | AG12: 1.18 | AH12: 0.15 | AI12: 1.87 | AJ12: 1.46 | AK12: 2.95 | AL12: 13.25
A13: 其中: 直接投资 | C13: 16.30 | D13: 1.45 | E13: 0.29 | F13: 0.01 | G13: 0.21 | H13: 0.07 | I13: 0.20 | J13: 0.02 | K13: 20.20 | L13: 11.55 | M13: 8.60 | N13: 0.69 | O13: 1.20 | P13: 1.05 | Q13: 15.34 | R13: 0.23 | S13: 2.31 | T13: 0.41 | U13: 5.31 | V13: 0.18 | W13: 0.41 | X13: 2.47 | Y13: 0.78 | Z13: 0.57 | AA13: 0.14 | AB13: 0.00 | AC13: 0.06 | AD13: 0.00 | AE13: 0.00 | AF13: 0.01 | AG13: 0.02 | AH13: 0.06 | AI13: 1.11 | AJ13: 1.32 | AK13: 1.66 | AL13: 6.11
A14: 证券投资 | C14: 14.39 | D14: 0.11 | E14: 0.71 | F14: 0.00 | G14: 0.01 | H14: 0.01 | I14: 0.00 | J14: 0.00 | K14: 73.85 | L14: 1.90 | M14: 4.98 | N14: 0.15 | O14: 1.42 | P14: 1.59 | Q14: 0.71 | R14: 0.00 | S14: 0.76 | T14: 0.01 | U14: 2.95 | V14: 0.50 | W14: 0.85 | X14: 0.04 | Y14: 17.37 | Z14: 0.00 | AA14: 0.00 | AB14: 0.00 | AC14: 1.52 | AD14: 0.10 | AE14: 0.00 | AF14: 0.00 | AG14: 0.13 | AH14: 0.00 | AI14: 0.22 | AJ14: 0.01 | AK14: 1.19 | AL14: 5.41
A15: 二、售汇 | C15: 505.21 | D15: 33.63 | E15: 17.01 | F15: 6.87 | G15: 8.92 | H15: 16.53 | I15: 12.25 | J15: 8.30 | K15: 514.01 | L15: 153.17 | M15: 97.92 | N15: 29.22 | O15: 66.10 | P15: 12.51 | Q15: 81.46 | R15: 22.20 | S15: 25.62 | T15: 16.54 | U15: 127.52 | V15: 21.22 | W15: 11.57 | X15: 28.33 | Y15: 32.65 | Z15: 6.66 | AA15: 12.26 | AB15: 0.28 | AC15: 12.17 | AD15: 4.75 | AE15: 0.22 | AF15: 0.80 | AG15: 2.93 | AH15: 12.08 | AI15: 84.13 | AJ15: 64.51 | AK15: 39.60 | AL15: 123.11
A16: (一）银行自身 | C16: 95.34 | D16: 0.00 | E16: 0.01 | F16: 0.00 | G16: 0.00 | H16: 0.01 | I16: 0.00 | J16: 0.00 | K16: 41.65 | L16: 0.98 | M16: 8.05 | N16: 0.00 | O16: 27.24 | P16: 0.00 | Q16: 0.22 | R16: 0.00 | S16: 0.00 | T16: 0.00 | U16: 3.79 | V16: 0.00 | W16: 0.11 | X16: 0.78 | Y16: 0.17 | Z16: 0.00 | AA16: 0.00 | AB16: 0.00 | AC16: 0.00 | AD16: 0.00 | AE16: 0.00 | AF16: 0.00 | AG16: -0.01 | AH16: 0.00 | AI16: 34.43 | AJ16: 0.00 | AK16: 0.00 | AL16: 4.02
A17: (二）银行代客 | C17: 409.87 | D17: 33.63 | E17: 17.00 | F17: 6.87 | G17: 8.92 | H17: 16.52 | I17: 12.25 | J17: 8.30 | K17: 472.36 | L17: 152.19 | M17: 89.87 | N17: 29.22 | O17: 38.86 | P17: 12.51 | Q17: 81.25 | R17: 22.20 | S17: 25.62 | T17: 16.54 | U17: 123.73 | V17: 21.22 | W17: 11.46 | X17: 27.55 | Y17: 32.49 | Z17: 6.66 | AA17: 12.26 | AB17: 0.28 | AC17: 12.17 | AD17: 4.74 | AE17: 0.22 | AF17: 0.80 | AG17: 2.94 | AH17: 12.08 | AI17: 49.70 | AJ17: 64.51 | AK17: 39.60 | AL17: 119.08
A18: 1.经常项目 | C18: 365.72 | D18: 30.20 | E18: 15.11 | F18: 6.81 | G18: 7.50 | H18: 16.17 | I18: 12.10 | J18: 8.25 | K18: 336.97 | L18: 140.95 | M18: 79.97 | N18: 28.44 | O18: 34.79 | P18: 11.06 | Q18: 71.54 | R18: 17.86 | S18: 23.13 | T18: 16.13 | U18: 113.73 | V18: 20.62 | W18: 10.16 | X18: 25.88 | Y18: 17.71 | Z18: 2.80 | AA18: 9.86 | AB18: 0.11 | AC18: 11.27 | AD18: 4.35 | AE18: 0.11 | AF18: 0.55 | AG18: 1.91 | AH18: 8.94 | AI18: 44.58 | AJ18: 60.82 | AK18: 37.32 | AL18: 99.61
A19: 1.1货物贸易 | C19: 287.24 | D19: 24.49 | E19: 12.38 | F19: 5.66 | G19: 4.42 | H19: 13.96 | I19: 9.93 | J19: 6.79 | K19: 241.00 | L19: 125.09 | M19: 66.92 | N19: 25.19 | O19: 32.16 | P19: 8.99 | Q19: 62.10 | R19: 14.04 | S19: 18.12 | T19: 13.18 | U19: 87.99 | V19: 18.29 | W19: 8.71 | X19: 21.20 | Y19: 13.28 | Z19: 2.39 | AA19: 8.97 | AB19: 0.00 | AC19: 9.29 | AD19: 4.04 | AE19: 0.05 | AF19: 0.40 | AG19: 1.36 | AH19: 7.00 | AI19: 41.09 | AJ19: 57.41 | AK19: 34.34 | AL19: 80.55
A20: 1.2服务贸易 | C20: 39.66 | D20: 3.78 | E20: 1.95 | F20: 1.09 | G20: 0.88 | H20: 2.05 | I20: 1.35 | J20: 1.39 | K20: 54.63 | L20: 10.27 | M20: 7.46 | N20: 1.74 | O20: 2.17 | P20: 0.94 | Q20: 5.08 | R20: 2.22 | S20: 3.82 | T20: 1.97 | U20: 11.33 | V20: 0.82 | W20: 1.36 | X20: 3.97 | Y20: 3.50 | Z20: 0.39 | AA20: 0.82 | AB20: 0.10 | AC20: 1.61 | AD20: 0.31 | AE20: 0.06 | AF20: 0.15 | AG20: 0.54 | AH20: 1.57 | AI20: 2.87 | AJ20: 2.54 | AK20: 2.82 | AL20: 11.99
A21: 1.3收益和经常转移 | C21: 38.81 | D21: 1.93 | E21: 0.78 | F21: 0.06 | G21: 2.20 | H21: 0.15 | I21: 0.82 | J21: 0.06 | K21: 41.35 | L21: 5.59 | M21: 5.59 | N21: 1.51 | O21: 0.46 | P21: 1.14 | Q21: 4.35 | R21: 1.60 | S21: 1.18 | T21: 0.98 | U21: 14.41 | V21: 1.51 | W21: 0.09 | X21: 0.70 | Y21: 0.94 | Z21: 0.03 | AA21: 0.07 | AB21: 0.01 | AC21: 0.36 | AD21: 0.00 | AE21: 0.00 | AF21: 0.00 | AG21: 0.02 | AH21: 0.37 | AI21: 0.61 | AJ21: 0.87 | AK21: 0.16 | AL21: 7.06
A22: 2.资本与金融项目 | C22: 44.15 | D22: 3.43 | E22: 1.89 | F22: 0.06 | G22: 1.42 | H22: 0.35 | I22: 0.15 | J22: 0.05 | K22: 135.39 | L22: 11.24 | M22: 9.90 | N22: 0.79 | O22: 4.07 | P22: 1.45 | Q22: 9.71 | R22: 4.34 | S22: 2.49 | T22: 0.41 | U22: 9.99 | V22: 0.59 | W22: 1.30 | X22: 1.67 | Y22: 14.77 | Z22: 3.86 | AA22: 2.40 | AB22: 0.17 | AC22: 0.91 | AD22: 0.39 | AE22: 0.12 | AF22: 0.24 | AG22: 1.03 | AH22: 3.14 | AI22: 5.12 | AJ22: 3.69 | AK22: 2.28 | AL22: 19.48
A23: 其中: 直接投资 | C23: 20.58 | D23: 2.28 | E23: 0.09 | F23: 0.04 | G23: 1.22 | H23: 0.15 | I23: 0.06 | J23: 0.01 | K23: 29.76 | L23: 4.89 | M23: 4.02 | N23: 0.17 | O23: 0.40 | P23: 0.52 | Q23: 4.66 | R23: 2.46 | S23: 0.87 | T23: 0.10 | U23: 3.93 | V23: 0.17 | W23: 1.23 | X23: 0.38 | Y23: 12.65 | Z23: 0.59 | AA23: 0.13 | AB23: 0.09 | AC23: 0.05 | AD23: 0.00 | AE23: 0.00 | AF23: 0.00 | AG23: 0.21 | AH23: 0.17 | AI23: 2.71 | AJ23: 3.36 | AK23: 1.09 | AL23: 1.85
A24: 证券投资 | C24: 14.74 | D24: 0.73 | E24: 1.48 | F24: 0.00 | G24: 0.00 | H24: 0.00 | I24: 0.00 | J24: 0.00 | K24: 94.56 | L24: 0.79 | M24: 0.23 | N24: 0.09 | O24: 1.51 | P24: 0.00 | Q24: 1.94 | R24: 0.50 | S24: 0.67 | T24: 0.00 | U24: 3.34 | V24: 0.06 | W24: 0.06 | X24: 0.70 | Y24: 0.01 | Z24: 0.00 | AA24: 1.75 | AB24: 0.00 | AC24: 0.00 | AD24: 0.00 | AE24: 0.00 | AF24: 0.00 | AG24: 0.00 | AH24: 2.77 | AI24: 0.70 | AJ24: 0.21 | AK24: 0.52 | AL24: 9.80
A25: 三、差额 | C25: =C5-C15 -> -356.39 | D25: =D5-D15 -> -1.05 | E25: 14.19 | F25: -0.98 | G25: -4.85 | H25: -5.89 | I25: -6.94 | J25: -4.43 | K25: -207.82 | L25: 127.80 | M25: 193.68 | N25: 4.87 | O25: 10.80 | P25: 10.51 | Q25: 33.34 | R25: 6.62 | S25: 2.42 | T25: 7.73 | U25: 111.52 | V25: -12.73 | W25: -6.53 | X25: -6.39 | Y25: 8.57 | Z25: -4.01 | AA25: -7.18 | AB25: -0.26 | AC25: 8.53 | AD25: -3.74 | AE25: 0.02 | AF25: 0.84 | AG25: 2.24 | AH25: 6.46 | AI25: 45.48 | AJ25: -17.70 | AK25: 8.73 | AL25: 33.57
A26: (一）银行自身 | C26: =C6-C16 -> -64.94 | D26: 0.04 | E26: 0.05 | F26: 0.00 | G26: 0.00 | H26: -0.01 | I26: -0.00 | J26: 0.00 | K26: -27.56 | L26: -0.55 | M26: -6.06 | N26: 0.00 | O26: -15.33 | P26: 0.00 | Q26: -0.16 | R26: -0.00 | S26: 0.00 | T26: 0.00 | U26: -3.08 | V26: 0.00 | W26: -0.11 | X26: -0.77 | Y26: -0.17 | Z26: 0.00 | AA26: 0.00 | AB26: 0.00 | AC26: 0.00 | AD26: -0.00 | AE26: 0.00 | AF26: 0.00 | AG26: -0.05 | AH26: 0.00 | AI26: -0.01 | AJ26: 0.00 | AK26: 0.00 | AL26: -3.82
A27: (二）银行代客 | C27: -291.45 | D27: -1.08 | E27: 14.13 | F27: -0.98 | G27: -4.85 | H27: -5.88 | I27: -6.94 | J27: -4.43 | K27: -180.26 | L27: 128.36 | M27: 199.74 | N27: 4.87 | O27: 26.13 | P27: 10.51 | Q27: 33.50 | R27: 6.62 | S27: 2.42 | T27: 7.73 | U27: 114.60 | V27: -12.73 | W27: -6.43 | X27: -5.62 | Y27: 8.74 | Z27: -4.01 | AA27: -7.18 | AB27: -0.26 | AC27: 8.53 | AD27: -3.74 | AE27: 0.02 | AF27: 0.84 | AG27: 2.29 | AH27: 6.46 | AI27: 45.50 | AJ27: -17.71 | AK27: 8.73 | AL27: 37.39
A28: 1.经常项目 | C28: -283.96 | D28: 0.70 | E28: 14.84 | F28: -0.94 | G28: -3.65 | H28: -5.61 | I28: -7.47 | J28: -4.46 | K28: -141.45 | L28: 122.44 | M28: 195.00 | N28: 4.67 | O28: 27.50 | P28: 9.14 | Q28: 26.56 | R28: 10.48 | S28: 1.45 | T28: 7.64 | U28: 115.21 | V28: -13.38 | W28: -7.07 | X28: -6.85 | Y28: 4.38 | Z28: -0.80 | AA28: -5.56 | AB28: -0.09 | AC28: 6.94 | AD28: -3.47 | AE28: 0.14 | AF28: 0.92 | AG28: 2.14 | AH28: 9.45 | AI28: 48.74 | AJ28: -15.48 | AK28: 8.06 | AL28: 43.61
A29: 1.1货物贸易 | C29: -239.02 | D29: 2.45 | E29: 15.85 | F29: -0.14 | G29: -0.93 | H29: -4.64 | I29: -6.01 | J29: -3.61 | K29: -102.58 | L29: 130.53 | M29: 202.65 | N29: 6.86 | O29: 27.29 | P29: 10.64 | Q29: 32.57 | R29: 12.83 | S29: 3.84 | T29: 8.48 | U29: 128.85 | V29: -11.49 | W29: -6.05 | X29: -3.44 | Y29: 4.86 | Z29: -0.56 | AA29: -5.07 | AB29: 0.00 | AC29: 7.48 | AD29: -3.32 | AE29: 0.18 | AF29: 1.02 | AG29: 2.34 | AH29: 9.16 | AI29: 49.56 | AJ29: -14.16 | AK29: 7.63 | AL29: 42.86
A30: 1.2服务贸易 | C30: -15.51 | D30: -0.93 | E30: -0.89 | F30: -0.88 | G30: -0.63 | H30: -1.64 | I30: -1.15 | J30: -1.14 | K30: -3.31 | L30: -4.96 | M30: -4.09 | N30: -1.07 | O30: -1.17 | P30: -0.62 | Q30: -3.25 | R30: -1.64 | S30: -2.55 | T30: -0.92 | U30: -2.21 | V30: -0.60 | W30: -1.00 | X30: -3.17 | Y30: -1.24 | Z30: -0.26 | AA30: -0.63 | AB30: -0.09 | AC30: -0.50 | AD30: -0.26 | AE30: -0.05 | AF30: -0.12 | AG30: -0.30 | AH30: 0.07 | AI30: -0.69 | AJ30: -0.73 | AK30: -0.19 | AL30: 3.84
A31: 1.3收益和经常转移 | C31: -29.43 | D31: -0.82 | E31: -0.12 | F31: 0.09 | G31: -2.09 | H31: 0.67 | I31: -0.31 | J31: 0.29 | K31: -35.57 | L31: -3.13 | M31: -3.57 | N31: -1.12 | O31: 1.39 | P31: -0.88 | Q31: -2.77 | R31: -0.71 | S31: 0.17 | T31: 0.09 | U31: -11.43 | V31: -1.29 | W31: -0.02 | X31: -0.24 | Y31: 0.76 | Z31: 0.02 | AA31: 0.14 | AB31: -0.00 | AC31: -0.04 | AD31: 0.11 | AE31: 0.01 | AF31: 0.02 | AG31: 0.09 | AH31: 0.22 | AI31: -0.13 | AJ31: -0.59 | AK31: 0.62 | AL31: -3.09
A32: 2.资本与金融项目 | C32: -7.49 | D32: -1.78 | E32: -0.71 | F32: -0.04 | G32: -1.20 | H32: -0.27 | I32: 0.53 | J32: 0.03 | K32: -38.80 | L32: 5.92 | M32: 4.74 | N32: 0.20 | O32: -1.38 | P32: 1.36 | Q32: 6.94 | R32: -3.87 | S32: 0.96 | T32: 0.09 | U32: -0.61 | V32: 0.65 | W32: 0.64 | X32: 1.23 | Y32: 4.36 | Z32: -3.21 | AA32: -1.62 | AB32: -0.17 | AC32: =AC12-AC22 -> 1.60 | AD32: -0.27 | AE32: -0.12 | AF32: -0.08 | AG32: 0.15 | AH32: -2.99 | AI32: -3.25 | AJ32: -2.23 | AK32: 0.67 | AL32: -6.23
A33: 其中: 直接投资 | C33: -4.28 | D33: -0.83 | E33: 0.19 | F33: -0.03 | G33: -1.01 | H33: -0.08 | I33: 0.14 | J33: 0.01 | K33: -9.56 | L33: 6.66 | M33: 4.58 | N33: 0.52 | O33: 0.81 | P33: 0.53 | Q33: 10.68 | R33: -2.24 | S33: 1.44 | T33: 0.31 | U33: 1.39 | V33: 0.01 | W33: -0.82 | X33: 2.09 | Y33: -11.87 | Z33: -0.02 | AA33: 0.02 | AB33: -0.09 | AC33: 0.01 | AD33: 0.00 | AE33: 0.00 | AF33: 0.01 | AG33: -0.19 | AH33: -0.11 | AI33: -1.60 | AJ33: -2.05 | AK33: 0.57 | AL33: 4.26
A34: 证券投资 | C34: -0.35 | D34: -0.62 | E34: -0.77 | F34: 0.00 | G34: 0.01 | H34: 0.01 | I34: -0.00 | J34: 0.00 | K34: -20.71 | L34: 1.11 | M34: 4.75 | N34: 0.06 | O34: -0.09 | P34: 1.59 | Q34: -1.22 | R34: -0.50 | S34: 0.09 | T34: 0.01 | U34: -0.39 | V34: 0.44 | W34: 0.79 | X34: -0.67 | Y34: 17.36 | Z34: 0.00 | AA34: -1.75 | AB34: 0.00 | AC34: 1.52 | AD34: 0.10 | AE34: 0.00 | AF34: 0.00 | AG34: 0.13 | AH34: -2.77 | AI34: -0.48 | AJ34: -0.19 | AK34: 0.67 | AL34: -4.40
A35: 注： 1.分地区是指办理结售汇业务的银行所在地。其中，本表中辽宁不含大连，浙江不含宁波，福建不含厦门，山东不含青岛，广东不含深圳。

Sheet 2022年8月（按美元）
A2: 2022年8月银行结售汇数据（分地区）
A3: 单位：亿美元
A4: 项目 | C4: 北京 | D4: 天津 | E4: 河北 | F4: 山西 | G4: 内蒙古 | H4: 辽宁 | I4: 吉林 | J4: 黑龙江 | K4: 上海 | L4: 江苏 | M4: 浙江 | N4: 安徽 | O4: 福建 | P4: 江西 | Q4: 山东 | R4: 河南 | S4: 湖北 | T4: 湖南 | U4: 广东 | V4: 广西 | W4: 海南 | X4: 重庆 | Y4: 四川 | Z4: 贵州 | AA4: 云南 | AB4: 西藏 | AC4: 陕西 | AD4: 甘肃 | AE4: 青海 | AF4: 宁夏 | AG4: 新疆 | AH4: 大连 | AI4: 宁波 | AJ4: 厦门 | AK4: 青岛 | AL4: 深圳
A5: 一、结汇 | C5: 159.74 | D5: 36.40 | E5: 34.85 | F5: 5.79 | G5: 4.10 | H5: 11.96 | I5: 6.55 | J5: 3.90 | K5: 333.78 | L5: 300.50 | M5: 306.64 | N5: 38.88 | O5: 73.22 | P5: 25.54 | Q5: 112.59 | R5: 30.73 | S5: 30.46 | T5: 29.52 | U5: 266.24 | V5: 7.96 | W5: 4.52 | X5: 20.03 | Y5: 25.28 | Z5: 4.82 | AA5: 5.77 | AB5: 0.04 | AC5: 26.53 | AD5: 0.64 | AE5: 0.27 | AF5: 1.62 | AG5: 2.81 | AH5: 19.18 | AI5: 136.65 | AJ5: 49.87 | AK5: 46.54 | AL5: 187.94
A6: (一）银行自身 | C6: 23.78 | D6: 0.01 | E6: -0.06 | F6: 0.00 | G6: 0 | H6: 0.00 | I6: 0.01 | J6: 0.00 | K6: 28.20 | L6: 0.05 | M6: 2.61 | N6: 0.02 | O6: 2.62 | P6: 0.00 | Q6: 0.01 | R6: 1.00 | S6: 0.00 | T6: 0.00 | U6: 0.66 | V6: 0.00 | W6: 0 | X6: 0.01 | Y6: 0.00 | Z6: 0 | AA6: 0.00 | AB6: 0 | AC6: 0.00 | AD6: 0.00 | AE6: 0 | AF6: 0 | AG6: 0.30 | AH6: 0.00 | AI6: 34.33 | AJ6: 0.00 | AK6: 0.01 | AL6: 0.39
A7: (二）银行代客 | C7: 135.96 | D7: 36.40 | E7: 34.91 | F7: 5.79 | G7: 4.10 | H7: 11.96 | I7: 6.54 | J7: 3.89 | K7: 305.58 | L7: 300.45 | M7: 304.03 | N7: 38.86 | O7: 70.59 | P7: 25.53 | Q7: 112.58 | R7: 29.73 | S7: 30.46 | T7: 29.52 | U7: 265.59 | V7: 7.95 | W7: 4.52 | X7: 20.02 | Y7: 25.28 | Z7: 4.82 | AA7: 5.77 | AB7: 0.04 | AC7: 26.53 | AD7: 0.64 | AE7: 0.27 | AF7: 1.62 | AG7: 2.50 | AH7: 19.18 | AI7: 102.32 | AJ7: 49.87 | AK7: 46.53 | AL7: 187.55
A8: 1.经常项目 | C8: 85.55 | D8: 33.70 | E8: 31.18 | F8: 5.36 | G8: 3.93 | H8: 11.65 | I8: 4.78 | J8: 3.88 | K8: 207.41 | L8: 282.20 | M8: 292.55 | N8: 33.64 | O8: 68.49 | P8: 20.64 | Q8: 107.00 | R8: 26.24 | S8: 28.25 | T8: 27.88 | U8: 245.98 | V8: 7.05 | W8: 3.39 | X8: 18.80 | Y8: 20.78 | Z8: 3.44 | AA8: 4.93 | AB8: 0.01 | AC8: 24.12 | AD8: 0.54 | AE8: 0.26 | AF8: 1.53 | AG8: 2.41 | AH8: 18.97 | AI8: 100.34 | AJ8: 48.12 | AK8: 44.66 | AL8: 166.64
A9: 1.1货物贸易 | C9: 51.64 | D9: 28.81 | E9: 29.51 | F9: 4.92 | G9: 3.61 | H9: 10.18 | I9: 4.00 | J9: 3.25 | K9: 155.15 | L9: 274.14 | M9: 286.80 | N9: 32.31 | O9: 65.31 | P9: 19.84 | Q9: 103.07 | R9: 24.38 | S9: 25.41 | T9: 26.68 | U9: 231.69 | V9: 6.42 | W9: 3.03 | X9: 17.50 | Y9: 17.32 | Z9: 3.13 | AA9: 4.54 | AB9: 0.00 | AC9: 22.75 | AD9: 0.29 | AE9: 0.23 | AF9: 1.46 | AG9: 2.29 | AH9: 16.12 | AI9: 97.69 | AJ9: 45.91 | AK9: 41.15 | AL9: 142.97
A10: 1.2服务贸易 | C10: 23.98 | D10: 2.69 | E10: 0.88 | F10: 0.26 | G10: 0.21 | H10: 0.57 | I10: 0.21 | J10: 0.29 | K10: 44.95 | L10: 5.72 | M10: 3.30 | N10: 0.87 | O10: 1.40 | P10: 0.25 | Q10: 2.14 | R10: 0.63 | S10: 2.04 | T10: 0.67 | U10: 10.80 | V10: 0.37 | W10: 0.27 | X10: 1.01 | Y10: 2.59 | Z10: 0.10 | AA10: 0.23 | AB10: 0.00 | AC10: 0.99 | AD10: 0.08 | AE10: 0.01 | AF10: 0.03 | AG10: 0.09 | AH10: 2.19 | AI10: 2.21 | AJ10: 1.88 | AK10: 2.71 | AL10: 20.20
A11: 1.3收益和经常转移 | C11: 9.94 | D11: 2.20 | E11: 0.79 | F11: 0.18 | G11: 0.11 | H11: 0.90 | I11: 0.56 | J11: 0.34 | K11: 7.31 | L11: 2.34 | M11: 2.45 | N11: 0.46 | O11: 1.78 | P11: 0.55 | Q11: 1.80 | R11: 1.23 | S11: 0.80 | T11: 0.54 | U11: 3.49 | V11: 0.26 | W11: 0.09 | X11: 0.28 | Y11: 0.87 | Z11: 0.21 | AA11: 0.15 | AB11: 0.00 | AC11: 0.38 | AD11: 0.18 | AE11: 0.01 | AF11: 0.04 | AG11: 0.04 | AH11: 0.66 | AI11: 0.45 | AJ11: 0.33 | AK11: 0.80 | AL11: 3.47
A12: 2.资本与金融项目 | C12: 50.41 | D12: 2.70 | E12: 3.73 | F12: 0.43 | G12: 0.17 | H12: 0.31 | I12: 1.75 | J12: 0.02 | K12: 98.17 | L12: 18.25 | M12: 11.48 | N12: 5.21 | O12: 2.11 | P12: 4.90 | Q12: 5.58 | R12: 3.50 | S12: 2.22 | T12: 1.64 | U12: 19.61 | V12: 0.90 | W12: 1.13 | X12: 1.22 | Y12: 4.50 | Z12: 1.39 | AA12: 0.84 | AB12: 0.03 | AC12: 2.41 | AD12: 0.09 | AE12: 0.01 | AF12: 0.10 | AG12: 0.09 | AH12: 0.21 | AI12: 1.97 | AJ12: 1.75 | AK12: 1.87 | AL12: 20.91
A13: 其中: 直接投资 | C13: 17.78 | D13: 2.46 | E13: 1.50 | F13: 0.41 | G13: 0.12 | H13: 0.17 | I13: 0.41 | J13: 0.01 | K13: 19.26 | L13: 11.84 | M13: 8.55 | N13: 4.76 | O13: 0.47 | P13: 1.34 | Q13: 4.50 | R13: 1.37 | S13: 1.04 | T13: 0.74 | U13: 6.91 | V13: 0.32 | W13: 0.86 | X13: 0.59 | Y13: 1.02 | Z13: 0.57 | AA13: 0.04 | AB13: 0.03 | AC13: 0.26 | AD13: 0.02 | AE13: 0 | AF13: 0.00 | AG13: 0.06 | AH13: 0.15 | AI13: 1.76 | AJ13: 1.67 | AK13: 0.95 | AL13: 16.19
A14: 证券投资 | C14: 16.45 | D14: 0.01 | E14: 0.00 | F14: 0.00 | G14: 0.01 | H14: 0.01 | I14: 1.30 | J14: 0 | K14: 76.87 | L14: 3.79 | M14: 1.99 | N14: 0.07 | O14: 0.41 | P14: 2.22 | Q14: 0.77 | R14: 1.31 | S14: 0.09 | T14: 0.79 | U14: 8.45 | V14: 0.21 | W14: 0.25 | X14: 0.41 | Y14: 1.83 | Z14: 0 | AA14: 0.00 | AB14: 0 | AC14: 2.04 | AD14: 0 | AE14: 0.00 | AF14: 0 | AG14: 0 | AH14: 0.02 | AI14: 0.11 | AJ14: 0.06 | AK14: 0.85 | AL14: 4.62
A15: 二、售汇 | C15: 416.32 | D15: 40.12 | E15: 21.78 | F15: 13.02 | G15: 8.91 | H15: 17.27 | I15: 8.93 | J15: 7.07 | K15: 464.95 | L15: 146.43 | M15: 104.75 | N15: 29.42 | O15: 31.76 | P15: 13.31 | Q15: 78.97 | R15: 23.10 | S15: 28.87 | T15: 19.15 | U15: 127.14 | V15: 22.14 | W15: 12.03 | X15: 45.30 | Y15: 22.25 | Z15: 4.09 | AA15: 9.80 | AB15: 0.36 | AC15: 12.46 | AD15: 5.91 | AE15: 0.44 | AF15: 0.79 | AG15: 3.10 | AH15: 9.81 | AI15: 88.12 | AJ15: 69.86 | AK15: 51.22 | AL15: 134.18
A16: (一）银行自身 | C16: 31.41 | D16: 0.00 | E16: 0.00 | F16: 0.00 | G16: 0 | H16: 0.02 | I16: 0.00 | J16: 0.00 | K16: 37.69 | L16: 0.02 | M16: 6.51 | N16: 0.40 | O16: 0.85 | P16: 0.39 | Q16: 0.00 | R16: 0.00 | S16: 0 | T16: 0.00 | U16: 0.00 | V16: 0 | W16: 0.00 | X16: 0.77 | Y16: 0 | Z16: 0.18 | AA16: 0.00 | AB16: 0 | AC16: 0.20 | AD16: 0 | AE16: 0 | AF16: 0 | AG16: -0.01 | AH16: 0.00 | AI16: 34.04 | AJ16: 0.00 | AK16: 0.00 | AL16: 9.11
A17: (二）银行代客 | C17: 384.91 | D17: 40.12 | E17: 21.78 | F17: 13.02 | G17: 8.91 | H17: 17.25 | I17: 8.93 | J17: 7.07 | K17: 427.25 | L17: 146.41 | M17: 98.24 | N17: 29.02 | O17: 30.91 | P17: 12.92 | Q17: 78.97 | R17: 23.10 | S17: 28.87 | T17: 19.15 | U17: 127.14 | V17: 22.14 | W17: 12.03 | X17: 44.53 | Y17: 22.25 | Z17: 3.92 | AA17: 9.80 | AB17: 0.36 | AC17: 12.26 | AD17: 5.91 | AE17: 0.44 | AF17: 0.79 | AG17: 3.11 | AH17: 9.81 | AI17: 54.09 | AJ17: 69.86 | AK17: 51.22 | AL17: 125.07
A18: 1.经常项目 | C18: 364.29 | D18: 33.21 | E18: 19.17 | F18: 12.17 | G18: 8.00 | H18: 16.73 | I18: 8.80 | J18: 7.02 | K18: 310.88 | L18: 129.90 | M18: 84.10 | N18: 27.74 | O18: 28.51 | P18: 12.61 | Q18: 74.46 | R18: 17.22 | S18: 28.04 | T18: 17.59 | U18: 108.78 | V18: 21.43 | W18: 9.99 | X18: 42.79 | Y18: 18.22 | Z18: 3.56 | AA18: 9.42 | AB18: 0.36 | AC18: 11.87 | AD18: 5.29 | AE18: 0.23 | AF18: 0.70 | AG18: 2.55 | AH18: 9.34 | AI18: 46.62 | AJ18: 66.09 | AK18: 49.67 | AL18: 110.23
A19: 1.1货物贸易 | C19: 280.36 | D19: 28.53 | E19: 17.19 | F19: 11.08 | G19: 7.15 | H19: 14.47 | I19: 7.33 | J19: 5.77 | K19: 225.64 | L19: 114.28 | M19: 72.57 | N19: 25.92 | O19: 26.02 | P19: 11.41 | Q19: 67.69 | R19: 14.74 | S19: 24.03 | T19: 15.68 | U19: 87.60 | V19: 20.57 | W19: 8.89 | X19: 40.74 | Y19: 14.23 | Z19: 3.10 | AA19: 8.41 | AB19: 0.35 | AC19: 10.15 | AD19: 4.93 | AE19: 0.07 | AF19: 0.53 | AG19: 2.07 | AH19: 7.66 | AI19: 41.40 | AJ19: 63.38 | AK19: 43.71 | AL19: 86.28
A20: 1.2服务贸易 | C20: 44.83 | D20: 3.20 | E20: 1.79 | F20: 1.05 | G20: 0.73 | H20: 2.17 | I20: 1.10 | J20: 1.21 | K20: 57.53 | L20: 9.68 | M20: 7.42 | N20: 1.59 | O20: 1.91 | P20: 0.99 | Q20: 4.51 | R20: 2.14 | S20: 2.76 | T20: 1.73 | U20: 13.18 | V20: 0.60 | W20: 1.05 | X20: 1.82 | Y20: 3.63 | Z20: 0.43 | AA20: 0.81 | AB20: 0.01 | AC20: 1.65 | AD20: 0.36 | AE20: 0.07 | AF20: 0.16 | AG20: 0.31 | AH20: 1.26 | AI20: 2.83 | AJ20: 2.18 | AK20: 2.64 | AL20: 12.69
A21: 1.3收益和经常转移 | C21: 39.10 | D21: 1.49 | E21: 0.18 | F21: 0.03 | G21: 0.13 | H21: 0.09 | I21: 0.38 | J21: 0.04 | K21: 27.72 | L21: 5.94 | M21: 4.10 | N21: 0.23 | O21: 0.58 | P21: 0.20 | Q21: 2.26 | R21: 0.35 | S21: 1.25 | T21: 0.18 | U21: 8.00 | V21: 0.25 | W21: 0.05 | X21: 0.23 | Y21: 0.36 | Z21: 0.03 | AA21: 0.19 | AB21: 0.00 | AC21: 0.07 | AD21: 0.01 | AE21: 0.08 | AF21: 0.01 | AG21: 0.18 | AH21: 0.42 | AI21: 2.39 | AJ21: 0.53 | AK21: 3.32 | AL21: 11.26
A22: 2.资本与金融项目 | C22: 20.61 | D22: 6.90 | E22: 2.61 | F22: 0.85 | G22: 0.90 | H22: 0.51 | I22: 0.12 | J22: 0.05 | K22: 116.37 | L22: 16.51 | M22: 14.14 | N22: 1.28 | O22: 2.40 | P22: 0.32 | Q22: 4.51 | R22: 5.88 | S22: 0.83 | T22: 1.55 | U22: 18.36 | V22: 0.72 | W22: 2.04 | X22: 1.74 | Y22: 4.03 | Z22: 0.36 | AA22: 0.39 | AB22: 0.00 | AC22: 0.39 | AD22: 0.61 | AE22: 0.21 | AF22: 0.10 | AG22: 0.55 | AH22: 0.47 | AI22: 7.47 | AJ22: 3.77 | AK22: 1.55 | AL22: 14.84
A23: 其中: 直接投资 | C23: 7.24 | D23: 3.14 | E23: 0.15 | F23: 0.02 | G23: 0.82 | H23: 0.23 | I23: 0.00 | J23: 0.04 | K23: 21.46 | L23: 8.51 | M23: 7.67 | N23: 0.65 | O23: 0.80 | P23: 0.05 | Q23: 1.65 | R23: 5.46 | S23: 0.23 | T23: 0.09 | U23: 12.14 | V23: 0.14 | W23: 1.97 | X23: 0.15 | Y23: 1.75 | Z23: 0.01 | AA23: 0.11 | AB23: 0 | AC23: 0.04 | AD23: 0.00 | AE23: 0.15 | AF23: 0.02 | AG23: 0.38 | AH23: 0.12 | AI23: 4.72 | AJ23: 2.84 | AK23: 0.29 | AL23: 6.18
A24: 证券投资 | C24: 8.28 | D24: 0.49 | E24: 0.03 | F24: 0.77 | G24: 0 | H24: 0.00 | I24: 0.00 | J24: 0 | K24: 86.01 | L24: 0.57 | M24: 1.91 | N24: 0.01 | O24: 0.03 | P24: 0 | Q24: 0.00 | R24: 0 | S24: 0.00 | T24: 0.02 | U24: 1.27 | V24: 0.20 | W24: 0.01 | X24: 0.83 | Y24: 0.80 | Z24: 0.00 | AA24: 0.00 | AB24: 0 | AC24: 0 | AD24: 0.04 | AE24: 0 | AF24: 0 | AG24: 0 | AH24: 0.04 | AI24: 0.21 | AJ24: 0.21 | AK24: 0.52 | AL24: 5.50
A25: 三、差额 | C25: =C5-C15 -> -256.58 | D25: =D5-D15 -> -3.72 | E25: 13.08 | F25: -7.23 | G25: -4.81 | H25: -5.31 | I25: -2.38 | J25: -3.17 | K25: -131.17 | L25: 154.07 | M25: 201.89 | N25: 9.45 | O25: 41.46 | P25: 12.22 | Q25: 33.62 | R25: 7.64 | S25: 1.59 | T25: 10.37 | U25: 139.11 | V25: -14.19 | W25: -7.50 | X25: -25.27 | Y25: 3.03 | Z25: 0.73 | AA25: -4.03 | AB25: -0.32 | AC25: 14.07 | AD25: -5.27 | AE25: -0.17 | AF25: 0.83 | AG25: -0.29 | AH25: 9.37 | AI25: 48.52 | AJ25: -19.99 | AK25: -4.69 | AL25: 53.77
A26: (一）银行自身 | C26: =C6-C16 -> -7.63 | D26: 0.00 | E26: -0.06 | F26: 0.00 | G26: 0.00 | H26: -0.02 | I26: 0.01 | J26: 0.00 | K26: -9.49 | L26: 0.02 | M26: -3.91 | N26: -0.38 | O26: 1.77 | P26: -0.39 | Q26: 0.00 | R26: 1.00 | S26: 0.00 | T26: 0.00 | U26: 0.65 | V26: 0.00 | W26: -0.00 | X26: -0.76 | Y26: 0.00 | Z26: -0.18 | AA26: 0.00 | AB26: 0.00 | AC26: -0.20 | AD26: 0.00 | AE26: 0.00 | AF26: 0.00 | AG26: 0.31 | AH26: 0.00 | AI26: 0.29 | AJ26: 0.00 | AK26: 0.01 | AL26: -8.71
A27: (二）银行代客 | C27: -248.95 | D27: -3.72 | E27: 13.14 | F27: -7.23 | G27: -4.81 | H27: -5.29 | I27: -2.39 | J27: -3.17 | K27: -121.67 | L27: 154.04 | M27: 205.79 | N27: 9.84 | O27: 39.68 | P27: 12.61 | Q27: 33.62 | R27: 6.64 | S27: 1.59 | T27: 10.37 | U27: 138.45 | V27: -14.19 | W27: -7.50 | X27: -24.51 | Y27: 3.02 | Z27: 0.91 | AA27: -4.03 | AB27: -0.32 | AC27: 14.27 | AD27: -5.27 | AE27: -0.17 | AF27: 0.83 | AG27: -0.60 | AH27: 9.37 | AI27: 48.23 | AJ27: -19.99 | AK27: -4.69 | AL27: 62.48
A28: 1.经常项目 | C28: -278.74 | D28: 0.48 | E28: 12.01 | F28: -6.81 | G28: -4.07 | H28: -5.08 | I28: -4.02 | J28: -3.14 | K28: -103.47 | L28: 152.30 | M28: 208.46 | N28: 5.91 | O28: 39.98 | P28: 8.03 | Q28: 32.54 | R28: 9.02 | S28: 0.21 | T28: 10.29 | U28: 137.20 | V28: -14.37 | W28: -6.60 | X28: -23.99 | Y28: 2.56 | Z28: -0.12 | AA28: -4.49 | AB28: -0.35 | AC28: 12.25 | AD28: -4.75 | AE28: 0.03 | AF28: 0.83 | AG28: -0.14 | AH28: 9.62 | AI28: 53.72 | AJ28: -17.97 | AK28: -5.01 | AL28: 56.41
A29: 1.1货物贸易 | C29: -228.72 | D29: 0.28 | E29: 12.32 | F29: -6.16 | G29: -3.53 | H29: -4.29 | I29: -3.33 | J29: -2.52 | K29: -70.48 | L29: 159.86 | M29: 214.23 | N29: 6.39 | O29: 39.29 | P29: 8.42 | Q29: 35.37 | R29: 9.64 | S29: 1.38 | T29: 11.00 | U29: 144.09 | V29: -14.15 | W29: -5.86 | X29: -23.24 | Y29: 3.09 | Z29: 0.03 | AA29: -3.87 | AB29: -0.35 | AC29: 12.60 | AD29: -4.64 | AE29: 0.16 | AF29: 0.93 | AG29: 0.22 | AH29: 8.46 | AI29: 56.28 | AJ29: -17.47 | AK29: -2.56 | AL29: 56.69
A30: 1.2服务贸易 | C30: -20.85 | D30: -0.52 | E30: -0.92 | F30: -0.79 | G30: -0.52 | H30: -1.60 | I30: -0.88 | J30: -0.92 | K30: -12.58 | L30: -3.96 | M30: -4.12 | N30: -0.72 | O30: -0.51 | P30: -0.74 | Q30: -2.37 | R30: -1.51 | S30: -0.73 | T30: -1.07 | U30: -2.39 | V30: -0.23 | W30: -0.78 | X30: -0.81 | Y30: -1.04 | Z30: -0.33 | AA30: -0.58 | AB30: -0.01 | AC30: -0.66 | AD30: -0.28 | AE30: -0.06 | AF30: -0.12 | AG30: -0.22 | AH30: 0.93 | AI30: -0.62 | AJ30: -0.30 | AK30: 0.07 | AL30: 7.52
A31: 1.3收益和经常转移 | C31: -29.16 | D31: 0.72 | E31: 0.61 | F31: 0.15 | G31: -0.02 | H31: 0.81 | I31: 0.19 | J31: 0.30 | K31: -20.40 | L31: -3.60 | M31: -1.65 | N31: 0.23 | O31: 1.20 | P31: 0.35 | Q31: -0.46 | R31: 0.88 | S31: -0.45 | T31: 0.36 | U31: -4.50 | V31: 0.01 | W31: 0.04 | X31: 0.06 | Y31: 0.51 | Z31: 0.18 | AA31: -0.04 | AB31: 0.00 | AC31: 0.31 | AD31: 0.17 | AE31: -0.07 | AF31: 0.03 | AG31: -0.14 | AH31: 0.23 | AI31: -1.93 | AJ31: -0.21 | AK31: -2.52 | AL31: -7.79
A32: 2.资本与金融项目 | C32: 29.79 | D32: -4.20 | E32: 1.13 | F32: -0.43 | G32: -0.74 | H32: -0.21 | I32: 1.63 | J32: -0.03 | K32: -18.21 | L32: 1.75 | M32: -2.66 | N32: 3.93 | O32: -0.30 | P32: 4.58 | Q32: 1.07 | R32: -2.38 | S32: 1.38 | T32: 0.08 | U32: 1.25 | V32: 0.19 | W32: -0.90 | X32: -0.52 | Y32: 0.46 | Z32: 1.03 | AA32: 0.45 | AB32: 0.03 | AC32: =AC12-AC22 -> 2.02 | AD32: -0.52 | AE32: -0.20 | AF32: 0.00 | AG32: -0.46 | AH32: -0.26 | AI32: -5.50 | AJ32: -2.02 | AK32: 0.32 | AL32: 6.06
A33: 其中: 直接投资 | C33: 10.54 | D33: -0.69 | E33: 1.35 | F33: 0.39 | G33: -0.69 | H33: -0.06 | I33: 0.41 | J33: -0.02 | K33: -2.20 | L33: 3.33 | M33: 0.88 | N33: 4.11 | O33: -0.32 | P33: 1.29 | Q33: 2.85 | R33: -4.09 | S33: 0.80 | T33: 0.65 | U33: -5.23 | V33: 0.18 | W33: -1.11 | X33: 0.44 | Y33: -0.73 | Z33: 0.56 | AA33: -0.06 | AB33: 0.03 | AC33: 0.21 | AD33: 0.01 | AE33: -0.15 | AF33: -0.02 | AG33: -0.32 | AH33: 0.04 | AI33: -2.95 | AJ33: -1.16 | AK33: 0.66 | AL33: 10.02
A34: 证券投资 | C34: 8.18 | D34: -0.48 | E34: -0.03 | F34: -0.77 | G34: 0.01 | H34: 0.01 | I34: 1.30 | J34: 0.00 | K34: -9.14 | L34: 3.22 | M34: 0.09 | N34: 0.06 | O34: 0.38 | P34: 2.22 | Q34: 0.77 | R34: 1.31 | S34: 0.09 | T34: 0.77 | U34: 7.18 | V34: 0.01 | W34: 0.24 | X34: -0.42 | Y34: 1.02 | Z34: -0.00 | AA34: 0.00 | AB34: 0.00 | AC34: 2.04 | AD34: -0.04 | AE34: 0.00 | AF34: 0.00 | AG34: 0.00 | AH34: -0.02 | AI34: -0.10 | AJ34: -0.14 | AK34: 0.33 | AL34: -0.88
A35: 注： 1.分地区是指办理结售汇业务的银行所在地。其中，本表中辽宁不含大连，浙江不含宁波，福建不含厦门，山东不含青岛，广东不含深圳。

Sheet 2022年9月（按美元）
A2: 2022年9月银行结售汇数据（分地区）
A3: 单位：亿美元
A4: 项目 | C4: 北京 | D4: 天津 | E4: 河北 | F4: 山西 | G4: 内蒙古 | H4: 辽宁 | I4: 吉林 | J4: 黑龙江 | K4: 上海 | L4: 江苏 | M4: 浙江 | N4: 安徽 | O4: 福建 | P4: 江西 | Q4: 山东 | R4: 河南 | S4: 湖北 | T4: 湖南 | U4: 广东 | V4: 广西 | W4: 海南 | X4: 重庆 | Y4: 四川 | Z4: 贵州 | AA4: 云南 | AB4: 西藏 | AC4: 陕西 | AD4: 甘肃 | AE4: 青海 | AF4: 宁夏 | AG4: 新疆 | AH4: 大连 | AI4: 宁波 | AJ4: 厦门 | AK4: 青岛 | AL4: 深圳
A5: 一、结汇 | C5: 145.58 | D5: 39.00 | E5: 32.46 | F5: 4.63 | G5: 4.22 | H5: 13.33 | I5: 6.08 | J5: 3.76 | K5: 297.09 | L5: 291.56 | M5: 305.91 | N5: 34.66 | O5: 59.43 | P5: 24.38 | Q5: 108.65 | R5: 28.60 | S5: 27.24 | T5: 26.29 | U5: 247.81 | V5: 7.46 | W5: 4.59 | X5: 23.64 | Y5: 30.42 | Z5: 4.62 | AA5: 4.44 | AB5: 0.00 | AC5: 28.21 | AD5: 1.84 | AE5: 0.28 | AF5: 1.36 | AG5: 5.55 | AH5: 27.10 | AI5: 113.97 | AJ5: 43.06 | AK5: 46.54 | AL5: 170.55
A6: (一）银行自身 | C6: 22.87 | D6: 0.12 | E6: 0.00 | F6: 0.00 | G6: 0.54 | H6: 0.02 | I6: 0.00 | J6: 0.00 | K6: 16.01 | L6: 0.04 | M6: 3.67 | N6: 0.00 | O6: 0.47 | P6: 0.00 | Q6: 0.08 | R6: 0.01 | S6: 0.01 | T6: 0.00 | U6: 0.92 | V6: 0.00 | W6: 0.00 | X6: 0.01 | Y6: 0.01 | Z6: 0 | AA6: 0.00 | AB6: 0 | AC6: 0.00 | AD6: 0 | AE6: 0 | AF6: 0 | AG6: 0.00 | AH6: 0.00 | AI6: 14.54 | AJ6: 0.01 | AK6: 0.01 | AL6: 1.69
A7: (二）银行代客 | C7: 122.71 | D7: 38.88 | E7: 32.46 | F7: 4.63 | G7: 3.68 | H7: 13.31 | I7: 6.08 | J7: 3.76 | K7: 281.08 | L7: 291.52 | M7: 302.24 | N7: 34.66 | O7: 58.96 | P7: 24.38 | Q7: 108.57 | R7: 28.59 | S7: 27.24 | T7: 26.29 | U7: 246.89 | V7: 7.46 | W7: 4.59 | X7: 23.63 | Y7: 30.41 | Z7: 4.62 | AA7: 4.44 | AB7: 0.00 | AC7: 28.21 | AD7: 1.84 | AE7: 0.28 | AF7: 1.36 | AG7: 5.55 | AH7: 27.10 | AI7: 99.43 | AJ7: 43.06 | AK7: 46.53 | AL7: 168.86
A8: 1.经常项目 | C8: 86.27 | D8: 32.46 | E8: 30.02 | F8: 3.49 | G8: 3.67 | H8: 11.83 | I8: 5.73 | J8: 3.63 | K8: 203.68 | L8: 272.68 | M8: 283.39 | N8: 32.44 | O8: 58.05 | P8: 20.57 | Q8: 100.48 | R8: 24.23 | S8: 25.29 | T8: 24.71 | U8: 234.50 | V8: 7.00 | W8: 3.67 | X8: 21.20 | Y8: 28.20 | Z8: 3.70 | AA8: 3.78 | AB8: 0.00 | AC8: 22.02 | AD8: 1.13 | AE8: 0.28 | AF8: 1.32 | AG8: 5.44 | AH8: 26.32 | AI8: 94.90 | AJ8: 42.11 | AK8: 42.49 | AL8: 151.83
A9: 1.1货物贸易 | C9: 52.55 | D9: 28.41 | E9: 28.40 | F9: 2.93 | G9: 3.26 | H9: 10.20 | I9: 4.85 | J9: 2.91 | K9: 149.19 | L9: 262.37 | M9: 276.04 | N9: 31.31 | O9: 54.14 | P9: 19.97 | Q9: 96.42 | R9: 21.71 | S9: 22.53 | T9: 23.30 | U9: 220.04 | V9: 6.29 | W9: 3.15 | X9: 19.71 | Y9: 24.80 | Z9: 3.47 | AA9: 3.24 | AB9: 0.00 | AC9: 20.12 | AD9: 0.83 | AE9: 0.24 | AF9: 1.24 | AG9: 5.20 | AH9: 23.59 | AI9: 92.34 | AJ9: 39.30 | AK9: 38.19 | AL9: 135.79
A10: 1.2服务贸易 | C10: 22.11 | D10: 3.25 | E10: 0.83 | F10: 0.40 | G10: 0.30 | H10: 0.65 | I10: 0.28 | J10: 0.35 | K10: 46.30 | L10: 7.15 | M10: 4.00 | N10: 0.69 | O10: 1.85 | P10: 0.27 | Q10: 2.13 | R10: 0.77 | S10: 1.76 | T10: 0.82 | U10: 10.53 | V10: 0.42 | W10: 0.43 | X10: 1.04 | Y10: 2.72 | Z10: 0.19 | AA10: 0.26 | AB10: 0.00 | AC10: 1.44 | AD10: 0.10 | AE10: 0.02 | AF10: 0.04 | AG10: 0.19 | AH10: 2.20 | AI10: 2.20 | AJ10: 1.84 | AK10: 2.68 | AL10: 12.60
A11: 1.3收益和经常转移 | C11: 11.62 | D11: 0.81 | E11: 0.79 | F11: 0.15 | G11: 0.11 | H11: 0.98 | I11: 0.60 | J11: 0.37 | K11: 8.18 | L11: 3.16 | M11: 3.34 | N11: 0.44 | O11: 2.05 | P11: 0.34 | Q11: 1.93 | R11: 1.75 | S11: 1.01 | T11: 0.59 | U11: 3.94 | V11: 0.30 | W11: 0.09 | X11: 0.45 | Y11: 0.69 | Z11: 0.05 | AA11: 0.28 | AB11: 0.00 | AC11: 0.46 | AD11: 0.20 | AE11: 0.01 | AF11: 0.04 | AG11: 0.05 | AH11: 0.52 | AI11: 0.35 | AJ11: 0.97 | AK11: 1.62 | AL11: 3.44
A12: 2.资本与金融项目 | C12: 36.44 | D12: 6.42 | E12: 2.44 | F12: 1.15 | G12: 0.01 | H12: 1.48 | I12: 0.35 | J12: 0.13 | K12: 77.40 | L12: 18.84 | M12: 18.86 | N12: 2.22 | O12: 0.91 | P12: 3.80 | Q12: 8.09 | R12: 4.36 | S12: 1.94 | T12: 1.58 | U12: 12.38 | V12: 0.46 | W12: 0.92 | X12: 2.43 | Y12: 2.21 | Z12: 0.92 | AA12: 0.65 | AB12: 0 | AC12: 6.19 | AD12: 0.71 | AE12: 0.00 | AF12: 0.04 | AG12: 0.11 | AH12: 0.78 | AI12: 4.53 | AJ12: 0.95 | AK12: 4.05 | AL12: 17.03
A13: 其中: 直接投资 | C13: 18.89 | D13: 4.81 | E13: 0.88 | F13: 0.14 | G13: 0.00 | H13: 1.39 | I13: 0.20 | J13: 0.09 | K13: 18.00 | L13: 10.66 | M13: 11.11 | N13: 1.60 | O13: 0.55 | P13: 1.20 | Q13: 6.42 | R13: 0.36 | S13: 0.88 | T13: 0.77 | U13: 8.32 | V13: 0.42 | W13: 0.64 | X13: 1.26 | Y13: 1.20 | Z13: 0.30 | AA13: 0.05 | AB13: 0 | AC13: 0.03 | AD13: 0.02 | AE13: 0 | AF13: 0.00 | AG13: 0.05 | AH13: 0.68 | AI13: 1.09 | AJ13: 0.84 | AK13: 2.50 | AL13: 8.58
A14: 证券投资 | C14: 11.00 | D14: 0.01 | E14: 0.00 | F14: 0.01 | G14: 0 | H14: 0.00 | I14: 0.00 | J14: 0 | K14: 58.13 | L14: 4.05 | M14: 4.37 | N14: 0.52 | O14: 0.22 | P14: 1.98 | Q14: 1.08 | R14: 3.65 | S14: 0.00 | T14: 0.60 | U14: 2.28 | V14: 0.00 | W14: 0.25 | X14: 0.59 | Y14: 0.79 | Z14: 0.61 | AA14: 0.20 | AB14: 0 | AC14: 0.74 | AD14: 0.60 | AE14: 0 | AF14: 0 | AG14: 0.05 | AH14: 0.00 | AI14: 3.27 | AJ14: 0.05 | AK14: 1.29 | AL14: 8.11
A15: 二、售汇 | C15: 456.16 | D15: 32.54 | E15: 22.18 | F15: 12.82 | G15: 8.67 | H15: 16.78 | I15: 8.81 | J15: 5.05 | K15: 498.78 | L15: 144.02 | M15: 101.95 | N15: 31.52 | O15: 50.19 | P15: 21.47 | Q15: 73.85 | R15: 20.93 | S15: 28.33 | T15: 16.87 | U15: 126.16 | V15: 23.02 | W15: 13.00 | X15: 31.45 | Y15: 16.05 | Z15: 4.40 | AA15: 7.19 | AB15: 0.13 | AC15: 15.61 | AD15: 6.16 | AE15: 0.35 | AF15: 0.88 | AG15: 4.11 | AH15: 11.32 | AI15: 61.59 | AJ15: 74.94 | AK15: 49.31 | AL15: 135.00
A16: (一）银行自身 | C16: 10.55 | D16: 0.00 | E16: 0.00 | F16: 0.00 | G16: 0.00 | H16: 0.02 | I16: 0.00 | J16: 0.00 | K16: 17.88 | L16: 0.07 | M16: 3.33 | N16: 0.00 | O16: 0.00 | P16: 0.00 | Q16: 0.35 | R16: 0.00 | S16: 0.00 | T16: 0 | U16: 0.01 | V16: 0.00 | W16: 0 | X16: 0.11 | Y16: 0 | Z16: 0 | AA16: 0 | AB16: 0 | AC16: 0 | AD16: 0 | AE16: 0 | AF16: 0 | AG16: 0.01 | AH16: 0.00 | AI16: 14.46 | AJ16: 0.00 | AK16: 0.70 | AL16: 0.20
A17: (二）银行代客 | C17: 445.61 | D17: 32.53 | E17: 22.18 | F17: 12.81 | G17: 8.67 | H17: 16.76 | I17: 8.81 | J17: 5.05 | K17: 480.90 | L17: 143.95 | M17: 98.62 | N17: 31.52 | O17: 50.18 | P17: 21.47 | Q17: 73.50 | R17: 20.93 | S17: 28.33 | T17: 16.87 | U17: 126.15 | V17: 23.02 | W17: 13.00 | X17: 31.35 | Y17: 16.05 | Z17: 4.40 | AA17: 7.19 | AB17: 0.13 | AC17: 15.61 | AD17: 6.16 | AE17: 0.35 | AF17: 0.88 | AG17: 4.10 | AH17: 11.32 | AI17: 47.13 | AJ17: 74.94 | AK17: 48.60 | AL17: 134.81
A18: 1.经常项目 | C18: 409.29 | D18: 28.62 | E18: 20.56 | F18: 11.64 | G18: 8.03 | H18: 16.29 | I18: 8.68 | J18: 4.98 | K18: 363.84 | L18: 125.97 | M18: 89.00 | N18: 29.03 | O18: 43.66 | P18: 15.08 | Q18: 63.06 | R18: 16.35 | S18: 26.42 | T18: 16.20 | U18: 109.78 | V18: 18.42 | W18: 11.23 | X18: 30.37 | Y18: 14.67 | Z18: 2.97 | AA18: 6.86 | AB18: 0.13 | AC18: 11.84 | AD18: 4.95 | AE18: 0.14 | AF18: 0.76 | AG18: 3.26 | AH18: 10.68 | AI18: 44.40 | AJ18: 72.06 | AK18: 46.23 | AL18: 109.00
A19: 1.1货物贸易 | C19: 340.18 | D19: 23.48 | E19: 18.28 | F19: 10.31 | G19: 7.07 | H19: 13.81 | I19: 6.85 | J19: 3.44 | K19: 276.23 | L19: 109.99 | M19: 79.00 | N19: 26.60 | O19: 32.83 | P19: 13.25 | Q19: 56.50 | R19: 13.50 | S19: 22.53 | T19: 13.93 | U19: 91.32 | V19: 17.43 | W19: 9.89 | X19: 27.87 | Y19: 9.89 | Z19: 2.57 | AA19: 5.77 | AB19: 0.11 | AC19: 9.35 | AD19: 4.35 | AE19: 0.05 | AF19: 0.54 | AG19: 2.77 | AH19: 9.01 | AI19: 41.62 | AJ19: 68.76 | AK19: 42.76 | AL19: 89.06
A20: 1.2服务贸易 | C20: 40.76 | D20: 4.07 | E20: 1.96 | F20: 1.19 | G20: 0.88 | H20: 2.29 | I20: 1.34 | J20: 1.47 | K20: 61.06 | L20: 11.12 | M20: 9.27 | N20: 2.03 | O20: 2.43 | P20: 1.39 | Q20: 5.10 | R20: 2.55 | S20: 3.22 | T20: 1.95 | U20: 14.29 | V20: 0.71 | W20: 1.29 | X20: 2.06 | Y20: 4.04 | Z20: 0.36 | AA20: 0.87 | AB20: 0.01 | AC20: 1.87 | AD20: 0.44 | AE20: 0.08 | AF20: 0.18 | AG20: 0.44 | AH20: 1.49 | AI20: 2.56 | AJ20: 2.72 | AK20: 2.71 | AL20: 13.97
A21: 1.3收益和经常转移 | C21: 28.35 | D21: 1.07 | E21: 0.32 | F21: 0.14 | G21: 0.08 | H21: 0.20 | I21: 0.48 | J21: 0.07 | K21: 26.56 | L21: 4.86 | M21: 0.73 | N21: 0.40 | O21: 8.39 | P21: 0.44 | Q21: 1.46 | R21: 0.30 | S21: 0.66 | T21: 0.32 | U21: 4.17 | V21: 0.28 | W21: 0.05 | X21: 0.44 | Y21: 0.74 | Z21: 0.04 | AA21: 0.22 | AB21: 0.00 | AC21: 0.63 | AD21: 0.17 | AE21: 0.01 | AF21: 0.04 | AG21: 0.05 | AH21: 0.19 | AI21: 0.23 | AJ21: 0.58 | AK21: 0.76 | AL21: 5.98
A22: 2.资本与金融项目 | C22: 36.31 | D22: 3.91 | E22: 1.62 | F22: 1.17 | G22: 0.64 | H22: 0.46 | I22: 0.14 | J22: 0.06 | K22: 117.06 | L22: 17.98 | M22: 9.63 | N22: 2.49 | O22: 6.53 | P22: 6.39 | Q22: 10.44 | R22: 4.58 | S22: 1.91 | T22: 0.68 | U22: 16.38 | V22: 4.60 | W22: 1.76 | X22: 0.98 | Y22: 1.38 | Z22: 1.43 | AA22: 0.33 | AB22: 0.00 | AC22: 3.77 | AD22: 1.21 | AE22: 0.22 | AF22: 0.12 | AG22: 0.84 | AH22: 0.64 | AI22: 2.73 | AJ22: 2.87 | AK22: 2.38 | AL22: 25.80
A23: 其中: 直接投资 | C23: 17.74 | D23: 1.27 | E23: 0.89 | F23: 0.03 | G23: 0.30 | H23: 0.10 | I23: 0.02 | J23: 0.02 | K23: 17.68 | L23: 10.41 | M23: 2.90 | N23: 0.85 | O23: 0.13 | P23: 3.45 | Q23: 7.56 | R23: 0.79 | S23: 0.04 | T23: 0.19 | U23: 7.22 | V23: 0.01 | W23: 0.69 | X23: 0.17 | Y23: 0.31 | Z23: 0.21 | AA23: 0.08 | AB23: 0 | AC23: 0.04 | AD23: 0.00 | AE23: 0.20 | AF23: 0.00 | AG23: 0.40 | AH23: 0.16 | AI23: 0.83 | AJ23: 0.81 | AK23: 0.48 | AL23: 10.93
A24: 证券投资 | C24: 11.00 | D24: 0.45 | E24: 0.36 | F24: 1.01 | G24: 0.15 | H24: 0.00 | I24: 0.00 | J24: 0 | K24: 91.39 | L24: 2.31 | M24: 2.48 | N24: 0.35 | O24: 4.00 | P24: 0.00 | Q24: 0.00 | R24: 2.84 | S24: 0.95 | T24: 0.03 | U24: 1.16 | V24: 2.74 | W24: 0 | X24: 0.00 | Y24: 0.07 | Z24: 0.10 | AA24: 0 | AB24: 0 | AC24: 2.00 | AD24: 0.10 | AE24: 0 | AF24: 0 | AG24: 0.00 | AH24: 0.13 | AI24: 0.04 | AJ24: 1.15 | AK24: 0.01 | AL24: 11.69
A25: 三、差额 | C25: =C5-C15 -> -310.58 | D25: =D5-D15 -> 6.47 | E25: 10.29 | F25: -8.18 | G25: -4.45 | H25: -3.45 | I25: -2.74 | J25: -1.29 | K25: -201.69 | L25: 147.54 | M25: 203.96 | N25: 3.14 | O25: 9.24 | P25: 2.91 | Q25: 34.80 | R25: 7.67 | S25: -1.08 | T25: 9.41 | U25: 121.65 | V25: -15.56 | W25: -8.41 | X25: -7.82 | Y25: 14.37 | Z25: 0.22 | AA25: -2.75 | AB25: -0.13 | AC25: 12.60 | AD25: -4.32 | AE25: -0.07 | AF25: 0.47 | AG25: 1.44 | AH25: 15.78 | AI25: 52.38 | AJ25: -31.88 | AK25: -2.76 | AL25: 35.55
A26: (一）银行自身 | C26: =C6-C16 -> 12.31 | D26: 0.12 | E26: 0.00 | F26: 0.00 | G26: 0.54 | H26: -0.00 | I26: 0 | J26: 0.00 | K26: -1.86 | L26: -0.03 | M26: 0.35 | N26: 0.00 | O26: 0.46 | P26: 0.00 | Q26: -0.27 | R26: 0.01 | S26: 0.01 | T26: 0.00 | U26: 0.91 | V26: 0.00 | W26: 0.00 | X26: -0.10 | Y26: 0.01 | Z26: 0 | AA26: 0.00 | AB26: 0 | AC26: 0.00 | AD26: 0 | AE26: 0 | AF26: 0 | AG26: -0.01 | AH26: 0.00 | AI26: 0.08 | AJ26: 0.00 | AK26: -0.69 | AL26: 1.50
A27: (二）银行代客 | C27: -322.90 | D27: 6.35 | E27: 10.29 | F27: -8.18 | G27: -4.98 | H27: -3.45 | I27: -2.74 | J27: -1.29 | K27: -199.82 | L27: 147.57 | M27: 203.62 | N27: 3.14 | O27: 8.78 | P27: 2.91 | Q27: 35.07 | R27: 7.66 | S27: -1.09 | T27: 9.41 | U27: 120.73 | V27: -15.56 | W27: -8.41 | X27: -7.72 | Y27: 14.36 | Z27: 0.22 | AA27: -2.75 | AB27: -0.13 | AC27: 12.60 | AD27: -4.32 | AE27: -0.07 | AF27: 0.47 | AG27: 1.45 | AH27: 15.78 | AI27: 52.30 | AJ27: -31.88 | AK27: -2.07 | AL27: 34.05
A28: 1.经常项目 | C28: -323.02 | D28: 3.84 | E28: 9.46 | F28: -8.16 | G28: -4.36 | H28: -4.46 | I28: -2.95 | J28: -1.35 | K28: -160.17 | L28: 146.70 | M28: 194.39 | N28: 3.41 | O28: 14.39 | P28: 5.50 | Q28: 37.42 | R28: 7.88 | S28: -1.12 | T28: 8.51 | U28: 124.72 | V28: -11.42 | W28: -7.56 | X28: -9.17 | Y28: 13.54 | Z28: 0.74 | AA28: -3.07 | AB28: -0.12 | AC28: 10.18 | AD28: -3.82 | AE28: 0.14 | AF28: 0.55 | AG28: 2.18 | AH28: 15.64 | AI28: 50.50 | AJ28: -29.95 | AK28: -3.74 | AL28: 42.83
A29: 1.1货物贸易 | C29: -287.63 | D29: 4.93 | E29: 10.12 | F29: -7.38 | G29: -3.81 | H29: -3.61 | I29: -2.01 | J29: -0.53 | K29: -127.03 | L29: 152.38 | M29: 197.04 | N29: 4.71 | O29: 21.31 | P29: 6.72 | Q29: 39.92 | R29: 8.21 | S29: -0.00 | T29: 9.37 | U29: 128.72 | V29: -11.14 | W29: -6.74 | X29: -8.16 | Y29: 14.91 | Z29: 0.90 | AA29: -2.53 | AB29: -0.11 | AC29: 10.77 | AD29: -3.52 | AE29: 0.20 | AF29: 0.70 | AG29: 2.43 | AH29: 14.58 | AI29: 50.73 | AJ29: -29.46 | AK29: -4.57 | AL29: 46.73
A30: 1.2服务贸易 | C30: -18.66 | D30: -0.83 | E30: -1.13 | F30: -0.79 | G30: -0.58 | H30: -1.64 | I30: -1.06 | J30: -1.12 | K30: -14.76 | L30: -3.97 | M30: -5.26 | N30: -1.34 | O30: -0.57 | P30: -1.12 | Q30: -2.97 | R30: -1.78 | S30: -1.46 | T30: -1.13 | U30: -3.76 | V30: -0.30 | W30: -0.86 | X30: -1.02 | Y30: -1.32 | Z30: -0.17 | AA30: -0.61 | AB30: -0.01 | AC30: -0.43 | AD30: -0.33 | AE30: -0.06 | AF30: -0.15 | AG30: -0.25 | AH30: 0.72 | AI30: -0.36 | AJ30: -0.88 | AK30: -0.03 | AL30: -1.36
A31: 1.3收益和经常转移 | C31: -16.73 | D31: -0.26 | E31: 0.47 | F31: 0.01 | G31: 0.04 | H31: 0.79 | I31: 0.12 | J31: 0.30 | K31: -18.38 | L31: -1.70 | M31: 2.61 | N31: 0.04 | O31: -6.34 | P31: -0.10 | Q31: 0.47 | R31: 1.45 | S31: 0.34 | T31: 0.27 | U31: -0.23 | V31: 0.02 | W31: 0.04 | X31: 0.01 | Y31: -0.05 | Z31: 0.01 | AA31: 0.07 | AB31: 0.00 | AC31: -0.17 | AD31: 0.02 | AE31: 0.01 | AF31: -0.00 | AG31: -0.00 | AH31: 0.34 | AI31: 0.12 | AJ31: 0.39 | AK31: 0.86 | AL31: -2.54
A32: 2.资本与金融项目 | C32: 0.12 | D32: 2.51 | E32: 0.82 | F32: -0.02 | G32: -0.63 | H32: 1.02 | I32: 0.21 | J32: 0.06 | K32: -39.66 | L32: 0.86 | M32: 9.23 | N32: -0.27 | O32: -5.61 | P32: -2.59 | Q32: -2.34 | R32: -0.22 | S32: 0.03 | T32: 0.90 | U32: -3.99 | V32: -4.14 | W32: -0.85 | X32: 1.46 | Y32: 0.82 | Z32: -0.51 | AA32: 0.32 | AB32: -0.00 | AC32: =AC12-AC22 -> 2.42 | AD32: -0.50 | AE32: -0.22 | AF32: -0.08 | AG32: -0.73 | AH32: 0.14 | AI32: 1.80 | AJ32: -1.93 | AK32: 1.67 | AL32: -8.78
A33: 其中: 直接投资 | C33: 1.15 | D33: 3.54 | E33: -0.01 | F33: 0.11 | G33: -0.30 | H33: 1.29 | I33: 0.18 | J33: 0.07 | K33: 0.32 | L33: 0.24 | M33: 8.21 | N33: 0.75 | O33: 0.43 | P33: -2.26 | Q33: -1.13 | R33: -0.43 | S33: 0.84 | T33: 0.58 | U33: 1.10 | V33: 0.41 | W33: -0.05 | X33: 1.09 | Y33: 0.89 | Z33: 0.09 | AA33: -0.03 | AB33: 0 | AC33: -0.00 | AD33: 0.02 | AE33: -0.20 | AF33: 0.00 | AG33: -0.35 | AH33: 0.53 | AI33: 0.26 | AJ33: 0.03 | AK33: 2.02 | AL33: -2.34
A34: 证券投资 | C34: -0.00 | D34: -0.43 | E34: -0.36 | F34: -1.01 | G34: -0.15 | H34: 0 | I34: -0.00 | J34: 0 | K34: -33.26 | L34: 1.74 | M34: 1.90 | N34: 0.17 | O34: -3.78 | P34: 1.98 | Q34: 1.08 | R34: 0.81 | S34: -0.95 | T34: 0.58 | U34: 1.12 | V34: -2.74 | W34: 0.25 | X34: 0.59 | Y34: 0.72 | Z34: 0.51 | AA34: 0.20 | AB34: 0 | AC34: -1.26 | AD34: 0.50 | AE34: 0 | AF34: 0 | AG34: 0.05 | AH34: -0.12 | AI34: 3.23 | AJ34: -1.09 | AK34: 1.29 | AL34: -3.58
A35: 注： 1.分地区是指办理结售汇业务的银行所在地。其中，本表中辽宁不含大连，浙江不含宁波，福建不含厦门，山东不含青岛，广东不含深圳。

Sheet 2022年10月（按美元）
A2: 2022年10月银行结售汇数据（分地区）
A3: 单位：亿美元
A4: 项目 | C4: 北京 | D4: 天津 | E4: 河北 | F4: 山西 | G4: 内蒙古 | H4: 辽宁 | I4: 吉林 | J4: 黑龙江 | K4: 上海 | L4: 江苏 | M4: 浙江 | N4: 安徽 | O4: 福建 | P4: 江西 | Q4: 山东 | R4: 河南 | S4: 湖北 | T4: 湖南 | U4: 广东 | V4: 广西 | W4: 海南 | X4: 重庆 | Y4: 四川 | Z4: 贵州 | AA4: 云南 | AB4: 西藏 | AC4: 陕西 | AD4: 甘肃 | AE4: 青海 | AF4: 宁夏 | AG4: 新疆 | AH4: 大连 | AI4: 宁波 | AJ4: 厦门 | AK4: 青岛 | AL4: 深圳
A5: 一、结汇 | C5: 96.07 | D5: 29.82 | E5: 23.89 | F5: 3.27 | G5: 3.17 | H5: 9.90 | I5: 4.80 | J5: 3.10 | K5: 233.87 | L5: 216.52 | M5: 241.00 | N5: 27.64 | O5: 47.19 | P5: 16.40 | Q5: 91.60 | R5: 18.89 | S5: 24.44 | T5: 16.82 | U5: 197.97 | V5: 6.30 | W5: 4.03 | X5: 15.86 | Y5: 21.69 | Z5: 4.36 | AA5: 4.96 | AB5: 0.05 | AC5: 21.03 | AD5: 0.99 | AE5: 0.19 | AF5: 1.06 | AG5: 3.26 | AH5: 18.29 | AI5: 73.63 | AJ5: 35.43 | AK5: 36.23 | AL5: 147.16
A6: (一）银行自身 | C6: 12.45 | D6: 0.05 | E6: 0.00 | F6: 0.00 | G6: 0.00 | H6: 0.00 | I6: 0 | J6: 0.00 | K6: 10.50 | L6: 0.04 | M6: 0.99 | N6: 0.00 | O6: 0.06 | P6: 0.00 | Q6: 0.52 | R6: 0.00 | S6: 0.00 | T6: 0.00 | U6: 0.84 | V6: 0.00 | W6: 0.00 | X6: 0.01 | Y6: 0.00 | Z6: 0 | AA6: 0.00 | AB6: 0 | AC6: 0.00 | AD6: 0.00 | AE6: 0 | AF6: 0 | AG6: 0 | AH6: 0.00 | AI6: 0.05 | AJ6: 0.01 | AK6: 0.01 | AL6: 0.26
A7: (二）银行代客 | C7: 83.62 | D7: 29.76 | E7: 23.89 | F7: 3.27 | G7: 3.17 | H7: 9.90 | I7: 4.80 | J7: 3.10 | K7: 223.36 | L7: 216.48 | M7: 240.01 | N7: 27.63 | O7: 47.12 | P7: 16.40 | Q7: 91.08 | R7: 18.88 | S7: 24.44 | T7: 16.82 | U7: 197.13 | V7: 6.30 | W7: 4.03 | X7: 15.85 | Y7: 21.69 | Z7: 4.36 | AA7: 4.96 | AB7: 0.05 | AC7: 21.03 | AD7: 0.99 | AE7: 0.19 | AF7: 1.06 | AG7: 3.26 | AH7: 18.29 | AI7: 73.58 | AJ7: 35.43 | AK7: 36.23 | AL7: 146.91
A8: 1.经常项目 | C8: 62.88 | D8: 26.01 | E8: 23.03 | F8: 3.17 | G8: 2.98 | H8: 9.54 | I8: 4.46 | J8: 2.95 | K8: 162.82 | L8: 206.31 | M8: 231.09 | N8: 24.97 | O8: 46.79 | P8: 14.18 | Q8: 84.21 | R8: 17.66 | S8: 23.61 | T8: 16.56 | U8: 187.55 | V8: 5.84 | W8: 2.97 | X8: 14.88 | Y8: 19.59 | Z8: 2.65 | AA8: 4.64 | AB8: 0.00 | AC8: 19.86 | AD8: 0.89 | AE8: 0.16 | AF8: 1.01 | AG8: 3.19 | AH8: 17.79 | AI8: 72.39 | AJ8: 34.50 | AK8: 35.04 | AL8: 120.11
A9: 1.1货物贸易 | C9: 36.39 | D9: 22.59 | E9: 21.40 | F9: 2.78 | G9: 2.72 | H9: 8.13 | I9: 3.71 | J9: 2.10 | K9: 117.59 | L9: 198.71 | M9: 223.65 | N9: 24.07 | O9: 43.35 | P9: 13.66 | Q9: 78.56 | R9: 16.27 | S9: 21.30 | T9: 15.38 | U9: 174.53 | V9: 5.24 | W9: 2.48 | X9: 13.86 | Y9: 16.69 | Z9: 2.41 | AA9: 4.24 | AB9: 0 | AC9: 17.93 | AD9: 0.68 | AE9: 0.14 | AF9: 0.96 | AG9: 3.00 | AH9: 15.74 | AI9: 70.78 | AJ9: 33.07 | AK9: 31.83 | AL9: 108.23
A10: 1.2服务贸易 | C10: 19.86 | D10: 2.37 | E10: 0.60 | F10: 0.24 | G10: 0.19 | H10: 0.58 | I10: 0.25 | J10: 0.29 | K10: 38.12 | L10: 5.33 | M10: 3.11 | N10: 0.58 | O10: 1.18 | P10: 0.23 | Q10: 1.85 | R10: 0.59 | S10: 1.49 | T10: 0.71 | U10: 8.22 | V10: 0.31 | W10: 0.41 | X10: 0.73 | Y10: 2.25 | Z10: 0.14 | AA10: 0.26 | AB10: 0.00 | AC10: 1.59 | AD10: 0.08 | AE10: 0.01 | AF10: 0.02 | AG10: 0.16 | AH10: 1.55 | AI10: 1.39 | AJ10: 1.19 | AK10: 2.51 | AL10: 10.18
A11: 1.3收益和经常转移 | C11: 6.63 | D11: 1.05 | E11: 1.03 | F11: 0.15 | G11: 0.08 | H11: 0.83 | I11: 0.50 | J11: 0.56 | K11: 7.11 | L11: 2.27 | M11: 4.34 | N11: 0.32 | O11: 2.27 | P11: 0.29 | Q11: 3.80 | R11: 0.80 | S11: 0.82 | T11: 0.47 | U11: 4.80 | V11: 0.28 | W11: 0.08 | X11: 0.28 | Y11: 0.65 | Z11: 0.09 | AA11: 0.14 | AB11: 0.00 | AC11: 0.34 | AD11: 0.13 | AE11: 0.01 | AF11: 0.02 | AG11: 0.03 | AH11: 0.49 | AI11: 0.22 | AJ11: 0.24 | AK11: 0.70 | AL11: 1.70
A12: 2.资本与金融项目 | C12: 20.73 | D12: 3.75 | E12: 0.86 | F12: 0.11 | G12: 0.19 | H12: 0.36 | I12: 0.34 | J12: 0.15 | K12: 60.54 | L12: 10.17 | M12: 8.92 | N12: 2.66 | O12: 0.33 | P12: 2.22 | Q12: 6.87 | R12: 1.22 | S12: 0.83 | T12: 0.26 | U12: 9.59 | V12: 0.46 | W12: 1.06 | X12: 0.98 | Y12: 2.09 | Z12: 1.72 | AA12: 0.32 | AB12: 0.04 | AC12: 1.17 | AD12: 0.10 | AE12: 0.03 | AF12: 0.05 | AG12: 0.07 | AH12: 0.50 | AI12: 1.19 | AJ12: 0.92 | AK12: 1.19 | AL12: 26.79
A13: 其中: 直接投资 | C13: 9.81 | D13: 2.38 | E13: 0.80 | F13: 0.10 | G13: 0.03 | H13: 0.26 | I13: 0.23 | J13: 0.13 | K13: 12.89 | L13: 8.13 | M13: 5.43 | N13: 2.35 | O13: 0.25 | P13: 0.86 | Q13: 5.26 | R13: 0.32 | S13: 0.51 | T13: 0.13 | U13: 7.83 | V13: 0.42 | W13: 0.87 | X13: 0.26 | Y13: 1.45 | Z13: 0.45 | AA13: 0.26 | AB13: 0 | AC13: 0.08 | AD13: 0.01 | AE13: 0 | AF13: 0.00 | AG13: 0.06 | AH13: 0.42 | AI13: 0.78 | AJ13: 0.88 | AK13: 1.11 | AL13: 13.11
A14: 证券投资 | C14: 6.04 | D14: 0.35 | E14: 0.00 | F14: 0 | G14: 0.00 | H14: 0.00 | I14: 0 | J14: 0.00 | K14: 46.02 | L14: 0.92 | M14: 3.10 | N14: 0.25 | O14: 1.16 | P14: 1.29 | Q14: 0.45 | R14: 0.75 | S14: 0.01 | T14: 0.00 | U14: 1.52 | V14: 0 | W14: 0.18 | X14: 0.55 | Y14: 0.07 | Z14: 0.99 | AA14: 0.00 | AB14: 0 | AC14: 0.86 | AD14: 0.05 | AE14: 0 | AF14: 0 | AG14: 0.01 | AH14: 0.03 | AI14: 0.26 | AJ14: 0.00 | AK14: 0.01 | AL14: 13.55
A15: 二、售汇 | C15: 382.91 | D15: 27.97 | E15: 18.19 | F15: 3.77 | G15: 6.89 | H15: 31.52 | I15: 9.32 | J15: 8.66 | K15: 454.53 | L15: 119.19 | M15: 84.07 | N15: 23.48 | O15: 33.04 | P15: 12.59 | Q15: 70.40 | R15: 13.22 | S15: 20.76 | T15: 16.83 | U15: 108.10 | V15: 22.95 | W15: 11.99 | X15: 34.54 | Y15: 18.33 | Z15: 2.47 | AA15: 10.11 | AB15: 0.03 | AC15: 12.17 | AD15: 7.57 | AE15: 0.19 | AF15: 0.38 | AG15: 2.92 | AH15: 10.47 | AI15: 41.84 | AJ15: 55.25 | AK15: 43.79 | AL15: 99.15
A16: (一）银行自身 | C16: 2.59 | D16: 0.00 | E16: 0 | F16: 0 | G16: 0 | H16: 14.49 | I16: 0 | J16: 0.00 | K16: 8.95 | L16: 0.00 | M16: 0.78 | N16: 0.00 | O16: 0.01 | P16: 0.00 | Q16: 0.01 | R16: 0.00 | S16: 0 | T16: 0 | U16: 0.06 | V16: 0.00 | W16: 0.08 | X16: 0.00 | Y16: 0.00 | Z16: 0.00 | AA16: 0.00 | AB16: 0 | AC16: 0.05 | AD16: 0 | AE16: 0 | AF16: 0 | AG16: 0 | AH16: 0.03 | AI16: 0.00 | AJ16: 0 | AK16: 0.01 | AL16: 0.50
A17: (二）银行代客 | C17: 380.32 | D17: 27.96 | E17: 18.19 | F17: 3.77 | G17: 6.89 | H17: 17.03 | I17: 9.32 | J17: 8.66 | K17: 445.58 | L17: 119.19 | M17: 83.29 | N17: 23.48 | O17: 33.03 | P17: 12.59 | Q17: 70.39 | R17: 13.22 | S17: 20.76 | T17: 16.83 | U17: 108.04 | V17: 22.95 | W17: 11.91 | X17: 34.54 | Y17: 18.32 | Z17: 2.47 | AA17: 10.11 | AB17: 0.03 | AC17: 12.12 | AD17: 7.57 | AE17: 0.19 | AF17: 0.38 | AG17: 2.92 | AH17: 10.43 | AI17: 41.84 | AJ17: 55.25 | AK17: 43.78 | AL17: 98.64
A18: 1.经常项目 | C18: 339.03 | D18: 25.70 | E18: 16.46 | F18: 3.42 | G18: 6.42 | H18: 16.66 | I18: 9.22 | J18: 8.52 | K18: 338.62 | L18: 103.44 | M18: 76.91 | N18: 21.67 | O18: 30.12 | P18: 12.40 | Q18: 67.85 | R18: 11.67 | S18: 20.43 | T18: 15.00 | U18: 99.91 | V18: 21.40 | W18: 11.42 | X18: 32.19 | Y18: 16.47 | Z18: 1.78 | AA18: 4.83 | AB18: 0.03 | AC18: 9.67 | AD18: 7.41 | AE18: 0.13 | AF18: 0.37 | AG18: 1.56 | AH18: 10.18 | AI18: 38.04 | AJ18: 53.23 | AK18: 41.85 | AL18: 86.32
A19: 1.1货物贸易 | C19: 299.69 | D19: 22.02 | E19: 14.72 | F19: 2.66 | G19: 5.69 | H19: 14.34 | I19: 7.53 | J19: 7.36 | K19: 272.48 | L19: 90.81 | M19: 69.57 | N19: 20.12 | O19: 26.20 | P19: 11.45 | Q19: 63.18 | R19: 9.42 | S19: 18.09 | T19: 13.56 | U19: 87.09 | V19: 20.47 | W19: 9.88 | X19: 30.46 | Y19: 12.94 | Z19: 1.39 | AA19: 4.02 | AB19: 0.01 | AC19: 8.14 | AD19: 7.07 | AE19: 0.06 | AF19: 0.27 | AG19: 1.35 | AH19: 7.34 | AI19: 35.89 | AJ19: 51.20 | AK19: 39.59 | AL19: 68.91
A20: 1.2服务贸易 | C20: 28.39 | D20: 2.42 | E20: 1.57 | F20: 0.75 | G20: 0.72 | H20: 2.07 | I20: 1.46 | J20: 1.11 | K20: 49.19 | L20: 8.19 | M20: 6.08 | N20: 1.41 | O20: 1.73 | P20: 0.74 | Q20: 3.56 | R20: 1.39 | S20: 2.20 | T20: 1.33 | U20: 8.81 | V20: 0.57 | W20: 1.41 | X20: 1.53 | Y20: 3.15 | Z20: 0.32 | AA20: 0.57 | AB20: 0.02 | AC20: 1.18 | AD20: 0.28 | AE20: 0.04 | AF20: 0.09 | AG20: 0.20 | AH20: 1.30 | AI20: 1.90 | AJ20: 1.89 | AK20: 2.01 | AL20: 13.00
A21: 1.3收益和经常转移 | C21: 10.96 | D21: 1.26 | E21: 0.16 | F21: 0.02 | G21: 0.02 | H21: 0.25 | I21: 0.23 | J21: 0.05 | K21: 16.94 | L21: 4.45 | M21: 1.25 | N21: 0.15 | O21: 2.19 | P21: 0.21 | Q21: 1.11 | R21: 0.86 | S21: 0.15 | T21: 0.10 | U21: 4.01 | V21: 0.37 | W21: 0.14 | X21: 0.20 | Y21: 0.37 | Z21: 0.07 | AA21: 0.25 | AB21: 0.00 | AC21: 0.34 | AD21: 0.06 | AE21: 0.03 | AF21: 0.01 | AG21: 0.01 | AH21: 1.54 | AI21: 0.24 | AJ21: 0.14 | AK21: 0.25 | AL21: 4.41
A22: 2.资本与金融项目 | C22: 41.29 | D22: 2.27 | E22: 1.73 | F22: 0.34 | G22: 0.47 | H22: 0.37 | I22: 0.10 | J22: 0.14 | K22: 106.96 | L22: 15.75 | M22: 6.38 | N22: 1.81 | O22: 2.91 | P22: 0.19 | Q22: 2.54 | R22: 1.55 | S22: 0.32 | T22: 1.83 | U22: 8.13 | V22: 1.55 | W22: 0.49 | X22: 2.35 | Y22: 1.85 | Z22: 0.69 | AA22: 5.27 | AB22: 0.00 | AC22: 2.45 | AD22: 0.16 | AE22: 0.05 | AF22: 0.01 | AG22: 1.36 | AH22: 0.25 | AI22: 3.80 | AJ22: 2.02 | AK22: 1.93 | AL22: 12.33
A23: 其中: 直接投资 | C23: 21.69 | D23: 1.82 | E23: 0.30 | F23: 0.03 | G23: 0.11 | H23: 0.20 | I23: 0.00 | J23: 0.06 | K23: 13.99 | L23: 9.03 | M23: 4.33 | N23: 0.95 | O23: 1.86 | P23: 0.06 | Q23: 1.22 | R23: 0.78 | S23: 0.05 | T23: 1.22 | U23: 1.51 | V23: 0.07 | W23: 0.42 | X23: 0.31 | Y23: 0.49 | Z23: 0.00 | AA23: 0.01 | AB23: 0 | AC23: 0.17 | AD23: 0.00 | AE23: 0 | AF23: 0.00 | AG23: 1.09 | AH23: 0.12 | AI23: 1.16 | AJ23: 0.77 | AK23: 0.24 | AL23: 2.83
A24: 证券投资 | C24: 13.05 | D24: 0.03 | E24: 1.29 | F24: 0 | G24: 0.00 | H24: 0.00 | I24: 0 | J24: 0 | K24: 83.38 | L24: 2.46 | M24: 0.73 | N24: 0.00 | O24: 0 | P24: 0 | Q24: 0.19 | R24: 0 | S24: 0.09 | T24: 0 | U24: 5.19 | V24: 0.05 | W24: 0 | X24: 0.62 | Y24: 0.03 | Z24: 0 | AA24: 5.00 | AB24: 0 | AC24: 1.00 | AD24: 0 | AE24: 0 | AF24: 0 | AG24: 0.10 | AH24: 0.05 | AI24: 0.44 | AJ24: 0.15 | AK24: 0.00 | AL24: 6.90
A25: 三、差额 | C25: =C5-C15 -> -286.85 | D25: =D5-D15 -> 1.85 | E25: 5.70 | F25: -0.50 | G25: -3.72 | H25: -21.62 | I25: -4.52 | J25: -5.56 | K25: -220.66 | L25: 97.33 | M25: 156.92 | N25: 4.15 | O25: 14.15 | P25: 3.81 | Q25: 21.20 | R25: 5.67 | S25: 3.68 | T25: -0.01 | U25: 89.87 | V25: -16.66 | W25: -7.96 | X25: -18.68 | Y25: 3.36 | Z25: 1.89 | AA25: -5.15 | AB25: 0.02 | AC25: 8.86 | AD25: -6.58 | AE25: 0.01 | AF25: 0.68 | AG25: 0.34 | AH25: 7.83 | AI25: 31.79 | AJ25: -19.82 | AK25: -7.55 | AL25: 48.02
A26: (一）银行自身 | C26: =C6-C16 -> 9.86 | D26: 0.05 | E26: 0.00 | F26: 0.00 | G26: 0.00 | H26: -14.49 | I26: 0 | J26: -0.00 | K26: 1.56 | L26: 0.04 | M26: 0.20 | N26: 0.00 | O26: 0.05 | P26: -0.00 | Q26: 0.50 | R26: 0.00 | S26: 0.00 | T26: 0.00 | U26: 0.78 | V26: 0.00 | W26: -0.08 | X26: 0.01 | Y26: 0.00 | Z26: -0.00 | AA26: 0.00 | AB26: 0 | AC26: -0.05 | AD26: 0.00 | AE26: 0 | AF26: 0 | AG26: 0 | AH26: -0.03 | AI26: 0.05 | AJ26: 0.01 | AK26: -0.00 | AL26: -0.24
A27: (二）银行代客 | C27: -296.71 | D27: 1.80 | E27: 5.70 | F27: -0.50 | G27: -3.72 | H27: -7.13 | I27: -4.52 | J27: -5.56 | K27: -222.21 | L27: 97.29 | M27: 156.72 | N27: 4.15 | O27: 14.09 | P27: 3.81 | Q27: 20.69 | R27: 5.66 | S27: 3.68 | T27: -0.02 | U27: 89.09 | V27: -16.66 | W27: -7.88 | X27: -18.68 | Y27: 3.36 | Z27: 1.89 | AA27: -5.15 | AB27: 0.02 | AC27: 8.91 | AD27: -6.58 | AE27: 0.01 | AF27: 0.68 | AG27: 0.34 | AH27: 7.85 | AI27: 31.74 | AJ27: -19.83 | AK27: -7.55 | AL27: 48.26
A28: 1.经常项目 | C28: -276.15 | D28: 0.31 | E28: 6.58 | F28: -0.26 | G28: -3.44 | H28: -7.12 | I28: -4.75 | J28: -5.56 | K28: -175.79 | L28: 102.88 | M28: 154.19 | N28: 3.30 | O28: 16.67 | P28: 1.79 | Q28: 16.37 | R28: 5.99 | S28: 3.18 | T28: 1.56 | U28: 87.64 | V28: -15.57 | W28: -8.45 | X28: -17.31 | Y28: 3.12 | Z28: 0.87 | AA28: -0.20 | AB28: -0.03 | AC28: 10.19 | AD28: -6.52 | AE28: 0.03 | AF28: 0.64 | AG28: 1.62 | AH28: 7.61 | AI28: 34.35 | AJ28: -18.73 | AK28: -6.81 | AL28: 33.79
A29: 1.1货物贸易 | C29: -263.30 | D29: 0.57 | E29: 6.68 | F29: 0.12 | G29: -2.97 | H29: -6.21 | I29: -3.82 | J29: -5.26 | K29: -154.89 | L29: 107.91 | M29: 154.08 | N29: 3.95 | O29: 17.15 | P29: 2.22 | Q29: 15.38 | R29: 6.86 | S29: 3.21 | T29: 1.82 | U29: 87.44 | V29: -15.22 | W29: -7.40 | X29: -16.60 | Y29: 3.75 | Z29: 1.03 | AA29: 0.22 | AB29: -0.01 | AC29: 9.78 | AD29: -6.39 | AE29: 0.08 | AF29: 0.69 | AG29: 1.64 | AH29: 8.40 | AI29: 34.88 | AJ29: -18.13 | AK29: -7.76 | AL29: 39.32
A30: 1.2服务贸易 | C30: -8.53 | D30: -0.05 | E30: -0.97 | F30: -0.51 | G30: -0.52 | H30: -1.50 | I30: -1.21 | J30: -0.82 | K30: -11.07 | L30: -2.85 | M30: -2.98 | N30: -0.83 | O30: -0.55 | P30: -0.51 | Q30: -1.71 | R30: -0.80 | S30: -0.71 | T30: -0.63 | U30: -0.59 | V30: -0.26 | W30: -1.00 | X30: -0.80 | Y30: -0.90 | Z30: -0.18 | AA30: -0.31 | AB30: -0.02 | AC30: 0.41 | AD30: -0.20 | AE30: -0.03 | AF30: -0.07 | AG30: -0.04 | AH30: 0.25 | AI30: -0.51 | AJ30: -0.70 | AK30: 0.51 | AL30: -2.81
A31: 1.3收益和经常转移 | C31: -4.33 | D31: -0.21 | E31: 0.87 | F31: 0.13 | G31: 0.06 | H31: 0.58 | I31: 0.28 | J31: 0.51 | K31: -9.83 | L31: -2.18 | M31: 3.09 | N31: 0.18 | O31: 0.08 | P31: 0.08 | Q31: 2.70 | R31: -0.06 | S31: 0.67 | T31: 0.36 | U31: 0.79 | V31: -0.09 | W31: -0.05 | X31: 0.09 | Y31: 0.27 | Z31: 0.02 | AA31: -0.11 | AB31: 0.00 | AC31: -0.00 | AD31: 0.07 | AE31: -0.02 | AF31: 0.02 | AG31: 0.02 | AH31: -1.05 | AI31: -0.03 | AJ31: 0.10 | AK31: 0.45 | AL31: -2.72
A32: 2.资本与金融项目 | C32: -20.56 | D32: 1.48 | E32: -0.88 | F32: -0.24 | G32: -0.28 | H32: -0.01 | I32: 0.24 | J32: 0.00 | K32: -46.42 | L32: -5.59 | M32: 2.53 | N32: 0.85 | O32: -2.58 | P32: 2.03 | Q32: 4.33 | R32: -0.33 | S32: 0.50 | T32: -1.57 | U32: 1.45 | V32: -1.09 | W32: 0.57 | X32: -1.37 | Y32: 0.24 | Z32: 1.03 | AA32: -4.96 | AB32: 0.04 | AC32: =AC12-AC22 -> -1.28 | AD32: -0.06 | AE32: -0.02 | AF32: 0.03 | AG32: -1.28 | AH32: 0.24 | AI32: -2.61 | AJ32: -1.10 | AK32: -0.74 | AL32: 14.47
A33: 其中: 直接投资 | C33: -11.88 | D33: 0.56 | E33: 0.51 | F33: 0.07 | G33: -0.08 | H33: 0.07 | I33: 0.23 | J33: 0.07 | K33: -1.10 | L33: -0.90 | M33: 1.10 | N33: 1.39 | O33: -1.61 | P33: 0.80 | Q33: 4.04 | R33: -0.46 | S33: 0.47 | T33: -1.10 | U33: 6.32 | V33: 0.35 | W33: 0.45 | X33: -0.05 | Y33: 0.96 | Z33: 0.45 | AA33: 0.25 | AB33: 0 | AC33: -0.09 | AD33: 0.01 | AE33: 0 | AF33: 0.00 | AG33: -1.03 | AH33: 0.30 | AI33: -0.37 | AJ33: 0.10 | AK33: 0.87 | AL33: 10.29
A34: 证券投资 | C34: -7.01 | D34: 0.32 | E34: -1.29 | F34: 0 | G34: 0.00 | H34: 0.00 | I34: 0 | J34: 0.00 | K34: -37.36 | L34: -1.54 | M34: 2.37 | N34: 0.25 | O34: 1.16 | P34: 1.29 | Q34: 0.26 | R34: 0.75 | S34: -0.08 | T34: 0.00 | U34: -3.67 | V34: -0.05 | W34: 0.18 | X34: -0.07 | Y34: 0.04 | Z34: 0.99 | AA34: -5.00 | AB34: 0 | AC34: -0.14 | AD34: 0.05 | AE34: 0 | AF34: 0 | AG34: -0.09 | AH34: -0.01 | AI34: -0.18 | AJ34: -0.15 | AK34: 0.01 | AL34: 6.65
A35: 注： 1.分地区是指办理结售汇业务的银行所在地。其中，本表中辽宁不含大连，浙江不含宁波，福建不含厦门，山东不含青岛，广东不含深圳。

Sheet 2022年11月（按美元）
A2: 2022年11月银行结售汇数据（分地区）
A3: 单位：亿美元
A4: 项目 | C4: 北京 | D4: 天津 | E4: 河北 | F4: 山西 | G4: 内蒙古 | H4: 辽宁 | I4: 吉林 | J4: 黑龙江 | K4: 上海 | L4: 江苏 | M4: 浙江 | N4: 安徽 | O4: 福建 | P4: 江西 | Q4: 山东 | R4: 河南 | S4: 湖北 | T4: 湖南 | U4: 广东 | V4: 广西 | W4: 海南 | X4: 重庆 | Y4: 四川 | Z4: 贵州 | AA4: 云南 | AB4: 西藏 | AC4: 陕西 | AD4: 甘肃 | AE4: 青海 | AF4: 宁夏 | AG4: 新疆 | AH4: 大连 | AI4: 宁波 | AJ4: 厦门 | AK4: 青岛 | AL4: 深圳
A5: 一、结汇 | C5: 115.55 | D5: 30.68 | E5: 26.89 | F5: 4.57 | G5: 4.24 | H5: 10.03 | I5: 4.26 | J5: 2.62 | K5: 340.00 | L5: 230.80 | M5: 253.19 | N5: 29.02 | O5: 46.82 | P5: 16.19 | Q5: 94.48 | R5: 23.82 | S5: 20.57 | T5: 15.13 | U5: 185.37 | V5: 7.75 | W5: 4.80 | X5: 20.72 | Y5: 29.98 | Z5: 3.30 | AA5: 6.40 | AB5: 0.01 | AC5: 16.76 | AD5: 1.04 | AE5: 0.19 | AF5: 1.19 | AG5: 7.03 | AH5: 17.56 | AI5: 75.96 | AJ5: 33.71 | AK5: 38.89 | AL5: 137.89
A6: (一）银行自身 | C6: 21.75 | D6: 0.01 | E6: 0.00 | F6: 0.00 | G6: 0.00 | H6: 0.00 | I6: 0 | J6: 0.00 | K6: 20.34 | L6: 1.07 | M6: 6.69 | N6: 0.00 | O6: 0.49 | P6: 0.00 | Q6: 0.01 | R6: 0.00 | S6: 0.00 | T6: 0.00 | U6: 1.73 | V6: 0.06 | W6: 0.00 | X6: 0.01 | Y6: 0.00 | Z6: 0 | AA6: 0.00 | AB6: 0 | AC6: 0.00 | AD6: 0.00 | AE6: 0 | AF6: 0.00 | AG6: 1.55 | AH6: 0.00 | AI6: 0.21 | AJ6: 0.00 | AK6: 0.01 | AL6: 0.39
A7: (二）银行代客 | C7: 93.79 | D7: 30.67 | E7: 26.89 | F7: 4.57 | G7: 4.24 | H7: 10.03 | I7: 4.26 | J7: 2.61 | K7: 319.66 | L7: 229.72 | M7: 246.50 | N7: 29.02 | O7: 46.32 | P7: 16.19 | Q7: 94.48 | R7: 23.82 | S7: 20.57 | T7: 15.13 | U7: 183.64 | V7: 7.69 | W7: 4.80 | X7: 20.72 | Y7: 29.97 | Z7: 3.30 | AA7: 6.40 | AB7: 0.01 | AC7: 16.75 | AD7: 1.04 | AE7: 0.19 | AF7: 1.19 | AG7: 5.48 | AH7: 17.56 | AI7: 75.76 | AJ7: 33.70 | AK7: 38.88 | AL7: 137.49
A8: 1.经常项目 | C8: 65.49 | D8: 27.63 | E8: 25.72 | F8: 3.95 | G8: 3.98 | H8: 9.75 | I8: 3.99 | J8: 2.36 | K8: 174.13 | L8: 212.33 | M8: 237.51 | N8: 27.59 | O8: 45.79 | P8: 14.50 | Q8: 83.10 | R8: 23.17 | S8: 19.46 | T8: 14.47 | U8: 171.42 | V8: 5.45 | W8: 3.74 | X8: 20.49 | Y8: 25.56 | Z8: 2.65 | AA8: 3.19 | AB8: 0.01 | AC8: 16.17 | AD8: 0.99 | AE8: 0.18 | AF8: 1.18 | AG8: 5.27 | AH8: 17.15 | AI8: 74.64 | AJ8: 33.20 | AK8: 37.16 | AL8: 125.74
A9: 1.1货物贸易 | C9: 33.99 | D9: 23.94 | E9: 24.09 | F9: 3.57 | G9: 3.71 | H9: 8.44 | I9: 3.25 | J9: 1.73 | K9: 126.10 | L9: 204.83 | M9: 230.05 | N9: 26.69 | O9: 42.49 | P9: 14.04 | Q9: 80.01 | R9: 21.91 | S9: 17.50 | T9: 13.29 | U9: 161.02 | V9: 4.83 | W9: 3.34 | X9: 19.67 | Y9: 21.39 | Z9: 2.30 | AA9: 2.78 | AB9: 0.01 | AC9: 14.79 | AD9: 0.82 | AE9: 0.17 | AF9: 1.12 | AG9: 4.86 | AH9: 14.81 | AI9: 72.77 | AJ9: 31.65 | AK9: 34.06 | AL9: 113.33
A10: 1.2服务贸易 | C10: 22.02 | D10: 2.44 | E10: 0.67 | F10: 0.25 | G10: 0.19 | H10: 0.54 | I10: 0.25 | J10: 0.30 | K10: 41.67 | L10: 5.51 | M10: 3.32 | N10: 0.60 | O10: 1.16 | P10: 0.22 | Q10: 1.85 | R10: 0.57 | S10: 1.10 | T10: 0.87 | U10: 7.66 | V10: 0.36 | W10: 0.30 | X10: 0.66 | Y10: 2.88 | Z10: 0.29 | AA10: 0.21 | AB10: 0.00 | AC10: 1.09 | AD10: 0.09 | AE10: 0.01 | AF10: 0.03 | AG10: 0.36 | AH10: 1.72 | AI10: 1.56 | AJ10: 1.18 | AK10: 2.20 | AL10: 10.38
A11: 1.3收益和经常转移 | C11: 9.48 | D11: 1.25 | E11: 0.95 | F11: 0.13 | G11: 0.08 | H11: 0.76 | I11: 0.50 | J11: 0.33 | K11: 6.36 | L11: 1.99 | M11: 4.15 | N11: 0.30 | O11: 2.14 | P11: 0.24 | Q11: 1.24 | R11: 0.69 | S11: 0.85 | T11: 0.31 | U11: 2.74 | V11: 0.26 | W11: 0.10 | X11: 0.16 | Y11: 1.29 | Z11: 0.06 | AA11: 0.21 | AB11: 0.00 | AC11: 0.28 | AD11: 0.08 | AE11: 0.01 | AF11: 0.02 | AG11: 0.06 | AH11: 0.62 | AI11: 0.31 | AJ11: 0.37 | AK11: 0.90 | AL11: 2.03
A12: 2.资本与金融项目 | C12: 28.31 | D12: 3.04 | E12: 1.17 | F12: 0.62 | G12: 0.26 | H12: 0.28 | I12: 0.26 | J12: 0.25 | K12: 145.53 | L12: 17.40 | M12: 8.99 | N12: 1.42 | O12: 0.54 | P12: 1.69 | Q12: 11.38 | R12: 0.64 | S12: 1.11 | T12: 0.66 | U12: 12.22 | V12: 2.24 | W12: 1.05 | X12: 0.23 | Y12: 4.42 | Z12: 0.65 | AA12: 3.21 | AB12: 0 | AC12: 0.59 | AD12: 0.05 | AE12: 0.01 | AF12: 0.01 | AG12: 0.20 | AH12: 0.41 | AI12: 1.11 | AJ12: 0.50 | AK12: 1.72 | AL12: 11.76
A13: 其中: 直接投资 | C13: 9.52 | D13: 2.50 | E13: 0.65 | F13: 0.03 | G13: 0.26 | H13: 0.21 | I13: 0.16 | J13: 0.09 | K13: 14.05 | L13: 9.41 | M13: 6.65 | N13: 0.86 | O13: 0.47 | P13: 0.76 | Q13: 10.33 | R13: 0.17 | S13: 0.77 | T13: 0.50 | U13: 9.21 | V13: 1.99 | W13: 0.91 | X13: 0.13 | Y13: 1.66 | Z13: 0.11 | AA13: 0.04 | AB13: 0 | AC13: 0.49 | AD13: 0.01 | AE13: 0 | AF13: 0.01 | AG13: 0.06 | AH13: 0.09 | AI13: 0.84 | AJ13: 0.40 | AK13: 0.65 | AL13: 4.00
A14: 证券投资 | C14: 11.44 | D14: 0.22 | E14: 0 | F14: 0.57 | G14: 0.01 | H14: 0 | I14: 0 | J14: 0 | K14: 130.59 | L14: 7.21 | M14: 1.39 | N14: 0.06 | O14: 0.00 | P14: 0.56 | Q14: 0.27 | R14: 0 | S14: 0.01 | T14: 0.00 | U14: 2.37 | V14: 0.00 | W14: 0.14 | X14: 0.01 | Y14: 2.40 | Z14: 0 | AA14: 3.05 | AB14: 0 | AC14: 0 | AD14: 0 | AE14: 0 | AF14: 0 | AG14: 0.09 | AH14: 0.07 | AI14: 0.13 | AJ14: 0.00 | AK14: 0.87 | AL14: 7.74
A15: 二、售汇 | C15: 403.40 | D15: 37.64 | E15: 23.55 | F15: 4.34 | G15: 9.49 | H15: 17.14 | I15: 12.36 | J15: 8.26 | K15: 426.53 | L15: 117.39 | M15: 112.70 | N15: 29.58 | O15: 36.63 | P15: 19.79 | Q15: 67.20 | R15: 19.73 | S15: 22.53 | T15: 27.07 | U15: 108.69 | V15: 19.76 | W15: 12.39 | X15: 16.96 | Y15: 19.80 | Z15: 3.08 | AA15: 7.66 | AB15: 0.10 | AC15: 18.62 | AD15: 7.46 | AE15: 0.07 | AF15: 0.70 | AG15: 2.27 | AH15: 12.16 | AI15: 51.66 | AJ15: 70.29 | AK15: 51.55 | AL15: 121.61
A16: (一）银行自身 | C16: 4.57 | D16: 0.00 | E16: 0 | F16: 0 | G16: 0 | H16: 0.00 | I16: 0.00 | J16: 0.01 | K16: 5.17 | L16: 0.17 | M16: 3.32 | N16: 0.00 | O16: 3.03 | P16: 0.20 | Q16: 0.01 | R16: 0.78 | S16: 0.01 | T16: 0 | U16: 0.01 | V16: 0.00 | W16: 0.00 | X16: 0.08 | Y16: 0.00 | Z16: 0.00 | AA16: 0 | AB16: 0 | AC16: 0 | AD16: 0 | AE16: 0 | AF16: 0 | AG16: 0 | AH16: 0.00 | AI16: 0.00 | AJ16: 0.00 | AK16: 0.00 | AL16: 8.02
A17: (二）银行代客 | C17: 398.83 | D17: 37.64 | E17: 23.55 | F17: 4.34 | G17: 9.49 | H17: 17.14 | I17: 12.36 | J17: 8.26 | K17: 421.36 | L17: 117.21 | M17: 109.39 | N17: 29.58 | O17: 33.61 | P17: 19.59 | Q17: 67.18 | R17: 18.95 | S17: 22.52 | T17: 27.07 | U17: 108.69 | V17: 19.75 | W17: 12.39 | X17: 16.89 | Y17: 19.80 | Z17: 3.08 | AA17: 7.66 | AB17: 0.10 | AC17: 18.62 | AD17: 7.46 | AE17: 0.07 | AF17: 0.70 | AG17: 2.27 | AH17: 12.16 | AI17: 51.66 | AJ17: 70.29 | AK17: 51.55 | AL17: 113.58
A18: 1.经常项目 | C18: 351.21 | D18: 34.85 | E18: 20.66 | F18: 3.92 | G18: 7.23 | H18: 16.15 | I18: 10.95 | J18: 7.57 | K18: 309.34 | L18: 101.47 | M18: 100.59 | N18: 27.50 | O18: 31.86 | P18: 13.97 | Q18: 63.34 | R18: 15.51 | S18: 21.81 | T18: 20.32 | U18: 100.19 | V18: 18.78 | W18: 9.42 | X18: 15.98 | Y18: 17.51 | Z18: 2.60 | AA18: 7.46 | AB18: 0.08 | AC18: 11.42 | AD18: 3.50 | AE18: 0.07 | AF18: 0.56 | AG18: 2.12 | AH18: 11.77 | AI18: 47.78 | AJ18: 69.70 | AK18: 48.72 | AL18: 94.63
A19: 1.1货物贸易 | C19: 300.81 | D19: 30.77 | E19: 19.00 | F19: 3.17 | G19: 6.69 | H19: 14.49 | I19: 7.11 | J19: 6.49 | K19: 226.28 | L19: 87.76 | M19: 91.13 | N19: 25.18 | O19: 28.53 | P19: 12.88 | Q19: 55.54 | R19: 13.61 | S19: 19.25 | T19: 18.62 | U19: 81.87 | V19: 18.04 | W19: 8.35 | X19: 12.87 | Y19: 13.47 | Z19: 2.22 | AA19: 6.46 | AB19: 0.00 | AC19: 9.49 | AD19: 3.00 | AE19: 0.04 | AF19: 0.41 | AG19: 1.75 | AH19: 9.77 | AI19: 44.40 | AJ19: 67.02 | AK19: 45.44 | AL19: 78.70
A20: 1.2服务贸易 | C20: 31.93 | D20: 2.92 | E20: 1.37 | F20: 0.73 | G20: 0.54 | H20: 1.51 | I20: 3.37 | J20: 0.88 | K20: 57.11 | L20: 8.91 | M20: 7.99 | N20: 2.12 | O20: 1.77 | P20: 0.81 | Q20: 3.73 | R20: 1.53 | S20: 2.04 | T20: 1.39 | U20: 9.84 | V20: 0.53 | W20: 0.87 | X20: 1.65 | Y20: 3.45 | Z20: 0.28 | AA20: 0.75 | AB20: 0.08 | AC20: 1.51 | AD20: 0.37 | AE20: 0.02 | AF20: 0.13 | AG20: 0.32 | AH20: 1.37 | AI20: 2.34 | AJ20: 2.26 | AK20: 2.06 | AL20: 11.94
A21: 1.3收益和经常转移 | C21: 18.47 | D21: 1.16 | E21: 0.29 | F21: 0.02 | G21: 0.01 | H21: 0.15 | I21: 0.47 | J21: 0.20 | K21: 25.96 | L21: 4.80 | M21: 1.47 | N21: 0.20 | O21: 1.56 | P21: 0.28 | Q21: 4.07 | R21: 0.37 | S21: 0.52 | T21: 0.32 | U21: 8.48 | V21: 0.21 | W21: 0.20 | X21: 1.46 | Y21: 0.58 | Z21: 0.10 | AA21: 0.24 | AB21: 0.00 | AC21: 0.43 | AD21: 0.14 | AE21: 0.00 | AF21: 0.02 | AG21: 0.05 | AH21: 0.62 | AI21: 1.04 | AJ21: 0.42 | AK21: 1.22 | AL21: 3.99
A22: 2.资本与金融项目 | C22: 47.62 | D22: 2.79 | E22: 2.89 | F22: 0.42 | G22: 2.25 | H22: 0.98 | I22: 1.41 | J22: 0.68 | K22: 112.01 | L22: 15.75 | M22: 8.79 | N22: 2.08 | O22: 1.74 | P22: 5.63 | Q22: 3.84 | R22: 3.44 | S22: 0.71 | T22: 6.75 | U22: 8.49 | V22: 0.97 | W22: 2.97 | X22: 0.90 | Y22: 2.29 | Z22: 0.48 | AA22: 0.20 | AB22: 0.02 | AC22: 7.20 | AD22: 3.95 | AE22: 0.00 | AF22: 0.14 | AG22: 0.15 | AH22: 0.40 | AI22: 3.88 | AJ22: 0.59 | AK22: 2.83 | AL22: 18.95
A23: 其中: 直接投资 | C23: 13.78 | D23: 1.16 | E23: 0.60 | F23: 0.28 | G23: 1.54 | H23: 0.68 | I23: 0.00 | J23: 0.11 | K23: 19.63 | L23: 6.53 | M23: 5.82 | N23: 0.60 | O23: 0.94 | P23: 3.48 | Q23: 1.71 | R23: 0.55 | S23: 0.33 | T23: 0.14 | U23: 2.85 | V23: 0.01 | W23: 2.54 | X23: 0.54 | Y23: 0.81 | Z23: 0.01 | AA23: 0.03 | AB23: 0.02 | AC23: 0.08 | AD23: 0.00 | AE23: 0 | AF23: 0.02 | AG23: 0.10 | AH23: 0.06 | AI23: 0.84 | AJ23: 0.41 | AK23: 1.38 | AL23: 7.29
A24: 证券投资 | C24: 28.22 | D24: 0.05 | E24: 1.68 | F24: 0 | G24: 0.49 | H24: 0.00 | I24: 0 | J24: 0.00 | K24: 81.12 | L24: 1.01 | M24: 0.53 | N24: 1.22 | O24: 0 | P24: 0.80 | Q24: 0.20 | R24: 1.40 | S24: 0.00 | T24: 4.77 | U24: 1.20 | V24: 0.41 | W24: 0 | X24: 0.00 | Y24: 0.06 | Z24: 0 | AA24: 0.00 | AB24: 0 | AC24: 1.20 | AD24: 3.47 | AE24: 0 | AF24: 0 | AG24: 0 | AH24: 0.02 | AI24: 0.18 | AJ24: 0.00 | AK24: 0.13 | AL24: 10.21
A25: 三、差额 | C25: =C5-C15 -> -287.85 | D25: -6.96 | E25: 3.34 | F25: 0.23 | G25: -5.24 | H25: -7.11 | I25: -8.10 | J25: -5.65 | K25: -86.53 | L25: 113.41 | M25: 140.49 | N25: -0.56 | O25: 10.18 | P25: -3.61 | Q25: 27.29 | R25: 4.09 | S25: -1.96 | T25: -11.94 | U25: 76.67 | V25: -12.00 | W25: -7.59 | X25: 3.76 | Y25: 10.18 | Z25: 0.21 | AA25: -1.26 | AB25: -0.09 | AC25: -1.86 | AD25: -6.42 | AE25: 0.12 | AF25: 0.49 | AG25: 4.75 | AH25: 5.40 | AI25: 24.30 | AJ25: -36.58 | AK25: -12.67 | AL25: 16.28
A26: (一）银行自身 | C26: =C6-C16 -> 17.18 | D26: 0.01 | E26: 0.00 | F26: 0.00 | G26: 0.00 | H26: -0.00 | I26: -0.00 | J26: -0.00 | K26: 15.17 | L26: 0.90 | M26: 3.37 | N26: 0.00 | O26: -2.54 | P26: -0.20 | Q26: -0.01 | R26: -0.78 | S26: -0.01 | T26: 0.00 | U26: 1.72 | V26: 0.06 | W26: 0.00 | X26: -0.07 | Y26: 0.00 | Z26: -0.00 | AA26: 0.00 | AB26: 0 | AC26: 0.00 | AD26: 0.00 | AE26: 0 | AF26: 0.00 | AG26: 1.55 | AH26: -0.00 | AI26: 0.21 | AJ26: 0.00 | AK26: 0.01 | AL26: -7.63
A27: (二）银行代客 | C27: =C7-C17 -> -305.03 | D27: -6.97 | E27: 3.34 | F27: 0.23 | G27: -5.24 | H27: -7.11 | I27: -8.10 | J27: -5.64 | K27: -101.70 | L27: 112.51 | M27: 137.12 | N27: -0.56 | O27: 12.72 | P27: -3.41 | Q27: 27.29 | R27: 4.87 | S27: -1.96 | T27: -11.94 | U27: 74.96 | V27: -12.07 | W27: -7.59 | X27: 3.83 | Y27: 10.17 | Z27: 0.21 | AA27: -1.26 | AB27: -0.09 | AC27: -1.87 | AD27: -6.42 | AE27: 0.12 | AF27: 0.49 | AG27: 3.20 | AH27: 5.40 | AI27: 24.09 | AJ27: -36.58 | AK27: -12.67 | AL27: 23.91
A28: 1.经常项目 | C28: =C8-C18 -> -285.72 | D28: -7.22 | E28: 5.06 | F28: 0.03 | G28: -3.25 | H28: -6.41 | I28: -6.96 | J28: -5.21 | K28: -135.21 | L28: 110.86 | M28: 136.92 | N28: 0.09 | O28: 13.93 | P28: 0.53 | Q28: 19.76 | R28: 7.67 | S28: -2.35 | T28: -5.86 | U28: 71.23 | V28: -13.34 | W28: -5.68 | X28: 4.50 | Y28: 8.05 | Z28: 0.05 | AA28: -4.27 | AB28: -0.07 | AC28: 4.75 | AD28: -2.52 | AE28: 0.11 | AF28: 0.61 | AG28: 3.15 | AH28: 5.38 | AI28: 26.86 | AJ28: -36.49 | AK28: -11.56 | AL28: 31.10
A29: 1.1货物贸易 | C29: =C9-C19 -> -266.82 | D29: -6.83 | E29: 5.10 | F29: 0.40 | G29: -2.97 | H29: -6.04 | I29: -3.87 | J29: -4.76 | K29: -100.18 | L29: 117.07 | M29: 138.92 | N29: 1.52 | O29: 13.96 | P29: 1.16 | Q29: 24.47 | R29: 8.30 | S29: -1.75 | T29: -5.33 | U29: 79.15 | V29: -13.21 | W29: -5.01 | X29: 6.81 | Y29: 7.92 | Z29: 0.08 | AA29: -3.68 | AB29: 0.01 | AC29: 5.30 | AD29: -2.18 | AE29: 0.12 | AF29: 0.71 | AG29: 3.11 | AH29: 5.04 | AI29: 28.37 | AJ29: -35.37 | AK29: -11.38 | AL29: 34.62
A30: 1.2服务贸易 | C30: =C10-C20 -> -9.91 | D30: -0.48 | E30: -0.70 | F30: -0.49 | G30: -0.35 | H30: -0.97 | I30: -3.12 | J30: -0.58 | K30: -15.44 | L30: -3.40 | M30: -4.67 | N30: -1.52 | O30: -0.61 | P30: -0.58 | Q30: -1.88 | R30: -0.96 | S30: -0.94 | T30: -0.51 | U30: -2.18 | V30: -0.17 | W30: -0.57 | X30: -0.99 | Y30: -0.58 | Z30: 0.01 | AA30: -0.55 | AB30: -0.08 | AC30: -0.42 | AD30: -0.28 | AE30: -0.02 | AF30: -0.10 | AG30: 0.03 | AH30: 0.35 | AI30: -0.77 | AJ30: -1.08 | AK30: 0.15 | AL30: -1.56
A31: 1.3收益和经常转移 | C31: =C11-C21 -> -8.99 | D31: 0.09 | E31: 0.66 | F31: 0.11 | G31: 0.07 | H31: 0.61 | I31: 0.03 | J31: 0.13 | K31: -19.60 | L31: -2.81 | M31: 2.68 | N31: 0.10 | O31: 0.58 | P31: -0.04 | Q31: -2.83 | R31: 0.33 | S31: 0.33 | T31: -0.02 | U31: -5.74 | V31: 0.05 | W31: -0.10 | X31: -1.31 | Y31: 0.71 | Z31: -0.04 | AA31: -0.04 | AB31: 0.00 | AC31: -0.14 | AD31: -0.06 | AE31: 0.00 | AF31: 0.01 | AG31: 0.01 | AH31: 0.00 | AI31: -0.73 | AJ31: -0.05 | AK31: -0.33 | AL31: -1.96
A32: 2.资本与金融项目 | C32: =C12-C22 -> -19.31 | D32: 0.25 | E32: -1.72 | F32: 0.20 | G32: -1.99 | H32: -0.70 | I32: -1.15 | J32: -0.43 | K32: 33.52 | L32: 1.65 | M32: 0.20 | N32: -0.66 | O32: -1.21 | P32: -3.94 | Q32: 7.53 | R32: -2.79 | S32: 0.40 | T32: -6.08 | U32: 3.72 | V32: 1.27 | W32: -1.91 | X32: -0.67 | Y32: 2.12 | Z32: 0.17 | AA32: 3.01 | AB32: -0.02 | AC32: -6.61 | AD32: -3.90 | AE32: 0.00 | AF32: -0.13 | AG32: 0.05 | AH32: 0.01 | AI32: -2.77 | AJ32: -0.09 | AK32: -1.12 | AL32: -7.19
A33: 其中: 直接投资 | C33: =C13-C23 -> -4.26 | D33: 1.33 | E33: 0.05 | F33: -0.25 | G33: -1.29 | H33: -0.47 | I33: 0.16 | J33: -0.02 | K33: -5.58 | L33: 2.88 | M33: 0.83 | N33: 0.26 | O33: -0.47 | P33: -2.72 | Q33: 8.62 | R33: -0.38 | S33: 0.44 | T33: 0.36 | U33: 6.36 | V33: 1.98 | W33: -1.62 | X33: -0.41 | Y33: 0.84 | Z33: 0.10 | AA33: 0.01 | AB33: -0.02 | AC33: 0.41 | AD33: 0.01 | AE33: 0 | AF33: -0.01 | AG33: -0.03 | AH33: 0.03 | AI33: 0.00 | AJ33: -0.01 | AK33: -0.72 | AL33: -3.30
A34: 证券投资 | C34: =C14-C24 -> -16.78 | D34: 0.17 | E34: -1.68 | F34: 0.57 | G34: -0.49 | H34: -0.00 | I34: 0 | J34: -0.00 | K34: 49.47 | L34: 6.19 | M34: 0.86 | N34: -1.16 | O34: 0.00 | P34: -0.24 | Q34: 0.07 | R34: -1.40 | S34: 0.00 | T34: -4.77 | U34: 1.18 | V34: -0.41 | W34: 0.14 | X34: 0.01 | Y34: 2.33 | Z34: 0 | AA34: 3.05 | AB34: 0 | AC34: -1.20 | AD34: -3.47 | AE34: 0 | AF34: 0 | AG34: 0.09 | AH34: 0.05 | AI34: -0.06 | AJ34: -0.00 | AK34: 0.74 | AL34: -2.47
A35: 注： 1.分地区是指办理结售汇业务的银行所在地。其中，本表中辽宁不含大连，浙江不含宁波，福建不含厦门，山东不含青岛，广东不含深圳。

Sheet 2022年12月（按美元）
A2: 2022年12月银行结售汇数据（分地区）
A3: 单位：亿美元
A4: 项目 | C4: 北京 | D4: 天津 | E4: 河北 | F4: 山西 | G4: 内蒙古 | H4: 辽宁 | I4: 吉林 | J4: 黑龙江 | K4: 上海 | L4: 江苏 | M4: 浙江 | N4: 安徽 | O4: 福建 | P4: 江西 | Q4: 山东 | R4: 河南 | S4: 湖北 | T4: 湖南 | U4: 广东 | V4: 广西 | W4: 海南 | X4: 重庆 | Y4: 四川 | Z4: 贵州 | AA4: 云南 | AB4: 西藏 | AC4: 陕西 | AD4: 甘肃 | AE4: 青海 | AF4: 宁夏 | AG4: 新疆 | AH4: 大连 | AI4: 宁波 | AJ4: 厦门 | AK4: 青岛 | AL4: 深圳
A5: 一、结汇 | C5: 158.01 | D5: 33.90 | E5: 31.52 | F5: 6.82 | G5: 4.63 | H5: 9.89 | I5: 4.09 | J5: 3.38 | K5: 378.27 | L5: 239.30 | M5: 272.69 | N5: 32.00 | O5: 58.37 | P5: 21.45 | Q5: 93.04 | R5: 25.62 | S5: 26.91 | T5: 20.20 | U5: 211.19 | V5: 8.81 | W5: 6.61 | X5: 31.85 | Y5: 33.57 | Z5: 3.94 | AA5: 5.26 | AB5: 0.04 | AC5: 16.73 | AD5: 1.19 | AE5: 0.37 | AF5: 1.20 | AG5: 8.52 | AH5: 24.73 | AI5: 79.65 | AJ5: 35.94 | AK5: 37.95 | AL5: 164.51
A6: (一）银行自身 | C6: 11.76 | D6: 0.02 | E6: 0.01 | F6: 0.00 | G6: 0.00 | H6: 0.05 | I6: 0.00 | J6: 0.00 | K6: 45.26 | L6: 0.16 | M6: 3.97 | N6: 0.00 | O6: 7.57 | P6: 0.00 | Q6: 0.19 | R6: 0.00 | S6: 0.01 | T6: 0.01 | U6: 0.14 | V6: 0.00 | W6: 0.01 | X6: 0.01 | Y6: 1.11 | Z6: 0.00 | AA6: 0.01 | AB6: 0.00 | AC6: 0.00 | AD6: 0.00 | AE6: 0.00 | AF6: 0.00 | AG6: 0.00 | AH6: 0.14 | AI6: 1.74 | AJ6: 0.04 | AK6: 0.01 | AL6: 0.34
A7: (二）银行代客 | C7: 146.26 | D7: 33.89 | E7: 31.51 | F7: 6.82 | G7: 4.63 | H7: 9.85 | I7: 4.09 | J7: 3.38 | K7: 333.01 | L7: 239.13 | M7: 268.72 | N7: 31.99 | O7: 50.80 | P7: 21.45 | Q7: 92.85 | R7: 25.61 | S7: 26.90 | T7: 20.19 | U7: 211.05 | V7: 8.81 | W7: 6.60 | X7: 31.84 | Y7: 32.46 | Z7: 3.94 | AA7: 5.26 | AB7: 0.04 | AC7: 16.72 | AD7: 1.19 | AE7: 0.37 | AF7: 1.20 | AG7: 8.52 | AH7: 24.59 | AI7: 77.91 | AJ7: 35.90 | AK7: 37.93 | AL7: 164.16
A8: 1.经常项目 | C8: 100.05 | D8: 31.38 | E8: 30.41 | F8: 6.34 | G8: 3.88 | H8: 9.53 | I8: 3.62 | J8: 3.24 | K8: 200.17 | L8: 224.72 | M8: 254.93 | N8: 30.15 | O8: 49.80 | P8: 18.13 | Q8: 84.95 | R8: 23.45 | S8: 24.30 | T8: 18.61 | U8: 191.32 | V8: 7.16 | W8: 4.08 | X8: 31.11 | Y8: 29.90 | Z8: 3.05 | AA8: 4.48 | AB8: 0.02 | AC8: 15.67 | AD8: 0.99 | AE8: 0.34 | AF8: 1.16 | AG8: 6.96 | AH8: 24.19 | AI8: 75.29 | AJ8: 35.56 | AK8: 36.24 | AL8: 141.93
A9: 1.1货物贸易 | C9: 57.01 | D9: 27.70 | E9: 28.84 | F9: 6.00 | G9: 3.61 | H9: 8.47 | I9: 2.96 | J9: 2.46 | K9: 152.96 | L9: 216.73 | M9: 248.47 | N9: 29.29 | O9: 46.74 | P9: 17.70 | Q9: 82.14 | R9: 22.07 | S9: 20.22 | T9: 17.08 | U9: 177.74 | V9: 6.07 | W9: 3.33 | X9: 29.63 | Y9: 26.40 | Z9: 2.87 | AA9: 4.08 | AB9: 0.01 | AC9: 14.51 | AD9: 0.83 | AE9: 0.32 | AF9: 1.12 | AG9: 6.04 | AH9: 21.49 | AI9: 72.70 | AJ9: 33.70 | AK9: 33.25 | AL9: 126.25
A10: 1.2服务贸易 | C10: 23.64 | D10: 2.98 | E10: 1.00 | F10: 0.20 | G10: 0.20 | H10: 0.46 | I10: 0.24 | J10: 0.42 | K10: 41.76 | L10: 5.98 | M10: 3.08 | N10: 0.61 | O10: 1.43 | P10: 0.19 | Q10: 1.64 | R10: 0.72 | S10: 2.17 | T10: 1.19 | U10: 8.22 | V10: 0.23 | W10: 0.60 | X10: 1.24 | Y10: 2.95 | Z10: 0.11 | AA10: 0.30 | AB10: 0.00 | AC10: 0.94 | AD10: 0.08 | AE10: 0.01 | AF10: 0.02 | AG10: 0.45 | AH10: 2.31 | AI10: 1.83 | AJ10: 1.42 | AK10: 2.17 | AL10: 12.85
A11: 1.3收益和经常转移 | C11: 19.40 | D11: 0.70 | E11: 0.57 | F11: 0.15 | G11: 0.07 | H11: 0.60 | I11: 0.43 | J11: 0.35 | K11: 5.45 | L11: 2.01 | M11: 3.37 | N11: 0.25 | O11: 1.62 | P11: 0.23 | Q11: 1.17 | R11: 0.66 | S11: 1.91 | T11: 0.34 | U11: 5.35 | V11: 0.86 | W11: 0.14 | X11: 0.23 | Y11: 0.55 | Z11: 0.06 | AA11: 0.10 | AB11: 0.00 | AC11: 0.22 | AD11: 0.08 | AE11: 0.01 | AF11: 0.02 | AG11: 0.48 | AH11: 0.39 | AI11: 0.76 | AJ11: 0.45 | AK11: 0.82 | AL11: 2.84
A12: 2.资本与金融项目 | C12: 46.21 | D12: 2.51 | E12: 1.10 | F12: 0.47 | G12: 0.75 | H12: 0.32 | I12: 0.47 | J12: 0.15 | K12: 132.84 | L12: 14.41 | M12: 13.79 | N12: 1.85 | O12: 1.00 | P12: 3.32 | Q12: 7.90 | R12: 2.16 | S12: 2.60 | T12: 1.57 | U12: 19.73 | V12: 1.65 | W12: 2.52 | X12: 0.73 | Y12: 2.57 | Z12: 0.89 | AA12: 0.78 | AB12: 0.02 | AC12: 1.06 | AD12: 0.20 | AE12: 0.02 | AF12: 0.04 | AG12: 1.56 | AH12: 0.39 | AI12: 2.62 | AJ12: 0.34 | AK12: 1.69 | AL12: 22.23
A13: 其中: 直接投资 | C13: 26.58 | D13: 2.21 | E13: 0.66 | F13: 0.39 | G13: 0.73 | H13: 0.20 | I13: 0.44 | J13: 0.06 | K13: 19.13 | L13: 10.50 | M13: 8.32 | N13: 1.53 | O13: 0.80 | P13: 1.01 | Q13: 7.47 | R13: 0.48 | S13: 1.73 | T13: 1.11 | U13: 7.14 | V13: 0.82 | W13: 2.03 | X13: 0.26 | Y13: 2.16 | Z13: 0.07 | AA13: 0.12 | AB13: 0.02 | AC13: 0.44 | AD13: 0.03 | AE13: 0.00 | AF13: 0.00 | AG13: 1.45 | AH13: 0.21 | AI13: 1.82 | AJ13: 0.28 | AK13: 0.67 | AL13: 3.16
A14: 证券投资 | C14: 13.88 | D14: 0.12 | E14: 0.02 | F14: 0.00 | G14: 0.01 | H14: 0.04 | I14: 0.00 | J14: 0.00 | K14: 111.88 | L14: 1.31 | M14: 4.15 | N14: 0.11 | O14: 0.00 | P14: 1.29 | Q14: 0.01 | R14: 0.00 | S14: 0.01 | T14: 0.00 | U14: 12.35 | V14: 0.40 | W14: 0.19 | X14: 0.09 | Y14: 0.07 | Z14: 0.45 | AA14: 0.44 | AB14: 0.00 | AC14: 0.00 | AD14: 0.07 | AE14: 0.00 | AF14: 0.00 | AG14: 0.02 | AH14: 0.08 | AI14: 0.59 | AJ14: 0.03 | AK14: 0.79 | AL14: 18.93
A15: 二、售汇 | C15: 395.60 | D15: 37.50 | E15: 29.99 | F15: 6.94 | G15: 14.63 | H15: 13.64 | I15: 8.76 | J15: 6.70 | K15: 496.06 | L15: 139.65 | M15: 113.52 | N15: 28.69 | O15: 48.52 | P15: 16.26 | Q15: 61.76 | R15: 18.86 | S15: 23.98 | T15: 23.60 | U15: 116.99 | V15: 21.28 | W15: 11.93 | X15: 20.59 | Y15: 25.66 | Z15: 3.59 | AA15: 7.53 | AB15: 0.37 | AC15: 14.76 | AD15: 6.93 | AE15: 0.21 | AF15: 0.75 | AG15: 6.26 | AH15: 12.26 | AI15: 58.38 | AJ15: 68.62 | AK15: 37.76 | AL15: 123.80
A16: (一）银行自身 | C16: 7.39 | D16: 0.07 | E16: 0.00 | F16: 0.00 | G16: 0.00 | H16: 0.00 | I16: 0.00 | J16: 0.03 | K16: 15.93 | L16: 0.20 | M16: 5.24 | N16: 0.00 | O16: 12.15 | P16: 0.03 | Q16: 0.37 | R16: 0.02 | S16: 0.00 | T16: 0.02 | U16: 2.48 | V16: 0.00 | W16: 2.85 | X16: 0.42 | Y16: 0.00 | Z16: 0.00 | AA16: 0.27 | AB16: 0.00 | AC16: 0.00 | AD16: 0.01 | AE16: 0.00 | AF16: 0.00 | AG16: 0.01 | AH16: 0.00 | AI16: 1.48 | AJ16: 0.00 | AK16: 0.13 | AL16: 2.09
A17: (二）银行代客 | C17: 388.20 | D17: 37.43 | E17: 29.99 | F17: 6.94 | G17: 14.62 | H17: 13.64 | I17: 8.76 | J17: 6.67 | K17: 480.13 | L17: 139.45 | M17: 108.28 | N17: 28.69 | O17: 36.36 | P17: 16.23 | Q17: 61.39 | R17: 18.84 | S17: 23.98 | T17: 23.58 | U17: 114.51 | V17: 21.28 | W17: 9.08 | X17: 20.18 | Y17: 25.66 | Z17: 3.59 | AA17: 7.27 | AB17: 0.37 | AC17: 14.75 | AD17: 6.93 | AE17: 0.21 | AF17: 0.75 | AG17: 6.24 | AH17: 12.26 | AI17: 56.89 | AJ17: 68.62 | AK17: 37.64 | AL17: 121.71
A18: 1.经常项目 | C18: 350.73 | D18: 33.81 | E18: 23.48 | F18: 5.67 | G18: 11.17 | H18: 10.52 | I18: 8.40 | J18: 6.60 | K18: 334.85 | L18: 119.41 | M18: 97.02 | N18: 27.83 | O18: 34.56 | P18: 12.76 | Q18: 55.17 | R18: 16.75 | S18: 21.74 | T18: 18.15 | U18: 100.48 | V18: 17.55 | W18: 7.57 | X18: 16.21 | Y18: 22.68 | Z18: 3.23 | AA18: 5.46 | AB18: 0.37 | AC18: 13.77 | AD18: 3.97 | AE18: 0.14 | AF18: 0.73 | AG18: 3.96 | AH18: 11.42 | AI18: 49.82 | AJ18: 67.28 | AK18: 35.38 | AL18: 98.72
A19: 1.1货物贸易 | C19: 297.73 | D19: 25.82 | E19: 19.61 | F19: 4.05 | G19: 10.07 | H19: 7.36 | I19: 5.81 | J19: 4.78 | K19: 240.23 | L19: 93.71 | M19: 84.67 | N19: 25.03 | O19: 31.08 | P19: 11.13 | Q19: 48.24 | R19: 13.64 | S19: 17.10 | T19: 15.28 | U19: 80.02 | V19: 15.35 | W19: 5.81 | X19: 12.95 | Y19: 17.00 | Z19: 2.62 | AA19: 4.00 | AB19: 0.31 | AC19: 10.72 | AD19: 3.46 | AE19: 0.06 | AF19: 0.46 | AG19: 2.69 | AH19: 8.79 | AI19: 46.88 | AJ19: 64.41 | AK19: 31.65 | AL19: 77.97
A20: 1.2服务贸易 | C20: 44.21 | D20: 4.57 | E20: 2.47 | F20: 1.48 | G20: 0.93 | H20: 2.74 | I20: 2.16 | J20: 1.77 | K20: 67.43 | L20: 14.67 | M20: 10.11 | N20: 2.50 | O20: 2.42 | P20: 1.23 | Q20: 6.19 | R20: 2.83 | S20: 4.27 | T20: 2.09 | U20: 15.83 | V20: 0.84 | W20: 1.46 | X20: 2.62 | Y20: 4.96 | Z20: 0.50 | AA20: 1.27 | AB20: 0.02 | AC20: 2.42 | AD20: 0.51 | AE20: 0.07 | AF20: 0.20 | AG20: 1.13 | AH20: 2.19 | AI20: 2.56 | AJ20: 2.37 | AK20: 3.09 | AL20: 16.52
A21: 1.3收益和经常转移 | C21: 8.79 | D21: 3.42 | E21: 1.40 | F21: 0.14 | G21: 0.18 | H21: 0.42 | I21: 0.44 | J21: 0.06 | K21: 27.18 | L21: 11.02 | M21: 2.23 | N21: 0.30 | O21: 1.05 | P21: 0.40 | Q21: 0.73 | R21: 0.27 | S21: 0.37 | T21: 0.77 | U21: 4.63 | V21: 1.36 | W21: 0.29 | X21: 0.64 | Y21: 0.72 | Z21: 0.10 | AA21: 0.19 | AB21: 0.04 | AC21: 0.62 | AD21: 0.01 | AE21: 0.01 | AF21: 0.07 | AG21: 0.15 | AH21: 0.44 | AI21: 0.38 | AJ21: 0.51 | AK21: 0.65 | AL21: 4.23
A22: 2.资本与金融项目 | C22: 37.47 | D22: 3.62 | E22: 6.51 | F22: 1.27 | G22: 3.45 | H22: 3.12 | I22: 0.36 | J22: 0.07 | K22: 145.28 | L22: 20.04 | M22: 11.26 | N22: 0.86 | O22: 1.80 | P22: 3.46 | Q22: 6.22 | R22: 2.09 | S22: 2.24 | T22: 5.43 | U22: 14.03 | V22: 3.72 | W22: 1.51 | X22: 3.97 | Y22: 2.98 | Z22: 0.36 | AA22: 1.81 | AB22: 0.00 | AC22: 0.99 | AD22: 2.96 | AE22: 0.06 | AF22: 0.02 | AG22: 2.28 | AH22: 0.85 | AI22: 7.07 | AJ22: 1.34 | AK22: 2.25 | AL22: 22.99
A23: 其中: 直接投资 | C23: 17.52 | D23: 0.97 | E23: 0.67 | F23: 0.00 | G23: 3.02 | H23: 0.43 | I23: 0.16 | J23: 0.03 | K23: 23.42 | L23: 8.31 | M23: 5.74 | N23: 0.54 | O23: 0.64 | P23: 2.90 | Q23: 2.01 | R23: 0.24 | S23: 0.72 | T23: 3.23 | U23: 6.23 | V23: 0.02 | W23: 0.95 | X23: 1.39 | Y23: 2.18 | Z23: 0.00 | AA23: 0.12 | AB23: 0.00 | AC23: 0.38 | AD23: 0.01 | AE23: 0.04 | AF23: 0.01 | AG23: 1.18 | AH23: 0.54 | AI23: 4.19 | AJ23: 0.49 | AK23: 1.03 | AL23: 4.79
A24: 证券投资 | C24: 10.06 | D24: 0.05 | E24: 1.58 | F24: 0.00 | G24: 0.00 | H24: 0.00 | I24: 0.00 | J24: 0.00 | K24: 104.10 | L24: 1.21 | M24: 1.03 | N24: 0.00 | O24: 0.00 | P24: 0.00 | Q24: 1.25 | R24: 0.00 | S24: 0.29 | T24: 1.50 | U24: 1.23 | V24: 1.33 | W24: 0.00 | X24: 0.00 | Y24: 0.01 | Z24: 0.00 | AA24: 0.47 | AB24: 0.00 | AC24: 0.00 | AD24: 0.80 | AE24: 0.00 | AF24: 0.00 | AG24: 0.00 | AH24: 0.02 | AI24: 0.00 | AJ24: 0.69 | AK24: 0.05 | AL24: 15.22
A25: 三、差额 | C25: =C5-C15 -> -237.58 | D25: =D5-D15 -> -3.60 | E25: 1.53 | F25: -0.12 | G25: -9.99 | H25: -3.74 | I25: -4.67 | J25: -3.31 | K25: -117.79 | L25: 99.65 | M25: 159.17 | N25: 3.31 | O25: 9.85 | P25: 5.20 | Q25: 31.29 | R25: 6.76 | S25: 2.93 | T25: -3.40 | U25: 94.20 | V25: -12.46 | W25: -5.32 | X25: 11.26 | Y25: 7.91 | Z25: 0.35 | AA25: -2.27 | AB25: -0.33 | AC25: 1.97 | AD25: -5.74 | AE25: 0.16 | AF25: 0.45 | AG25: 2.26 | AH25: 12.46 | AI25: 21.27 | AJ25: -32.68 | AK25: 0.18 | AL25: 40.71
A26: (一）银行自身 | C26: 4.36 | D26: -0.06 | E26: 0.01 | F26: 0.00 | G26: -0.00 | H26: 0.04 | I26: -0.00 | J26: -0.02 | K26: 29.32 | L26: -0.04 | M26: -1.27 | N26: 0.00 | O26: -4.58 | P26: -0.03 | Q26: -0.18 | R26: -0.01 | S26: 0.01 | T26: -0.00 | U26: -2.34 | V26: 0.00 | W26: -2.84 | X26: -0.40 | Y26: 1.11 | Z26: -0.00 | AA26: -0.26 | AB26: 0 | AC26: 0.00 | AD26: -0.01 | AE26: 0.00 | AF26: 0 | AG26: -0.01 | AH26: 0.14 | AI26: 0.26 | AJ26: 0.04 | AK26: -0.11 | AL26: -1.75
A27: (二）银行代客 | C27: -241.95 | D27: -3.54 | E27: 1.52 | F27: -0.12 | G27: -9.99 | H27: -3.79 | I27: -4.67 | J27: -3.29 | K27: -147.11 | L27: 99.69 | M27: 160.44 | N27: 3.30 | O27: 14.43 | P27: 5.23 | Q27: 31.46 | R27: 6.77 | S27: 2.92 | T27: -3.40 | U27: 96.54 | V27: -12.47 | W27: -2.48 | X27: 11.66 | Y27: 6.80 | Z27: 0.35 | AA27: -2.01 | AB27: -0.33 | AC27: 1.97 | AD27: -5.74 | AE27: 0.16 | AF27: 0.45 | AG27: 2.28 | AH27: 12.32 | AI27: 21.02 | AJ27: -32.72 | AK27: 0.30 | AL27: 42.45
A28: 1.经常项目 | C28: -250.68 | D28: -2.44 | E28: 6.92 | F28: 0.67 | G28: -7.30 | H28: -0.99 | I28: -4.78 | J28: -3.37 | K28: -134.68 | L28: 105.31 | M28: 157.91 | N28: 2.32 | O28: 15.24 | P28: 5.36 | Q28: 29.78 | R28: 6.71 | S28: 2.55 | T28: 0.46 | U28: 90.84 | V28: -10.39 | W28: -3.49 | X28: 14.90 | Y28: 7.22 | Z28: -0.18 | AA28: -0.98 | AB28: -0.35 | AC28: 1.90 | AD28: -2.98 | AE28: 0.20 | AF28: 0.43 | AG28: 3.00 | AH28: 12.78 | AI28: 25.47 | AJ28: -31.72 | AK28: 0.86 | AL28: 43.21
A29: 1.1货物贸易 | C29: -240.72 | D29: 1.88 | E29: 9.22 | F29: 1.95 | G29: -6.46 | H29: 1.11 | I29: -2.85 | J29: -2.31 | K29: -87.28 | L29: 123.02 | M29: 163.80 | N29: 4.26 | O29: 15.66 | P29: 6.57 | Q29: 33.90 | R29: 8.44 | S29: 3.12 | T29: 1.80 | U29: 97.72 | V29: -9.28 | W29: -2.48 | X29: 16.68 | Y29: 9.41 | Z29: 0.25 | AA29: 0.08 | AB29: -0.30 | AC29: 3.79 | AD29: -2.63 | AE29: 0.26 | AF29: 0.66 | AG29: 3.34 | AH29: 12.70 | AI29: 25.82 | AJ29: -30.71 | AK29: 1.60 | AL29: 48.28
A30: 1.2服务贸易 | C30: -20.57 | D30: -1.59 | E30: -1.47 | F30: -1.29 | G30: -0.73 | H30: -2.28 | I30: -1.92 | J30: -1.34 | K30: -25.67 | L30: -8.69 | M30: -7.03 | N30: -1.89 | O30: -0.99 | P30: -1.04 | Q30: -4.56 | R30: -2.12 | S30: -2.10 | T30: -0.91 | U30: -7.61 | V30: -0.61 | W30: -0.86 | X30: -1.37 | Y30: -2.01 | Z30: -0.39 | AA30: -0.97 | AB30: -0.01 | AC30: -1.49 | AD30: -0.43 | AE30: -0.06 | AF30: -0.19 | AG30: -0.68 | AH30: 0.12 | AI30: -0.73 | AJ30: -0.95 | AK30: -0.92 | AL30: -3.67
A31: 1.3收益和经常转移 | C31: 10.61 | D31: -2.72 | E31: -0.83 | F31: 0.01 | G31: -0.11 | H31: 0.18 | I31: -0.01 | J31: 0.29 | K31: -21.73 | L31: -9.01 | M31: 1.14 | N31: -0.05 | O31: 0.57 | P31: -0.17 | Q31: 0.44 | R31: 0.39 | S31: 1.54 | T31: -0.43 | U31: 0.73 | V31: -0.50 | W31: -0.15 | X31: -0.40 | Y31: -0.18 | Z31: -0.04 | AA31: -0.09 | AB31: -0.04 | AC31: -0.40 | AD31: 0.08 | AE31: -0.00 | AF31: -0.05 | AG31: 0.33 | AH31: -0.05 | AI31: 0.38 | AJ31: -0.06 | AK31: 0.17 | AL31: -1.40
A32: 2.资本与金融项目 | C32: 8.73 | D32: -1.11 | E32: -5.40 | F32: =F12-F22 -> -0.79 | G32: -2.70 | H32: -2.80 | I32: 0.11 | J32: 0.08 | K32: -12.43 | L32: -5.63 | M32: 2.53 | N32: 0.99 | O32: -0.81 | P32: -0.14 | Q32: 1.68 | R32: 0.07 | S32: 0.37 | T32: -3.86 | U32: 5.70 | V32: -2.08 | W32: 1.01 | X32: -3.24 | Y32: -0.41 | Z32: 0.53 | AA32: -1.03 | AB32: 0.02 | AC32: 0.07 | AD32: -2.76 | AE32: -0.04 | AF32: 0.02 | AG32: -0.72 | AH32: -0.45 | AI32: -4.45 | AJ32: -1.00 | AK32: -0.56 | AL32: -0.76
A33: 其中: 直接投资 | C33: =C13-C23 -> 9.06 | D33: 1.24 | E33: -0.01 | F33: 0.39 | G33: -2.28 | H33: -0.22 | I33: 0.28 | J33: 0.03 | K33: -4.30 | L33: 2.19 | M33: 2.58 | N33: 0.99 | O33: 0.16 | P33: -1.89 | Q33: 5.47 | R33: 0.24 | S33: 1.01 | T33: -2.13 | U33: 0.91 | V33: 0.80 | W33: 1.09 | X33: -1.13 | Y33: -0.02 | Z33: 0.06 | AA33: -0.00 | AB33: 0.02 | AC33: 0.06 | AD33: 0.02 | AE33: -0.04 | AF33: -0.00 | AG33: 0.27 | AH33: -0.33 | AI33: -2.37 | AJ33: -0.21 | AK33: -0.36 | AL33: -1.63
A34: 证券投资 | C34: 3.82 | D34: 0.07 | E34: -1.56 | F34: 0 | G34: 0.01 | H34: 0.04 | I34: 0.00 | J34: 0 | K34: 7.78 | L34: 0.10 | M34: 3.12 | N34: 0.11 | O34: 0.00 | P34: 1.29 | Q34: -1.24 | R34: -0.00 | S34: -0.28 | T34: -1.50 | U34: 11.12 | V34: -0.93 | W34: 0.19 | X34: 0.09 | Y34: 0.07 | Z34: 0.45 | AA34: -0.03 | AB34: 0 | AC34: 0 | AD34: -0.73 | AE34: 0 | AF34: 0 | AG34: 0.02 | AH34: 0.06 | AI34: 0.59 | AJ34: -0.66 | AK34: 0.74 | AL34: 3.71
A35: 注： 1.分地区是指办理结售汇业务的银行所在地。其中，本表中辽宁不含大连，浙江不含宁波，福建不含厦门，山东不含青岛，广东不含深圳。

Sheet 2022年累计（按美元）
A2: 2022年1-12月银行结售汇数据（分地区）
A3: 单位：亿美元
A4: 项目 | C4: 北京 | D4: 天津 | E4: 河北 | F4: 山西 | G4: 内蒙古 | H4: 辽宁 | I4: 吉林 | J4: 黑龙江 | K4: 上海 | L4: 江苏 | M4: 浙江 | N4: 安徽 | O4: 福建 | P4: 江西 | Q4: 山东 | R4: 河南 | S4: 湖北 | T4: 湖南 | U4: 广东 | V4: 广西 | W4: 海南 | X4: 重庆 | Y4: 四川 | Z4: 贵州 | AA4: 云南 | AB4: 西藏 | AC4: 陕西 | AD4: 甘肃 | AE4: 青海 | AF4: 宁夏 | AG4: 新疆 | AH4: 大连 | AI4: 宁波 | AJ4: 厦门 | AK4: 青岛 | AL4: 深圳
A5: 一、结汇 | C5: 2,084.14 | D5: 417.27 | E5: 355.47 | F5: 71.68 | G5: 50.92 | H5: 126.80 | I5: 56.41 | J5: 43.37 | K5: 3,777.46 | L5: 3,151.78 | M5: 3,312.69 | N5: 398.95 | O5: 776.16 | P5: 247.03 | Q5: 1,232.71 | R5: 348.57 | S5: 317.18 | T5: 280.67 | U5: 2,804.77 | V5: 106.41 | W5: 54.94 | X5: 304.98 | Y5: 344.26 | Z5: 44.00 | AA5: 67.20 | AB5: 0.37 | AC5: 248.98 | AD5: 21.46 | AE5: 2.80 | AF5: 18.34 | AG5: 55.79 | AH5: 274.56 | AI5: 1,330.99 | AJ5: 498.11 | AK5: 531.92 | AL5: 1,949.44
A6: (一）银行自身 | C6: 586.26 | D6: 0.55 | E6: 0.02 | F6: 0.01 | G6: 0.54 | H6: 0.11 | I6: 0.01 | J6: 0.01 | K6: 207.68 | L6: 2.37 | M6: 42.08 | N6: 0.04 | O6: 62.31 | P6: 0.01 | Q6: 6.11 | R6: 1.03 | S6: 0.06 | T6: 0.03 | U6: 9.46 | V6: 0.08 | W6: 0.04 | X6: 0.09 | Y6: 1.28 | Z6: 0.00 | AA6: 0.02 | AB6: 0.00 | AC6: 0.16 | AD6: 5.41 | AE6: 0.00 | AF6: 0.00 | AG6: 1.89 | AH6: 0.16 | AI6: 284.56 | AJ6: 0.11 | AK6: 2.89 | AL6: 10.83
A7: (二）银行代客 | C7: 1,497.88 | D7: 416.72 | E7: 355.45 | F7: 71.67 | G7: 50.38 | H7: 126.69 | I7: 56.40 | J7: 43.37 | K7: 3,569.79 | L7: 3,149.42 | M7: 3,270.61 | N7: 398.90 | O7: 713.85 | P7: 247.02 | Q7: 1,226.60 | R7: 347.54 | S7: 317.12 | T7: 280.64 | U7: 2,795.31 | V7: 106.33 | W7: 54.90 | X7: 304.89 | Y7: 342.98 | Z7: 44.00 | AA7: 67.18 | AB7: 0.37 | AC7: 248.82 | AD7: 16.04 | AE7: 2.80 | AF7: 18.34 | AG7: 53.91 | AH7: 274.40 | AI7: 1,046.44 | AJ7: 498.00 | AK7: 529.03 | AL7: 1,938.61
A8: 1.经常项目 | C8: 973.10 | D8: 370.33 | E8: 332.18 | F8: 66.31 | G8: 45.98 | H8: 121.41 | I8: 50.03 | J8: 40.95 | K8: 2,292.95 | L8: 2,911.90 | M8: 3,084.47 | N8: 365.31 | O8: 693.69 | P8: 215.47 | Q8: 1,106.63 | R8: 308.59 | S8: 279.99 | T8: 244.27 | U8: 2,631.24 | V8: 84.46 | W8: 37.32 | X8: 285.08 | Y8: 286.29 | Z8: 31.74 | AA8: 46.87 | AB8: 0.13 | AC8: 219.63 | AD8: 13.62 | AE8: 2.62 | AF8: 17.06 | AG8: 48.49 | AH8: 215.32 | AI8: 1,017.48 | AJ8: 481.93 | AK8: 493.33 | AL8: 1,728.44
A9: 1.1货物贸易 | C9: 588.17 | D9: 321.37 | E9: 313.64 | F9: 61.71 | G9: 42.41 | H9: 106.39 | I9: 42.04 | J9: 32.92 | K9: 1,639.34 | L9: 2,813.12 | M9: 3,007.04 | N9: 353.01 | O9: 655.23 | P9: 208.99 | Q9: 1,060.04 | R9: 290.64 | S9: 252.49 | T9: 228.22 | U9: 2,473.07 | V9: 77.32 | W9: 31.88 | X9: 270.41 | Y9: 246.67 | Z9: 29.25 | AA9: 42.21 | AB9: 0.06 | AC9: 202.51 | AD9: 10.75 | AE9: 2.35 | AF9: 16.38 | AG9: 44.74 | AH9: 185.68 | AI9: 988.50 | AJ9: 458.01 | AK9: 452.23 | AL9: 1,512.96
A10: 1.2服务贸易 | C10: 275.45 | D10: 35.34 | E10: 9.50 | F10: 2.85 | G10: 2.44 | H10: 6.10 | I10: 2.38 | J10: 3.32 | K10: 578.63 | L10: 70.61 | M10: 41.34 | N10: 8.30 | O10: 15.89 | P10: 2.72 | Q10: 23.59 | R10: 7.14 | S10: 16.67 | T10: 10.09 | U10: 113.81 | V10: 3.52 | W10: 4.42 | X10: 11.27 | Y10: 30.42 | Z10: 1.67 | AA10: 2.34 | AB10: 0.04 | AC10: 13.32 | AD10: 1.22 | AE10: 0.14 | AF10: 0.35 | AG10: 2.54 | AH10: 23.62 | AI10: 23.02 | AJ10: 19.24 | AK10: 30.58 | AL10: 182.35
A11: 1.3收益和经常转移 | C11: 109.48 | D11: 13.61 | E11: 9.03 | F11: 1.75 | G11: 1.13 | H11: 8.92 | I11: 5.61 | J11: 4.71 | K11: 74.99 | L11: 28.18 | M11: 36.09 | N11: 4.00 | O11: 22.57 | P11: 3.76 | Q11: 23.01 | R11: 10.82 | S11: 10.83 | T11: 5.96 | U11: 44.35 | V11: 3.61 | W11: 1.02 | X11: 3.40 | Y11: 9.20 | Z11: 0.82 | AA11: 2.32 | AB11: 0.03 | AC11: 3.79 | AD11: 1.65 | AE11: 0.14 | AF11: 0.34 | AG11: 1.21 | AH11: 6.02 | AI11: 5.97 | AJ11: 4.67 | AK11: 10.52 | AL11: 33.12
A12: 2.资本与金融项目 | C12: 524.78 | D12: 46.39 | E12: 23.28 | F12: 5.36 | G12: 4.41 | H12: 5.28 | I12: 6.37 | J12: 2.42 | K12: 1,276.83 | L12: 237.52 | M12: 186.13 | N12: 33.59 | O12: 20.15 | P12: 31.55 | Q12: 119.97 | R12: 38.95 | S12: 37.13 | T12: 36.37 | U12: 164.07 | V12: 21.87 | W12: 17.57 | X12: 19.81 | Y12: 56.69 | Z12: 12.26 | AA12: 20.31 | AB12: 0.24 | AC12: 29.19 | AD12: 2.43 | AE12: 0.17 | AF12: 1.27 | AG12: 5.41 | AH12: 59.07 | AI12: 28.95 | AJ12: 16.07 | AK12: 35.69 | AL12: 210.18
A13: 其中: 直接投资 | C13: 203.01 | D13: 35.37 | E13: 10.12 | F13: 1.42 | G13: 2.42 | H13: 4.01 | I13: 2.64 | J13: 1.40 | K13: 222.25 | L13: 144.14 | M13: 102.27 | N13: 22.05 | O13: 9.50 | P13: 11.31 | Q13: 97.84 | R13: 15.71 | S13: 18.08 | T13: 26.31 | U13: 83.28 | V13: 6.22 | W13: 10.91 | X13: 10.84 | Y13: 18.29 | Z13: 2.56 | AA13: 3.96 | AB13: 0.17 | AC13: 4.19 | AD13: 0.43 | AE13: 0.01 | AF13: 0.40 | AG13: 2.52 | AH13: 57.67 | AI13: 15.48 | AJ13: 14.57 | AK13: 20.40 | AL13: 101.96
A14: 证券投资 | C14: 235.14 | D14: 4.31 | E14: 1.95 | F14: 1.83 | G14: 1.34 | H14: 0.56 | I14: 1.50 | J14: 0.00 | K14: 1,024.21 | L14: 39.77 | M14: 62.51 | N14: 4.81 | O14: 7.75 | P14: 13.44 | Q14: 8.30 | R14: 11.04 | S14: 5.44 | T14: 5.93 | U14: 47.84 | V14: 2.50 | W14: 3.92 | X14: 4.39 | Y14: 25.87 | Z14: 3.45 | AA14: 3.69 | AB14: 0.00 | AC14: 6.23 | AD14: 1.07 | AE14: 0.00 | AF14: 0.00 | AG14: 0.33 | AH14: 0.42 | AI14: 9.06 | AJ14: 0.24 | AK14: 11.49 | AL14: 99.82
A15: 二、售汇 | C15: 5,389.70 | D15: 415.85 | E15: 257.87 | F15: 94.53 | G15: 107.28 | H15: 230.62 | I15: 114.96 | J15: 92.97 | K15: 5,544.23 | L15: 1,629.91 | M15: 1,146.09 | N15: 341.72 | O15: 523.37 | P15: 176.48 | Q15: 908.55 | R15: 226.55 | S15: 287.48 | T15: 219.56 | U15: 1,448.48 | V15: 254.23 | W15: 145.45 | X15: 438.07 | Y15: 323.48 | Z15: 43.16 | AA15: 114.15 | AB15: 2.59 | AC15: 182.91 | AD15: 93.62 | AE15: 2.43 | AF15: 8.91 | AG15: 46.99 | AH15: 157.86 | AI15: 883.91 | AJ15: 765.99 | AK15: 484.30 | AL15: 1,531.23
A16: (一）银行自身 | C16: 450.87 | D16: 8.22 | E16: 0.02 | F16: 0.00 | G16: 0.00 | H16: 14.55 | I16: 0.01 | J16: 0.08 | K16: 302.65 | L16: 1.95 | M16: 44.91 | N16: 0.43 | O16: 91.48 | P16: 0.62 | Q16: 1.31 | R16: 0.91 | S16: 0.01 | T16: 0.02 | U16: 9.12 | V16: 0.01 | W16: 3.32 | X16: 2.72 | Y16: 0.17 | Z16: 0.18 | AA16: 0.27 | AB16: 0.00 | AC16: 0.29 | AD16: 0.02 | AE16: 0.00 | AF16: 0.00 | AG16: 0.03 | AH16: 0.07 | AI16: 294.84 | AJ16: 0.90 | AK16: 1.38 | AL16: 38.24
A17: (二）银行代客 | C17: 4,938.83 | D17: 407.63 | E17: 257.85 | F17: 94.52 | G17: 107.28 | H17: 216.07 | I17: 114.95 | J17: 92.90 | K17: 5,241.59 | L17: 1,627.96 | M17: 1,101.18 | N17: 341.29 | O17: 431.89 | P17: 175.86 | Q17: 907.24 | R17: 225.64 | S17: 287.47 | T17: 219.54 | U17: 1,439.37 | V17: 254.22 | W17: 142.13 | X17: 435.35 | Y17: 323.31 | Z17: 42.97 | AA17: 113.87 | AB17: 2.59 | AC17: 182.62 | AD17: 93.60 | AE17: 2.43 | AF17: 8.91 | AG17: 46.96 | AH17: 157.78 | AI17: 589.07 | AJ17: 765.09 | AK17: 482.92 | AL17: 1,493.00
A18: 1.经常项目 | C18: 4,462.45 | D18: 363.67 | E18: 224.37 | F18: 89.20 | G18: 90.64 | H18: 204.05 | I18: 111.21 | J18: 91.01 | K18: 3,675.09 | L18: 1,442.35 | M18: 972.39 | N18: 317.95 | O18: 393.28 | P18: 144.41 | Q18: 826.22 | R18: 190.28 | S18: 269.63 | T18: 195.15 | U18: 1,291.84 | V18: 228.68 | W18: 125.08 | X18: 415.05 | Y18: 266.42 | Z18: 24.96 | AA18: 87.81 | AB18: 2.34 | AC18: 143.52 | AD18: 72.75 | AE18: 1.50 | AF18: 7.32 | AG18: 31.78 | AH18: 135.24 | AI18: 529.69 | AJ18: 744.49 | AK18: 457.79 | AL18: 1,238.70
A19: 1.1货物贸易 | C19: 3,701.40 | D19: 288.60 | E19: 197.34 | F19: 71.90 | G19: 76.71 | H19: 175.17 | I19: 85.08 | J19: 74.13 | K19: 2,798.00 | L19: 1,246.96 | M19: 810.13 | N19: 290.79 | O19: 345.19 | P19: 128.51 | Q19: 749.10 | R19: 156.92 | S19: 219.04 | T19: 170.22 | U19: 1,049.24 | V19: 212.77 | W19: 108.61 | X19: 378.03 | Y19: 213.48 | Z19: 18.81 | AA19: 75.55 | AB19: 1.80 | AC19: 118.59 | AD19: 67.62 | AE19: 0.61 | AF19: 4.92 | AG19: 23.96 | AH19: 109.19 | AI19: 487.74 | AJ19: 710.82 | AK19: 414.52 | AL19: 1,007.33
A20: 1.2服务贸易 | C20: 443.34 | D20: 44.94 | E20: 22.34 | F20: 12.95 | G20: 9.14 | H20: 25.42 | I20: 21.53 | J20: 15.86 | K20: 625.71 | L20: 130.68 | M20: 103.21 | N20: 22.62 | O20: 26.39 | P20: 12.00 | Q20: 56.72 | R20: 25.56 | S20: 38.36 | T20: 20.90 | U20: 153.79 | V20: 8.41 | W20: 14.91 | X20: 26.68 | Y20: 45.60 | Z20: 5.17 | AA20: 9.92 | AB20: 0.42 | AC20: 20.00 | AD20: 4.43 | AE20: 0.69 | AF20: 2.11 | AG20: 6.29 | AH20: 19.71 | AI20: 31.20 | AJ20: 28.86 | AK20: 34.34 | AL20: 158.70
A21: 1.3收益和经常转移 | C21: 317.71 | D21: 30.13 | E21: 4.69 | F21: 4.35 | G21: 4.79 | H21: 3.47 | I21: 4.60 | J21: 1.01 | K21: 251.38 | L21: 64.71 | M21: 59.05 | N21: 4.55 | O21: 21.70 | P21: 3.90 | Q21: 20.41 | R21: 7.80 | S21: 12.23 | T21: 4.03 | U21: 88.81 | V21: 7.49 | W21: 1.55 | X21: 10.34 | Y21: 7.34 | Z21: 0.98 | AA21: 2.35 | AB21: 0.12 | AC21: 4.94 | AD21: 0.70 | AE21: 0.20 | AF21: 0.29 | AG21: 1.53 | AH21: 6.34 | AI21: 10.74 | AJ21: 4.81 | AK21: 8.93 | AL21: 72.67
A22: 2.资本与金融项目 | C22: 476.38 | D22: 43.96 | E22: 33.48 | F22: 5.32 | G22: 16.64 | H22: 12.02 | I22: 3.74 | J22: 1.89 | K22: 1,566.50 | L22: 185.61 | M22: 128.79 | N22: 23.34 | O22: 38.60 | P22: 31.45 | Q22: 81.02 | R22: 35.36 | S22: 17.84 | T22: 24.39 | U22: 147.53 | V22: 25.55 | W22: 17.05 | X22: 20.30 | Y22: 56.89 | Z22: 18.01 | AA22: 26.06 | AB22: 0.25 | AC22: 39.10 | AD22: 20.86 | AE22: 0.93 | AF22: 1.60 | AG22: 15.18 | AH22: 22.54 | AI22: 59.39 | AJ22: 20.61 | AK22: 25.13 | AL22: 254.29
A23: 其中: 直接投资 | C23: 211.15 | D23: 24.37 | E23: 9.32 | F23: 0.87 | G23: 11.67 | H23: 4.15 | I23: 0.65 | J23: 0.53 | K23: 241.77 | L23: 83.67 | M23: 70.12 | N23: 9.53 | O23: 14.42 | P23: 14.32 | Q23: 38.18 | R23: 13.40 | S23: 6.04 | T23: 7.14 | U23: 60.23 | V23: 2.02 | W23: 12.47 | X23: 6.68 | Y23: 29.94 | Z23: 1.10 | AA23: 4.79 | AB23: 0.13 | AC23: 3.81 | AD23: 4.04 | AE23: 0.38 | AF23: 0.10 | AG23: 4.04 | AH23: 11.77 | AI23: 25.11 | AJ23: 12.85 | AK23: 8.17 | AL23: 59.43
A24: 证券投资 | C24: 181.70 | D24: 2.04 | E24: 6.62 | F24: 1.79 | G24: 1.05 | H24: 0.00 | I24: 0.02 | J24: 0.01 | K24: 1,206.72 | L24: 16.97 | M24: 11.62 | N24: 3.80 | O24: 5.56 | P24: 4.43 | Q24: 11.53 | R24: 4.88 | S24: 2.04 | T24: 6.40 | U24: 24.24 | V24: 8.57 | W24: 0.41 | X24: 2.79 | Y24: 4.26 | Z24: 4.76 | AA24: 12.76 | AB24: 0.00 | AC24: 5.34 | AD24: 6.66 | AE24: 0.00 | AF24: 0.00 | AG24: 4.60 | AH24: 3.36 | AI24: 2.35 | AJ24: 3.26 | AK24: 3.91 | AL24: 161.90
A25: 三、差额 | C25: =C5-C15 -> -3,305.56 | D25: =D5-D15 -> 1.43 | E25: 97.61 | F25: -22.85 | G25: -56.36 | H25: -103.82 | I25: -58.55 | J25: -49.60 | K25: -1,766.77 | L25: 1,521.87 | M25: 2,166.60 | N25: 57.23 | O25: 252.79 | P25: 70.55 | Q25: 324.16 | R25: 122.02 | S25: 29.70 | T25: 61.11 | U25: 1,356.29 | V25: -147.82 | W25: -90.51 | X25: -133.09 | Y25: 20.77 | Z25: 0.84 | AA25: -46.95 | AB25: -2.22 | AC25: 66.07 | AD25: -72.16 | AE25: 0.37 | AF25: 9.43 | AG25: 8.80 | AH25: 116.70 | AI25: 447.08 | AJ25: -267.89 | AK25: 47.62 | AL25: 418.21
A26: (一）银行自身 | C26: =C6-C16 -> 135.39 | D26: -7.66 | E26: 0.01 | F26: 0.00 | G26: 0.54 | H26: -14.44 | I26: 0.00 | J26: -0.07 | K26: -94.97 | L26: 0.42 | M26: -2.83 | N26: -0.39 | O26: -29.17 | P26: -0.61 | Q26: 4.80 | R26: 0.13 | S26: 0.05 | T26: 0.01 | U26: 0.35 | V26: 0.07 | W26: -3.28 | X26: -2.63 | Y26: 1.11 | Z26: -0.18 | AA26: -0.26 | AB26: 0.00 | AC26: -0.13 | AD26: 5.40 | AE26: 0.00 | AF26: 0.00 | AG26: 1.85 | AH26: 0.09 | AI26: -10.28 | AJ26: -0.79 | AK26: 1.51 | AL26: -27.41
A27: (二）银行代客 | C27: -3,440.95 | D27: 9.09 | E27: 97.60 | F27: -22.85 | G27: -56.90 | H27: -89.38 | I27: -58.55 | J27: -49.53 | K27: -1,671.80 | L27: 1,521.45 | M27: 2,169.43 | N27: 57.61 | O27: 281.96 | P27: 71.16 | Q27: 319.36 | R27: 121.90 | S27: 29.65 | T27: 61.10 | U27: 1,355.94 | V27: -147.89 | W27: -87.23 | X27: -130.46 | Y27: 19.67 | Z27: 1.02 | AA27: -46.69 | AB27: -2.22 | AC27: 66.20 | AD27: -77.56 | AE27: 0.37 | AF27: 9.43 | AG27: 6.95 | AH27: 116.61 | AI27: 457.36 | AJ27: -267.10 | AK27: 46.11 | AL27: 445.62
A28: 1.经常项目 | C28: -3,489.35 | D28: 6.66 | E28: 107.81 | F28: -22.89 | G28: -44.66 | H28: -82.64 | I28: -61.18 | J28: -50.06 | K28: -1,382.13 | L28: 1,469.55 | M28: 2,112.08 | N28: 47.36 | O28: 300.41 | P28: 71.05 | Q28: 280.41 | R28: 118.31 | S28: 10.36 | T28: 49.13 | U28: 1,339.40 | V28: -144.22 | W28: -87.76 | X28: -129.97 | Y28: 19.87 | Z28: 6.78 | AA28: -40.94 | AB28: -2.21 | AC28: 76.10 | AD28: -59.13 | AE28: 1.13 | AF28: 9.75 | AG28: 16.71 | AH28: 80.08 | AI28: 487.80 | AJ28: -262.56 | AK28: 35.55 | AL28: 489.73
A29: 1.1货物贸易 | C29: -3,113.23 | D29: 32.77 | E29: 116.30 | F29: -10.19 | G29: -34.30 | H29: -68.78 | I29: -43.04 | J29: -41.22 | K29: -1,158.66 | L29: 1,566.16 | M29: 2,196.91 | N29: 62.22 | O29: 310.04 | P29: 80.48 | Q29: 310.93 | R29: 133.72 | S29: 33.45 | T29: 58.00 | U29: 1,423.83 | V29: -135.45 | W29: -76.73 | X29: -107.62 | Y29: 33.19 | Z29: 10.44 | AA29: -33.34 | AB29: -1.74 | AC29: 83.93 | AD29: -56.87 | AE29: 1.74 | AF29: 11.46 | AG29: 20.78 | AH29: 76.49 | AI29: 500.76 | AJ29: -252.81 | AK29: 37.71 | AL29: 505.63
A30: 1.2服务贸易 | C30: -167.89 | D30: -9.60 | E30: -12.84 | F30: -10.10 | G30: -6.70 | H30: -19.32 | I30: -19.16 | J30: -12.54 | K30: -47.09 | L30: -60.08 | M30: -61.86 | N30: -14.31 | O30: -10.50 | P30: -9.29 | Q30: -33.13 | R30: -18.43 | S30: -21.69 | T30: -10.81 | U30: -39.97 | V30: -4.89 | W30: -10.49 | X30: -15.40 | Y30: -15.18 | Z30: -3.51 | AA30: -7.58 | AB30: -0.38 | AC30: -6.68 | AD30: -3.21 | AE30: -0.55 | AF30: -1.76 | AG30: -3.75 | AH30: 3.91 | AI30: -8.18 | AJ30: -9.61 | AK30: -3.75 | AL30: 23.66
A31: 1.3收益和经常转移 | C31: -208.22 | D31: -16.51 | E31: 4.34 | F31: -2.60 | G31: -3.66 | H31: 5.45 | I31: 1.01 | J31: 3.70 | K31: -176.39 | L31: -36.53 | M31: -22.96 | N31: -0.55 | O31: 0.87 | P31: -0.14 | Q31: 2.60 | R31: 3.02 | S31: -1.40 | T31: 1.93 | U31: -44.46 | V31: -3.88 | W31: -0.53 | X31: -6.95 | Y31: 1.86 | Z31: -0.16 | AA31: -0.02 | AB31: -0.09 | AC31: -1.14 | AD31: 0.95 | AE31: -0.06 | AF31: 0.05 | AG31: -0.32 | AH31: -0.32 | AI31: -4.78 | AJ31: -0.14 | AK31: 1.59 | AL31: -39.55
A32: 2.资本与金融项目 | C32: 48.40 | D32: 2.43 | E32: -10.21 | F32: 0.04 | G32: -12.24 | H32: -6.74 | I32: 2.63 | J32: 0.53 | K32: -289.67 | L32: 51.91 | M32: 57.34 | N32: 10.25 | O32: -18.45 | P32: 0.11 | Q32: 38.95 | R32: 3.58 | S32: 19.29 | T32: 11.97 | U32: 16.54 | V32: -3.68 | W32: 0.52 | X32: -0.49 | Y32: -0.20 | Z32: -5.75 | AA32: -5.75 | AB32: -0.01 | AC32: =AC12-AC22 -> -9.91 | AD32: -18.43 | AE32: -0.76 | AF32: -0.32 | AG32: -9.77 | AH32: 36.53 | AI32: -30.43 | AJ32: -4.54 | AK32: 10.57 | AL32: -44.12
A33: 其中: 直接投资 | C33: -8.15 | D33: 11.00 | E33: 0.80 | F33: 0.54 | G33: -9.25 | H33: -0.14 | I33: 1.99 | J33: 0.87 | K33: -19.52 | L33: 60.48 | M33: 32.15 | N33: 12.52 | O33: -4.92 | P33: -3.02 | Q33: 59.66 | R33: 2.32 | S33: 12.05 | T33: 19.17 | U33: 23.05 | V33: 4.20 | W33: -1.56 | X33: 4.17 | Y33: -11.64 | Z33: 1.47 | AA33: -0.84 | AB33: 0.04 | AC33: 0.39 | AD33: -3.61 | AE33: -0.37 | AF33: 0.30 | AG33: -1.51 | AH33: 45.90 | AI33: -9.63 | AJ33: 1.71 | AK33: 12.23 | AL33: 42.54
A34: 证券投资 | C34: 53.44 | D34: 2.28 | E34: -4.67 | F34: 0.04 | G34: 0.28 | H34: 0.55 | I34: 1.48 | J34: -0.01 | K34: -182.51 | L34: 22.81 | M34: 50.89 | N34: 1.01 | O34: 2.19 | P34: 9.01 | Q34: -3.23 | R34: 6.16 | S34: 3.41 | T34: -0.46 | U34: 23.60 | V34: -6.06 | W34: 3.51 | X34: 1.60 | Y34: 21.61 | Z34: -1.31 | AA34: -9.06 | AB34: 0.00 | AC34: 0.89 | AD34: -5.60 | AE34: 0.00 | AF34: 0.00 | AG34: -4.27 | AH34: -2.94 | AI34: 6.70 | AJ34: -3.01 | AK34: 7.58 | AL34: -62.08
A35: 注： 1.分地区是指办理结售汇业务的银行所在地。其中，本表中辽宁不含大连，浙江不含宁波，福建不含厦门，山东不含青岛，广东不含深圳。
